Workbook

Sheet ПОЧАТОК
B1: ПРО ЦЕЙ ШАБЛОН
B2: Відстежуйте фактичні та заплановані витрати й різницю за допомогою цієї книги бюджету бізнес-витрат.
B3: Введіть назву компанії та додайте емблему.
B4: Введіть відомості в таблиці на аркушах "Заплановані витрати" та "Фактичні витрати".
B5: Таблиці на аркуші "Різниця витрат" і діаграми на аркуші "Аналіз витрат" оновлюються автоматично.
B6: Примітка.
B7: Додаткові вказівки наведено в стовпці A на кожному аркуші. Цей текст приховано навмисно. Щоб вилучити текст, виберіть стовпець A й натисніть клавішу Delete. Щоб відобразити текст, виберіть стовпець A та змініть колір шрифту.
B8: Щоб переглянути докладні відомості про таблицю, натисніть у ній клавіші Shift+F10, виберіть "Таблиця", а потім – "Текст заміщення".

Sheet ЗАПЛАНОВАНІ ВИТРАТИ
A1: Введіть заплановані витрати на працівників, офіс, маркетинг, підготовчі курси та відрядження у відповідні таблиці на цьому аркуші. Підсумки обчислюються автоматично. Корисні вказівки щодо роботи з цим аркушем наведено в клітинках у цьому стовпці. Клацніть стрілку вниз, щоб почати.
A2: У клітинку праворуч введіть назва компанії та додайте емблему в клітинку N2. Заголовок цього аркуша наведено в клітинці K2. | B2: Назва компанії | K2: Докладна оцінка витрат | N2: Заповнювач для емблеми наведено в цій клітинці.
A3: Пораду наведено в клітинці K3. | K3: У затемнених клітинках наведено обчислені суми.
A4: Підпис "Заплановані витрати" наведено в клітинці праворуч, назви місяців – у клітинках C4:N4, підпис "Рік" – у клітинці O4, а підпис "Робота із шаблоном" – у клітинці R4. | B4: ЗАПЛАНОВАНІ ВИТРАТИ | C4: СІЧ | D4: ЛЮТ | E4: БЕР | F4: КВІ | G4: ТРА | H4: ЧЕР | I4: ЛИП | J4: СЕР | K4: ВЕР | L4: ЖОВ | M4: ЛИС | N4: ГРУ | O4: РІК | R4: Порада. РОБОТА ІЗ ШАБЛОНОМ Введіть дані в білі клітинки на аркушах "Заплановані витрати" та "Фактичні витрати". Показники на аркушах "Різниця фактичних витрат" і "Аналіз витрат" обчислюються автоматично. Якщо додати рядок на одному аркуші, це потрібно зробити й на інших.
A5: Введіть заплановані витрати на працівників у таблицю, починаючи з клітинки праворуч. Подальші вказівки наведено в клітинці A10. | B5: Витрати на працівників | C5: Січ | D5: Лют | E5: Бер | F5: Кві | G5: Тра | H5: Чер | I5: Лип | J5: Cер | K5: Вер | L5: Жов | M5: Лис | N5: Гру | O5: РІК
B6: Заробітна плата | C6: 85,000.00₴ | D6: 85,000.00₴ | E6: 85,000.00₴ | F6: 87,500.00₴ | G6: 87,500.00₴ | H6: 87,500.00₴ | I6: 87,500.00₴ | J6: 92,400.00₴ | K6: 92,400.00₴ | L6: 92,400.00₴ | M6: 92,400.00₴ | N6: 92,400.00₴ | O6: =SUM(C6:N6) -> 1,067,000.00₴
B7: Пільги | C7: =C6*0.27 -> 22,950.00₴ | D7: 22,950.00₴ | E7: 22,950.00₴ | F7: 23,625.00₴ | G7: 23,625.00₴ | H7: 23,625.00₴ | I7: 23,625.00₴ | J7: 24,948.00₴ | K7: 24,948.00₴ | L7: 24,948.00₴ | M7: 24,948.00₴ | N7: 24,948.00₴ | O7: =SUM(C7:N7) -> 288,090.00₴
B8: Проміжний підсумок | C8: =SUBTOTAL(109,ЗапланованіВитратиНаПрацівників[Січ]) -> 107,950.00₴ | D8: =SUBTOTAL(109,ЗапланованіВитратиНаПрацівників[Лют]) -> 107,950.00₴ | E8: =SUBTOTAL(109,ЗапланованіВитратиНаПрацівників[Бер]) -> 107,950.00₴ | F8: =SUBTOTAL(109,ЗапланованіВитратиНаПрацівників[Кві]) -> 111,125.00₴ | G8: =SUBTOTAL(109,ЗапланованіВитратиНаПрацівників[Тра]) -> 111,125.00₴ | H8: =SUBTOTAL(109,ЗапланованіВитратиНаПрацівників[Чер]) -> 111,125.00₴ | I8: =SUBTOTAL(109,ЗапланованіВитратиНаПрацівників[Лип]) -> 111,125.00₴ | J8: =SUBTOTAL(109,ЗапланованіВитратиНаПрацівників[Cер]) -> 117,348.00₴ | K8: =SUBTOTAL(109,ЗапланованіВитратиНаПрацівників[Вер]) -> 117,348.00₴ | L8: =SUBTOTAL(109,ЗапланованіВитратиНаПрацівників[Жов]) -> 117,348.00₴ | M8: =SUBTOTAL(109,ЗапланованіВитратиНаПрацівників[Лис]) -> 117,348.00₴ | N8: =SUBTOTAL(109,ЗапланованіВитратиНаПрацівників[Гру]) -> 117,348.00₴ | O8: =SUBTOTAL(109,ЗапланованіВитратиНаПрацівників[РІК]) -> 1,355,090.00₴
A10: Введіть заплановані витрати на офіс у таблицю, починаючи з клітинки праворуч. Подальші вказівки наведено в клітинці A21. | B10: Витрати на офіс | C10: Січ | D10: Лют | E10: Бер | F10: Кві | G10: Тра | H10: Чер | I10: Лип | J10: Cер | K10: Вер | L10: Жов | M10: Лис | N10: Гру | O10: РІК
B11: Оренда офісу | C11: 9,800.00₴ | D11: 9,800.00₴ | E11: 9,800.00₴ | F11: 9,800.00₴ | G11: 9,800.00₴ | H11: 9,800.00₴ | I11: 9,800.00₴ | J11: 9,800.00₴ | K11: 9,800.00₴ | L11: 9,800.00₴ | M11: 9,800.00₴ | N11: 9,800.00₴ | O11: =SUM(C11:N11) -> 117,600.00₴
B12: Газ | D12: 400.00₴ | E12: 400.00₴ | F12: 100.00₴ | G12: 100.00₴ | H12: 100.00₴ | I12: 100.00₴ | J12: 100.00₴ | K12: 100.00₴ | L12: 100.00₴ | M12: 400.00₴ | N12: 400.00₴ | O12: 2,300.00₴
B13: Електроенергія | C13: 300.00₴ | D13: 300.00₴ | E13: 300.00₴ | F13: 300.00₴ | G13: 300.00₴ | H13: 300.00₴ | I13: 300.00₴ | J13: 300.00₴ | K13: 300.00₴ | L13: 300.00₴ | M13: 300.00₴ | N13: 300.00₴ | O13: 3,600.00₴
B14: Вода | C14: 40.00₴ | D14: 40.00₴ | E14: 40.00₴ | F14: 40.00₴ | G14: 40.00₴ | H14: 40.00₴ | I14: 40.00₴ | J14: 40.00₴ | K14: 40.00₴ | L14: 40.00₴ | M14: 40.00₴ | N14: 40.00₴ | O14: 480.00₴
B15: Телефон | C15: 250.00₴ | D15: 250.00₴ | E15: 250.00₴ | F15: 250.00₴ | G15: 250.00₴ | H15: 250.00₴ | I15: 250.00₴ | J15: 250.00₴ | K15: 250.00₴ | L15: 250.00₴ | M15: 250.00₴ | N15: 250.00₴ | O15: 3,000.00₴
B16: Інтернет | C16: 180.00₴ | D16: 180.00₴ | E16: 180.00₴ | F16: 180.00₴ | G16: 180.00₴ | H16: 180.00₴ | I16: 180.00₴ | J16: 180.00₴ | K16: 180.00₴ | L16: 180.00₴ | M16: 180.00₴ | N16: 180.00₴ | O16: 2,160.00₴
B17: Матеріально-технічне забезпечення офісу | C17: 200.00₴ | D17: 200.00₴ | E17: 200.00₴ | F17: 200.00₴ | G17: 200.00₴ | H17: 200.00₴ | I17: 200.00₴ | J17: 200.00₴ | K17: 200.00₴ | L17: 200.00₴ | M17: 200.00₴ | N17: 200.00₴ | O17: 2,400.00₴
B18: Безпека | C18: 600.00₴ | D18: 600.00₴ | E18: 600.00₴ | F18: 600.00₴ | G18: 600.00₴ | H18: 600.00₴ | I18: 600.00₴ | J18: 600.00₴ | K18: 600.00₴ | L18: 600.00₴ | M18: 600.00₴ | N18: 600.00₴ | O18: 7,200.00₴
B19: Проміжний підсумок | C19: =SUBTOTAL(109,ЗапланованіВитратиНаОфіс[Січ]) -> 11,370.00₴ | D19: =SUBTOTAL(109,ЗапланованіВитратиНаОфіс[Лют]) -> 11,770.00₴ | E19: =SUBTOTAL(109,ЗапланованіВитратиНаОфіс[Бер]) -> 11,770.00₴ | F19: =SUBTOTAL(109,ЗапланованіВитратиНаОфіс[Кві]) -> 11,470.00₴ | G19: =SUBTOTAL(109,ЗапланованіВитратиНаОфіс[Тра]) -> 11,470.00₴ | H19: =SUBTOTAL(109,ЗапланованіВитратиНаОфіс[Чер]) -> 11,470.00₴ | I19: =SUBTOTAL(109,ЗапланованіВитратиНаОфіс[Лип]) -> 11,470.00₴ | J19: =SUBTOTAL(109,ЗапланованіВитратиНаОфіс[Cер]) -> 11,470.00₴ | K19: =SUBTOTAL(109,ЗапланованіВитратиНаОфіс[Вер]) -> 11,470.00₴ | L19: =SUBTOTAL(109,ЗапланованіВитратиНаОфіс[Жов]) -> 11,470.00₴ | M19: =SUBTOTAL(109,ЗапланованіВитратиНаОфіс[Лис]) -> 11,770.00₴ | N19: =SUBTOTAL(109,ЗапланованіВитратиНаОфіс[Гру]) -> 11,770.00₴ | O19: =SUBTOTAL(109,ЗапланованіВитратиНаОфіс[РІК]) -> 138,740.00₴
A21: Введіть заплановані витрати на маркетингову кампанію в таблицю, починаючи з клітинки праворуч. Подальші вказівки наведено в клітинці A30. | B21: Витрати на маркетинг | C21: Січ | D21: Лют | E21: Бер | F21: Кві | G21: Тра | H21: Чер | I21: Лип | J21: Cер | K21: Вер | L21: Жов | M21: Лис | N21: Гру | O21: РІК
B22: Розміщення веб-сайту | C22: 500.00₴ | D22: 500.00₴ | E22: 500.00₴ | F22: 500.00₴ | G22: 500.00₴ | H22: 500.00₴ | I22: 500.00₴ | J22: 500.00₴ | K22: 500.00₴ | L22: 500.00₴ | M22: 500.00₴ | N22: 500.00₴ | O22: =SUM(C22:N22) -> 6,000.00₴
B23: Оновлення веб-сайту | C23: 200.00₴ | D23: 200.00₴ | E23: 200.00₴ | F23: 200.00₴ | G23: 200.00₴ | H23: 1,000.00₴ | I23: 200.00₴ | J23: 200.00₴ | K23: 200.00₴ | L23: 200.00₴ | M23: 200.00₴ | N23: 1,000.00₴ | O23: 4,000.00₴
B24: Підготовка супровідних матеріалів | C24: 5,000.00₴ | D24: 0.00₴ | E24: 0.00₴ | F24: 5,000.00₴ | G24: 0.00₴ | H24: 0.00₴ | I24: 5,000.00₴ | J24: 0.00₴ | K24: 0.00₴ | L24: 5,000.00₴ | M24: 0.00₴ | N24: 0.00₴ | O24: 20,000.00₴
B25: Друк супровідних матеріалів | C25: 200.00₴ | D25: 200.00₴ | E25: 200.00₴ | F25: 200.00₴ | G25: 200.00₴ | H25: 200.00₴ | I25: 200.00₴ | J25: 200.00₴ | K25: 200.00₴ | L25: 200.00₴ | M25: 200.00₴ | N25: 200.00₴ | O25: 2,400.00₴
B26: Маркетингові заходи | C26: 2,000.00₴ | D26: 2,000.00₴ | E26: 2,000.00₴ | F26: 5,000.00₴ | G26: 2,000.00₴ | H26: 2,000.00₴ | I26: 2,000.00₴ | J26: 5,000.00₴ | K26: 2,000.00₴ | L26: 2,000.00₴ | M26: 2,000.00₴ | N26: 5,000.00₴ | O26: 33,000.00₴
B27: Інші витрати | C27: 200.00₴ | D27: 200.00₴ | E27: 200.00₴ | F27: 200.00₴ | G27: 200.00₴ | H27: 200.00₴ | I27: 200.00₴ | J27: 200.00₴ | K27: 200.00₴ | L27: 200.00₴ | M27: 200.00₴ | N27: 200.00₴ | O27: 2,400.00₴
B28: Проміжний підсумок | C28: =SUBTOTAL(109,ЗапланованіВитратиНаМаркетинг[Січ]) -> 8,100.00₴ | D28: =SUBTOTAL(109,ЗапланованіВитратиНаМаркетинг[Лют]) -> 3,100.00₴ | E28: =SUBTOTAL(109,ЗапланованіВитратиНаМаркетинг[Бер]) -> 3,100.00₴ | F28: =SUBTOTAL(109,ЗапланованіВитратиНаМаркетинг[Кві]) -> 11,100.00₴ | G28: =SUBTOTAL(109,ЗапланованіВитратиНаМаркетинг[Тра]) -> 3,100.00₴ | H28: =SUBTOTAL(109,ЗапланованіВитратиНаМаркетинг[Чер]) -> 3,900.00₴ | I28: =SUBTOTAL(109,ЗапланованіВитратиНаМаркетинг[Лип]) -> 8,100.00₴ | J28: =SUBTOTAL(109,ЗапланованіВитратиНаМаркетинг[Cер]) -> 6,100.00₴ | K28: =SUBTOTAL(109,ЗапланованіВитратиНаМаркетинг[Вер]) -> 3,100.00₴ | L28: =SUBTOTAL(109,ЗапланованіВитратиНаМаркетинг[Жов]) -> 8,100.00₴ | M28: =SUBTOTAL(109,ЗапланованіВитратиНаМаркетинг[Лис]) -> 3,100.00₴ | N28: =SUBTOTAL(109,ЗапланованіВитратиНаМаркетинг[Гру]) -> 6,900.00₴ | O28: =SUBTOTAL(109,ЗапланованіВитратиНаМаркетинг[РІК]) -> 67,800.00₴
A30: Введіть заплановані витрати на підготовчі курси та відрядження в таблицю, починаючи з клітинки праворуч. Подальші вказівки наведено в клітинці A35. | B30: Курси та відрядження | C30: Січ | D30: Лют | E30: Бер | F30: Кві | G30: Тра | H30: Чер | I30: Лип | J30: Cер | K30: Вер | L30: Жов | M30: Лис | N30: Гру | O30: РІК
B31: Підготовчі курси | C31: 2,000.00₴ | D31: 2,000.00₴ | E31: 2,000.00₴ | F31: 2,000.00₴ | G31: 2,000.00₴ | H31: 2,000.00₴ | I31: 2,000.00₴ | J31: 2,000.00₴ | K31: 2,000.00₴ | L31: 2,000.00₴ | M31: 2,000.00₴ | N31: 2,000.00₴ | O31: =SUM(C31:N31) -> 24,000.00₴
B32: Витрати на відрядження, пов’язані з курсами | C32: 2,000.00₴ | D32: 2,000.00₴ | E32: 2,000.00₴ | F32: 2,000.00₴ | G32: 2,000.00₴ | H32: 2,000.00₴ | I32: 2,000.00₴ | J32: 2,000.00₴ | K32: 2,000.00₴ | L32: 2,000.00₴ | M32: 2,000.00₴ | N32: 2,000.00₴ | O32: =SUM(C32:N32) -> 24,000.00₴
B33: Проміжний підсумок | C33: =SUBTOTAL(109,ЗапланованіВитратиНаКурсиТаВідрядження[Січ]) -> 4,000.00₴ | D33: =SUBTOTAL(109,ЗапланованіВитратиНаКурсиТаВідрядження[Лют]) -> 4,000.00₴ | E33: =SUBTOTAL(109,ЗапланованіВитратиНаКурсиТаВідрядження[Бер]) -> 4,000.00₴ | F33: =SUBTOTAL(109,ЗапланованіВитратиНаКурсиТаВідрядження[Кві]) -> 4,000.00₴ | G33: =SUBTOTAL(109,ЗапланованіВитратиНаКурсиТаВідрядження[Тра]) -> 4,000.00₴ | H33: =SUBTOTAL(109,ЗапланованіВитратиНаКурсиТаВідрядження[Чер]) -> 4,000.00₴ | I33: =SUBTOTAL(109,ЗапланованіВитратиНаКурсиТаВідрядження[Лип]) -> 4,000.00₴ | J33: =SUBTOTAL(109,ЗапланованіВитратиНаКурсиТаВідрядження[Cер]) -> 4,000.00₴ | K33: =SUBTOTAL(109,ЗапланованіВитратиНаКурсиТаВідрядження[Вер]) -> 4,000.00₴ | L33: =SUBTOTAL(109,ЗапланованіВитратиНаКурсиТаВідрядження[Жов]) -> 4,000.00₴ | M33: =SUBTOTAL(109,ЗапланованіВитратиНаКурсиТаВідрядження[Лис]) -> 4,000.00₴ | N33: =SUBTOTAL(109,ЗапланованіВитратиНаКурсиТаВідрядження[Гру]) -> 4,000.00₴ | O33: =SUBTOTAL(109,ЗапланованіВитратиНаКурсиТаВідрядження[РІК]) -> 48,000.00₴
A35: Підсумки автоматично обчислюються в таблиці запланованих загальних витрат, починаючи з клітинки праворуч. | B35: УСЬОГО | C35: Січ | D35: Лют | E35: Бер | F35: Кві | G35: Тра | H35: Чер | I35: Лип | J35: Cер | K35: Вер | L35: Жов | M35: Лис | N35: Гру | O35: Рік
B36: Щомісячні заплановані витрати | C36: =ЗапланованіВитратиНаКурсиТаВідрядження[[#Totals],[Січ]]+ЗапланованіВитратиНаМаркетинг[[#Totals],[Січ]]+ЗапланованіВитратиНаОфіс[[#Totals],[Січ]]+ЗапланованіВитратиНаПрацівників[[#Totals],[Січ]] -> 131,420.00₴ | D36: =ЗапланованіВитратиНаКурсиТаВідрядження[[#Totals],[Лют]]+ЗапланованіВитратиНаМаркетинг[[#Totals],[Лют]]+ЗапланованіВитратиНаОфіс[[#Totals],[Лют]]+ЗапланованіВитратиНаПрацівників[[#Totals],[Лют]] -> 126,820.00₴ | E36: =ЗапланованіВитратиНаКурсиТаВідрядження[[#Totals],[Бер]]+ЗапланованіВитратиНаМаркетинг[[#Totals],[Бер]]+ЗапланованіВитратиНаОфіс[[#Totals],[Бер]]+ЗапланованіВитратиНаПрацівників[[#Totals],[Бер]] -> 126,820.00₴ | F36: =ЗапланованіВитратиНаКурсиТаВідрядження[[#Totals],[Кві]]+ЗапланованіВитратиНаМаркетинг[[#Totals],[Кві]]+ЗапланованіВитратиНаОфіс[[#Totals],[Кві]]+ЗапланованіВитратиНаПрацівників[[#Totals],[Кві]] -> 137,695.00₴ | G36: =ЗапланованіВитратиНаКурсиТаВідрядження[[#Totals],[Тра]]+ЗапланованіВитратиНаМаркетинг[[#Totals],[Тра]]+ЗапланованіВитратиНаОфіс[[#Totals],[Тра]]+ЗапланованіВитратиНаПрацівників[[#Totals],[Тра]] -> 129,695.00₴ | H36: =ЗапланованіВитратиНаКурсиТаВідрядження[[#Totals],[Чер]]+ЗапланованіВитратиНаМаркетинг[[#Totals],[Чер]]+ЗапланованіВитратиНаОфіс[[#Totals],[Чер]]+ЗапланованіВитратиНаПрацівників[[#Totals],[Чер]] -> 130,495.00₴ | I36: =ЗапланованіВитратиНаКурсиТаВідрядження[[#Totals],[Лип]]+ЗапланованіВитратиНаМаркетинг[[#Totals],[Лип]]+ЗапланованіВитратиНаОфіс[[#Totals],[Лип]]+ЗапланованіВитратиНаПрацівників[[#Totals],[Лип]] -> 134,695.00₴ | J36: =ЗапланованіВитратиНаКурсиТаВідрядження[[#Totals],[Cер]]+ЗапланованіВитратиНаМаркетинг[[#Totals],[Cер]]+ЗапланованіВитратиНаОфіс[[#Totals],[Cер]]+ЗапланованіВитратиНаПрацівників[[#Totals],[Cер]] -> 138,918.00₴ | K36: =ЗапланованіВитратиНаКурсиТаВідрядження[[#Totals],[Вер]]+ЗапланованіВитратиНаМаркетинг[[#Totals],[Вер]]+ЗапланованіВитратиНаОфіс[[#Totals],[Вер]]+ЗапланованіВитратиНаПрацівників[[#Totals],[Вер]] -> 135,918.00₴ | L36: =ЗапланованіВитратиНаКурсиТаВідрядження[[#Totals],[Жов]]+ЗапланованіВитратиНаМаркетинг[[#Totals],[Жов]]+ЗапланованіВитратиНаОфіс[[#Totals],[Жов]]+ЗапланованіВитратиНаПрацівників[[#Totals],[Жов]] -> 140,918.00₴ | M36: =ЗапланованіВитратиНаКурсиТаВідрядження[[#Totals],[Лис]]+ЗапланованіВитратиНаМаркетинг[[#Totals],[Лис]]+ЗапланованіВитратиНаОфіс[[#Totals],[Лис]]+ЗапланованіВитратиНаПрацівників[[#Totals],[Лис]] -> 136,218.00₴ | N36: =ЗапланованіВитратиНаКурсиТаВідрядження[[#Totals],[Гру]]+ЗапланованіВитратиНаМаркетинг[[#Totals],[Гру]]+ЗапланованіВитратиНаОфіс[[#Totals],[Гру]]+ЗапланованіВитратиНаПрацівників[[#Totals],[Гру]] -> 140,018.00₴ | O36: =ЗапланованіВитратиНаКурсиТаВідрядження[[#Totals],[РІК]]+ЗапланованіВитратиНаМаркетинг[[#Totals],[РІК]]+ЗапланованіВитратиНаОфіс[[#Totals],[РІК]]+ЗапланованіВитратиНаПрацівників[[#Totals],[РІК]] -> 1,609,630.00₴
B37: Загальні заплановані витрати | C37: =SUM($C$36:C36) -> 131,420.00₴ | D37: =SUM($C$36:D36) -> 258,240.00₴ | E37: =SUM($C$36:E36) -> 385,060.00₴ | F37: =SUM($C$36:F36) -> 522,755.00₴ | G37: =SUM($C$36:G36) -> 652,450.00₴ | H37: =SUM($C$36:H36) -> 782,945.00₴ | I37: =SUM($C$36:I36) -> 917,640.00₴ | J37: =SUM($C$36:J36) -> 1,056,558.00₴ | K37: =SUM($C$36:K36) -> 1,192,476.00₴ | L37: =SUM($C$36:L36) -> 1,333,394.00₴ | M37: =SUM($C$36:M36) -> 1,469,612.00₴ | N37: =SUM($C$36:N36) -> 1,609,630.00₴

Sheet ФАКТИЧНІ ВИТРАТИ
A1: Введіть фактичні витрати на працівників, офіс, маркетинг, підготовчі курси та відрядження у відповідні таблиці на цьому аркуші. Підсумки обчислюються автоматично. Корисні вказівки щодо роботи з цим аркушем наведено в клітинках у цьому стовпці. Клацніть стрілку вниз, щоб почати.
A2: Назва компанії автоматично оновлюється в клітинці праворуч. Заголовок цього аркуша наведено в клітинці K2. Додайте емблему до клітинки N2. | B2: ='ЗАПЛАНОВАНІ ВИТРАТИ'!B2:D3 -> Назва компанії | K2: =заголовок_аркуша -> Докладна оцінка витрат | N2: Заповнювач для емблеми наведено в цій клітинці.
A3: Пораду наведено в клітинці K3. | K3: У затемнених клітинках наведено обчислені суми.
A4: Підпис "Фактичні витрати" наведено в клітинці праворуч, назви місяців – у клітинках C4:N4, а підпис "Рік" – у клітинці O4. | B4: ФАКТИЧНІ ВИТРАТИ | C4: СІЧ | D4: ЛЮТ | E4: БЕР | F4: КВІ | G4: ТРА | H4: ЧЕР | I4: ЛИП | J4: СЕР | K4: ВЕР | L4: ЖОВ | M4: ЛИС | N4: ГРУ | O4: РІК
A5: Введіть фактичні витрати на працівників у таблицю, починаючи з клітинки праворуч. Подальші вказівки наведено в клітинці A10. | B5: Витрати на працівників | C5: Січ | D5: Лют | E5: Бер | F5: Кві | G5: Тра | H5: Чер | I5: Лип | J5: Cер | K5: Вер | L5: Жов | M5: Лис | N5: Гру | O5: РІК
B6: Заробітна плата | C6: 85,000.00₴ | D6: 85,000.00₴ | E6: 85,000.00₴ | F6: 88,000.00₴ | G6: 88,000.00₴ | H6: 88,000.00₴ | O6: =SUM(C6:N6) -> 519,000.00₴
B7: Пільги | C7: =C6*0.27 -> 22,950.00₴ | D7: 22,950.00₴ | E7: 22,950.00₴ | F7: 23,760.00₴ | G7: 23,760.00₴ | H7: 23,760.00₴ | I7: 0.00₴ | J7: 0.00₴ | K7: 0.00₴ | L7: 0.00₴ | M7: 0.00₴ | N7: 0.00₴ | O7: =SUM(C7:N7) -> 140,130.00₴
B8: Проміжний підсумок | C8: =SUBTOTAL(109,ФактичніВитратиНаПрацівників[Січ]) -> 107,950.00₴ | D8: =SUBTOTAL(109,ФактичніВитратиНаПрацівників[Лют]) -> 107,950.00₴ | E8: =SUBTOTAL(109,ФактичніВитратиНаПрацівників[Бер]) -> 107,950.00₴ | F8: =SUBTOTAL(109,ФактичніВитратиНаПрацівників[Кві]) -> 111,760.00₴ | G8: =SUBTOTAL(109,ФактичніВитратиНаПрацівників[Тра]) -> 111,760.00₴ | H8: =SUBTOTAL(109,ФактичніВитратиНаПрацівників[Чер]) -> 111,760.00₴ | I8: =SUBTOTAL(109,ФактичніВитратиНаПрацівників[Лип]) -> 0.00₴ | J8: =SUBTOTAL(109,ФактичніВитратиНаПрацівників[Cер]) -> 0.00₴ | K8: =SUBTOTAL(109,ФактичніВитратиНаПрацівників[Вер]) -> 0.00₴ | L8: =SUBTOTAL(109,ФактичніВитратиНаПрацівників[Жов]) -> 0.00₴ | M8: =SUBTOTAL(109,ФактичніВитратиНаПрацівників[Лис]) -> 0.00₴ | N8: =SUBTOTAL(109,ФактичніВитратиНаПрацівників[Гру]) -> 0.00₴ | O8: =SUBTOTAL(109,ФактичніВитратиНаПрацівників[РІК]) -> 659,130.00₴
A10: Введіть фактичні витрати на офіс у таблицю, починаючи з клітинки праворуч. Подальші вказівки наведено в клітинці A21. | B10: Витрати на офіс | C10: Січ | D10: Лют | E10: Бер | F10: Кві | G10: Тра | H10: Чер | I10: Лип | J10: Cер | K10: Вер | L10: Жов | M10: Лис | N10: Гру | O10: РІК
B11: Оренда офісу | C11: 9,800.00₴ | D11: 9,800.00₴ | E11: 9,800.00₴ | F11: 9,800.00₴ | G11: 9,800.00₴ | H11: 9,800.00₴ | O11: =SUM(C11:N11) -> 58,800.00₴
B12: Газ | C12: 4.00₴ | D12: 430.00₴ | E12: 385.00₴ | F12: 230.00₴ | G12: 87.00₴ | H12: 88.00₴ | O12: 1,224.00₴
B13: Електроенергія | C13: 288.00₴ | D13: 278.00₴ | E13: 268.00₴ | F13: 299.00₴ | G13: 306.00₴ | H13: 290.00₴ | O13: 1,729.00₴
B14: Вода | C14: 35.00₴ | D14: 33.00₴ | E14: 34.00₴ | F14: 36.00₴ | G14: 34.00₴ | H14: 36.00₴ | O14: 208.00₴
B15: Телефон | C15: 224.00₴ | D15: 235.00₴ | E15: 265.00₴ | F15: 245.00₴ | G15: 245.00₴ | H15: 220.00₴ | O15: 1,434.00₴
B16: Інтернет | C16: 180.00₴ | D16: 180.00₴ | E16: 180.00₴ | F16: 180.00₴ | G16: 180.00₴ | H16: 180.00₴ | O16: 1,080.00₴
B17: Матеріально-технічне забезпечення офісу | C17: 256.00₴ | D17: 142.00₴ | E17: 160.00₴ | F17: 221.00₴ | G17: 256.00₴ | H17: 240.00₴ | O17: 1,275.00₴
B18: Безпека | C18: 600.00₴ | D18: 600.00₴ | E18: 600.00₴ | F18: 600.00₴ | G18: 600.00₴ | H18: 600.00₴ | O18: 3,600.00₴
B19: Проміжний підсумок | C19: =SUBTOTAL(109,ФактичніВитратиНаОфіс[Січ]) -> 11,387.00₴ | D19: =SUBTOTAL(109,ФактичніВитратиНаОфіс[Лют]) -> 11,698.00₴ | E19: =SUBTOTAL(109,ФактичніВитратиНаОфіс[Бер]) -> 11,692.00₴ | F19: =SUBTOTAL(109,ФактичніВитратиНаОфіс[Кві]) -> 11,611.00₴ | G19: =SUBTOTAL(109,ФактичніВитратиНаОфіс[Тра]) -> 11,508.00₴ | H19: =SUBTOTAL(109,ФактичніВитратиНаОфіс[Чер]) -> 11,454.00₴ | I19: =SUBTOTAL(109,ФактичніВитратиНаОфіс[Лип]) -> 0.00₴ | J19: =SUBTOTAL(109,ФактичніВитратиНаОфіс[Cер]) -> 0.00₴ | K19: =SUBTOTAL(109,ФактичніВитратиНаОфіс[Вер]) -> 0.00₴ | L19: =SUBTOTAL(109,ФактичніВитратиНаОфіс[Жов]) -> 0.00₴ | M19: =SUBTOTAL(109,ФактичніВитратиНаОфіс[Лис]) -> 0.00₴ | N19: =SUBTOTAL(109,ФактичніВитратиНаОфіс[Гру]) -> 0.00₴ | O19: =SUBTOTAL(109,ФактичніВитратиНаОфіс[РІК]) -> 69,350.00₴
A21: Введіть фактичні витрати на маркетинг кампанію в таблицю, починаючи з клітинки праворуч. Подальші вказівки наведено в клітинці A30. | B21: Витрати на маркетинг | C21: Січ | D21: Лют | E21: Бер | F21: Кві | G21: Тра | H21: Чер | I21: Лип | J21: Cер | K21: Вер | L21: Жов | M21: Лис | N21: Гру | O21: РІК
B22: Розміщення веб-сайту | C22: 500.00₴ | D22: 500.00₴ | E22: 500.00₴ | F22: 500.00₴ | G22: 500.00₴ | H22: 500.00₴ | O22: =SUM(C22:N22) -> 3,000.00₴
B23: Оновлення веб-сайту | C23: 200.00₴ | D23: 200.00₴ | E23: 200.00₴ | F23: 200.00₴ | G23: 200.00₴ | H23: 1,500.00₴ | O23: 2,500.00₴
B24: Підготовка супровідних матеріалів | C24: 4,800.00₴ | D24: 0.00₴ | E24: 0.00₴ | F24: 5,500.00₴ | G24: 0.00₴ | H24: 0.00₴ | O24: 10,300.00₴
B25: Друк супровідних матеріалів | C25: 100.00₴ | D25: 500.00₴ | E25: 100.00₴ | F25: 100.00₴ | G25: 600.00₴ | H25: 180.00₴ | O25: 1,580.00₴
B26: Маркетингові заходи | C26: 1,800.00₴ | D26: 2,200.00₴ | E26: 2,200.00₴ | F26: 4,700.00₴ | G26: 1,500.00₴ | H26: 2,300.00₴ | O26: 14,700.00₴
B27: Інші витрати | C27: 145.00₴ | D27: 156.00₴ | E27: 123.00₴ | F27: 223.00₴ | G27: 187.00₴ | H27: 245.00₴ | O27: 1,079.00₴
B28: Проміжний підсумок | C28: =SUBTOTAL(109,ФактичніВитратиНаМаркетинг[Січ]) -> 7,545.00₴ | D28: =SUBTOTAL(109,ФактичніВитратиНаМаркетинг[Лют]) -> 3,556.00₴ | E28: =SUBTOTAL(109,ФактичніВитратиНаМаркетинг[Бер]) -> 3,123.00₴ | F28: =SUBTOTAL(109,ФактичніВитратиНаМаркетинг[Кві]) -> 11,223.00₴ | G28: =SUBTOTAL(109,ФактичніВитратиНаМаркетинг[Тра]) -> 2,987.00₴ | H28: =SUBTOTAL(109,ФактичніВитратиНаМаркетинг[Чер]) -> 4,725.00₴ | I28: =SUBTOTAL(109,ФактичніВитратиНаМаркетинг[Лип]) -> 0.00₴ | J28: =SUBTOTAL(109,ФактичніВитратиНаМаркетинг[Cер]) -> 0.00₴ | K28: =SUBTOTAL(109,ФактичніВитратиНаМаркетинг[Вер]) -> 0.00₴ | L28: =SUBTOTAL(109,ФактичніВитратиНаМаркетинг[Жов]) -> 0.00₴ | M28: =SUBTOTAL(109,ФактичніВитратиНаМаркетинг[Лис]) -> 0.00₴ | N28: =SUBTOTAL(109,ФактичніВитратиНаМаркетинг[Гру]) -> 0.00₴ | O28: =SUBTOTAL(109,ФактичніВитратиНаМаркетинг[РІК]) -> 33,159.00₴
A30: Введіть фактичні витрати на підготовчі курси та відрядження в таблицю, починаючи з клітинки праворуч. Подальші вказівки наведено в клітинці A35. | B30: Курси та відрядження | C30: Січ | D30: Лют | E30: Бер | F30: Кві | G30: Тра | H30: Чер | I30: Лип | J30: Cер | K30: Вер | L30: Жов | M30: Лис | N30: Гру | O30: РІК
B31: Підготовчі курси | C31: 1,600.00₴ | D31: 2,400.00₴ | E31: 1,400.00₴ | F31: 1,600.00₴ | G31: 1,200.00₴ | H31: 2,800.00₴ | O31: =SUM(C31:N31) -> 11,000.00₴
B32: Витрати на відрядження, пов’язані з курсами | C32: 1,200.00₴ | D32: 2,200.00₴ | E32: 1,400.00₴ | F32: 1,200.00₴ | G32: 800.00₴ | H32: 3,500.00₴ | O32: =SUM(C32:N32) -> 10,300.00₴
B33: Проміжний підсумок | C33: =SUBTOTAL(109,ФактичніВитратиНаКурсиТаВідрядження[Січ]) -> 2,800.00₴ | D33: =SUBTOTAL(109,ФактичніВитратиНаКурсиТаВідрядження[Лют]) -> 4,600.00₴ | E33: =SUBTOTAL(109,ФактичніВитратиНаКурсиТаВідрядження[Бер]) -> 2,800.00₴ | F33: =SUBTOTAL(109,ФактичніВитратиНаКурсиТаВідрядження[Кві]) -> 2,800.00₴ | G33: =SUBTOTAL(109,ФактичніВитратиНаКурсиТаВідрядження[Тра]) -> 2,000.00₴ | H33: =SUBTOTAL(109,ФактичніВитратиНаКурсиТаВідрядження[Чер]) -> 6,300.00₴ | I33: =SUBTOTAL(109,ФактичніВитратиНаКурсиТаВідрядження[Лип]) -> 0.00₴ | J33: =SUBTOTAL(109,ФактичніВитратиНаКурсиТаВідрядження[Cер]) -> 0.00₴ | K33: =SUBTOTAL(109,ФактичніВитратиНаКурсиТаВідрядження[Вер]) -> 0.00₴ | L33: =SUBTOTAL(109,ФактичніВитратиНаКурсиТаВідрядження[Жов]) -> 0.00₴ | M33: =SUBTOTAL(109,ФактичніВитратиНаКурсиТаВідрядження[Лис]) -> 0.00₴ | N33: =SUBTOTAL(109,ФактичніВитратиНаКурсиТаВідрядження[Гру]) -> 0.00₴ | O33: =SUBTOTAL(109,ФактичніВитратиНаКурсиТаВідрядження[РІК]) -> 21,300.00₴
A35: Загальні фактичні витрати автоматично обчислюються в таблиці, починаючи з клітинки праворуч. | B35: Загальні заплановані витрати | C35: Січ | D35: Лют | E35: Бер | F35: Кві | G35: Тра | H35: Чер | I35: Лип | J35: Cер | K35: Вер | L35: Жов | M35: Лис | N35: Гру | O35: Рік
B36: Щомісячні фактичні витрати | C36: =ФактичніВитратиНаКурсиТаВідрядження[[#Totals],[Січ]]+ФактичніВитратиНаМаркетинг[[#Totals],[Січ]]+ФактичніВитратиНаОфіс[[#Totals],[Січ]]+ФактичніВитратиНаПрацівників[[#Totals],[Січ]] -> 129,682.00₴ | D36: =ФактичніВитратиНаКурсиТаВідрядження[[#Totals],[Лют]]+ФактичніВитратиНаМаркетинг[[#Totals],[Лют]]+ФактичніВитратиНаОфіс[[#Totals],[Лют]]+ФактичніВитратиНаПрацівників[[#Totals],[Лют]] -> 127,804.00₴ | E36: =ФактичніВитратиНаКурсиТаВідрядження[[#Totals],[Бер]]+ФактичніВитратиНаМаркетинг[[#Totals],[Бер]]+ФактичніВитратиНаОфіс[[#Totals],[Бер]]+ФактичніВитратиНаПрацівників[[#Totals],[Бер]] -> 125,565.00₴ | F36: =ФактичніВитратиНаКурсиТаВідрядження[[#Totals],[Кві]]+ФактичніВитратиНаМаркетинг[[#Totals],[Кві]]+ФактичніВитратиНаОфіс[[#Totals],[Кві]]+ФактичніВитратиНаПрацівників[[#Totals],[Кві]] -> 137,394.00₴ | G36: =ФактичніВитратиНаКурсиТаВідрядження[[#Totals],[Тра]]+ФактичніВитратиНаМаркетинг[[#Totals],[Тра]]+ФактичніВитратиНаОфіс[[#Totals],[Тра]]+ФактичніВитратиНаПрацівників[[#Totals],[Тра]] -> 128,255.00₴ | H36: =ФактичніВитратиНаКурсиТаВідрядження[[#Totals],[Чер]]+ФактичніВитратиНаМаркетинг[[#Totals],[Чер]]+ФактичніВитратиНаОфіс[[#Totals],[Чер]]+ФактичніВитратиНаПрацівників[[#Totals],[Чер]] -> 134,239.00₴ | I36: =ФактичніВитратиНаКурсиТаВідрядження[[#Totals],[Лип]]+ФактичніВитратиНаМаркетинг[[#Totals],[Лип]]+ФактичніВитратиНаОфіс[[#Totals],[Лип]]+ФактичніВитратиНаПрацівників[[#Totals],[Лип]] -> 0.00₴ | J36: =ФактичніВитратиНаКурсиТаВідрядження[[#Totals],[Cер]]+ФактичніВитратиНаМаркетинг[[#Totals],[Cер]]+ФактичніВитратиНаОфіс[[#Totals],[Cер]]+ФактичніВитратиНаПрацівників[[#Totals],[Cер]] -> 0.00₴ | K36: =ФактичніВитратиНаКурсиТаВідрядження[[#Totals],[Вер]]+ФактичніВитратиНаМаркетинг[[#Totals],[Вер]]+ФактичніВитратиНаОфіс[[#Totals],[Вер]]+ФактичніВитратиНаПрацівників[[#Totals],[Вер]] -> 0.00₴ | L36: =ФактичніВитратиНаКурсиТаВідрядження[[#Totals],[Жов]]+ФактичніВитратиНаМаркетинг[[#Totals],[Жов]]+ФактичніВитратиНаОфіс[[#Totals],[Жов]]+ФактичніВитратиНаПрацівників[[#Totals],[Жов]] -> 0.00₴ | M36: =ФактичніВитратиНаКурсиТаВідрядження[[#Totals],[Лис]]+ФактичніВитратиНаМаркетинг[[#Totals],[Лис]]+ФактичніВитратиНаОфіс[[#Totals],[Лис]]+ФактичніВитратиНаПрацівників[[#Totals],[Лис]] -> 0.00₴ | N36: =ФактичніВитратиНаКурсиТаВідрядження[[#Totals],[Гру]]+ФактичніВитратиНаМаркетинг[[#Totals],[Гру]]+ФактичніВитратиНаОфіс[[#Totals],[Гру]]+ФактичніВитратиНаПрацівників[[#Totals],[Гру]] -> 0.00₴ | O36: =ФактичніВитратиНаКурсиТаВідрядження[[#Totals],[РІК]]+ФактичніВитратиНаМаркетинг[[#Totals],[РІК]]+ФактичніВитратиНаОфіс[[#Totals],[РІК]]+ФактичніВитратиНаПрацівників[[#Totals],[РІК]] -> 782,939.00₴
B37: Загальні фактичні витрати | C37: =SUM($C$36:C36) -> 129,682.00₴ | D37: =SUM($C$36:D36) -> 257,486.00₴ | E37: =SUM($C$36:E36) -> 383,051.00₴ | F37: =SUM($C$36:F36) -> 520,445.00₴ | G37: =SUM($C$36:G36) -> 648,700.00₴ | H37: =SUM($C$36:H36) -> 782,939.00₴ | I37: =SUM($C$36:I36) -> 782,939.00₴ | J37: =SUM($C$36:J36) -> 782,939.00₴ | K37: =SUM($C$36:K36) -> 782,939.00₴ | L37: =SUM($C$36:L36) -> 782,939.00₴ | M37: =SUM($C$36:M36) -> 782,939.00₴ | N37: =SUM($C$36:N36) -> 782,939.00₴

Sheet РІЗНИЦЯ ВИТРАТ
A1: Різниця витрат на працівників, офіс, маркетинг, підготовчі курси та відрядження автоматично обчислюються у відповідних таблицях на цьому аркуші. Корисні вказівки щодо роботи з цим аркушем наведено в клітинках у цьому стовпці. Клацніть стрілку вниз, щоб почати.
A2: Назва компанії автоматично оновлюється в клітинці праворуч. Заголовок цього аркуша наведено в клітинці K2. Додайте емблему до клітинки N2. | B2: ='ЗАПЛАНОВАНІ ВИТРАТИ'!B2:D3 -> Назва компанії | K2: =заголовок_аркуша -> Докладна оцінка витрат | N2: Заповнювач для емблеми наведено в цій клітинці.
A3: Пораду наведено в клітинці K3. | K3: У затемнених клітинках наведено обчислені суми.
A4: Підпис "Різниця витрат" наведено в клітинці праворуч, назви місяців – у клітинках C4:N4, а підпис "Рік" – у клітинці O4. | B4: РІЗНИЦЯ ВИТРАТ | C4: СІЧ | D4: ЛЮТ | E4: БЕР | F4: КВІ | G4: ТРА | H4: ЧЕР | I4: ЛИП | J4: СЕР | K4: ВЕР | L4: ЖОВ | M4: ЛИС | N4: ГРУ | O4: РІК
A5: Різниця витрат на працівників автоматично обчислюється в таблиці, починаючи з клітинки праворуч. Подальші вказівки наведено в клітинці A10. | B5: Витрати на працівників | C5: Січ | D5: Лют | E5: Бер | F5: Кві | G5: Тра | H5: Чер | I5: Лип | J5: Cер | K5: Вер | L5: Жов | M5: Лис | N5: Гру | O5: РІК
B6: Заробітна плата | C6: =INDEX(ЗапланованіВитратиНаПрацівників[],MATCH(INDEX(РізницяВитратНаПрацівників[],ROW()-ROW(РізницяВитратНаПрацівників[[#Headers],[Січ]]),1),INDEX(ЗапланованіВитратиНаПрацівників[],,1),0),MATCH(РізницяВитратНаПрацівників[[#Headers],[Січ]],ЗапланованіВитратиНаПрацівників[#Headers],0))-INDEX(ФактичніВитратиНаПрацівників[],MATCH(INDEX(РізницяВитратНаПрацівників[],ROW()-ROW(РізницяВитратНаПрацівників[[#Headers],[Січ]]),1),INDEX(ЗапланованіВитратиНаПрацівників[],,1),0),MATCH(РізницяВитратНаПрацівників[[#Headers],[Січ]],ФактичніВитратиНаПрацівників[#Headers],0)) -> 0.00₴ | D6: =INDEX(ЗапланованіВитратиНаПрацівників[],MATCH(INDEX(РізницяВитратНаПрацівників[],ROW()-ROW(РізницяВитратНаПрацівників[[#Headers],[Лют]]),1),INDEX(ЗапланованіВитратиНаПрацівників[],,1),0),MATCH(РізницяВитратНаПрацівників[[#Headers],[Лют]],ЗапланованіВитратиНаПрацівників[#Headers],0))-INDEX(ФактичніВитратиНаПрацівників[],MATCH(INDEX(РізницяВитратНаПрацівників[],ROW()-ROW(РізницяВитратНаПрацівників[[#Headers],[Лют]]),1),INDEX(ЗапланованіВитратиНаПрацівників[],,1),0),MATCH(РізницяВитратНаПрацівників[[#Headers],[Лют]],ФактичніВитратиНаПрацівників[#Headers],0)) -> 0.00₴ | E6: =INDEX(ЗапланованіВитратиНаПрацівників[],MATCH(INDEX(РізницяВитратНаПрацівників[],ROW()-ROW(РізницяВитратНаПрацівників[[#Headers],[Бер]]),1),INDEX(ЗапланованіВитратиНаПрацівників[],,1),0),MATCH(РізницяВитратНаПрацівників[[#Headers],[Бер]],ЗапланованіВитратиНаПрацівників[#Headers],0))-INDEX(ФактичніВитратиНаПрацівників[],MATCH(INDEX(РізницяВитратНаПрацівників[],ROW()-ROW(РізницяВитратНаПрацівників[[#Headers],[Бер]]),1),INDEX(ЗапланованіВитратиНаПрацівників[],,1),0),MATCH(РізницяВитратНаПрацівників[[#Headers],[Бер]],ФактичніВитратиНаПрацівників[#Headers],0)) -> 0.00₴ | F6: =INDEX(ЗапланованіВитратиНаПрацівників[],MATCH(INDEX(РізницяВитратНаПрацівників[],ROW()-ROW(РізницяВитратНаПрацівників[[#Headers],[Кві]]),1),INDEX(ЗапланованіВитратиНаПрацівників[],,1),0),MATCH(РізницяВитратНаПрацівників[[#Headers],[Кві]],ЗапланованіВитратиНаПрацівників[#Headers],0))-INDEX(ФактичніВитратиНаПрацівників[],MATCH(INDEX(РізницяВитратНаПрацівників[],ROW()-ROW(РізницяВитратНаПрацівників[[#Headers],[Кві]]),1),INDEX(ЗапланованіВитратиНаПрацівників[],,1),0),MATCH(РізницяВитратНаПрацівників[[#Headers],[Кві]],ФактичніВитратиНаПрацівників[#Headers],0)) -> -500.00₴ | G6: =INDEX(ЗапланованіВитратиНаПрацівників[],MATCH(INDEX(РізницяВитратНаПрацівників[],ROW()-ROW(РізницяВитратНаПрацівників[[#Headers],[Тра]]),1),INDEX(ЗапланованіВитратиНаПрацівників[],,1),0),MATCH(РізницяВитратНаПрацівників[[#Headers],[Тра]],ЗапланованіВитратиНаПрацівників[#Headers],0))-INDEX(ФактичніВитратиНаПрацівників[],MATCH(INDEX(РізницяВитратНаПрацівників[],ROW()-ROW(РізницяВитратНаПрацівників[[#Headers],[Тра]]),1),INDEX(ЗапланованіВитратиНаПрацівників[],,1),0),MATCH(РізницяВитратНаПрацівників[[#Headers],[Тра]],ФактичніВитратиНаПрацівників[#Headers],0)) -> -500.00₴ | H6: =INDEX(ЗапланованіВитратиНаПрацівників[],MATCH(INDEX(РізницяВитратНаПрацівників[],ROW()-ROW(РізницяВитратНаПрацівників[[#Headers],[Чер]]),1),INDEX(ЗапланованіВитратиНаПрацівників[],,1),0),MATCH(РізницяВитратНаПрацівників[[#Headers],[Чер]],ЗапланованіВитратиНаПрацівників[#Headers],0))-INDEX(ФактичніВитратиНаПрацівників[],MATCH(INDEX(РізницяВитратНаПрацівників[],ROW()-ROW(РізницяВитратНаПрацівників[[#Headers],[Чер]]),1),INDEX(ЗапланованіВитратиНаПрацівників[],,1),0),MATCH(РізницяВитратНаПрацівників[[#Headers],[Чер]],ФактичніВитратиНаПрацівників[#Headers],0)) -> -500.00₴ | I6: =INDEX(ЗапланованіВитратиНаПрацівників[],MATCH(INDEX(РізницяВитратНаПрацівників[],ROW()-ROW(РізницяВитратНаПрацівників[[#Headers],[Лип]]),1),INDEX(ЗапланованіВитратиНаПрацівників[],,1),0),MATCH(РізницяВитратНаПрацівників[[#Headers],[Лип]],ЗапланованіВитратиНаПрацівників[#Headers],0))-INDEX(ФактичніВитратиНаПрацівників[],MATCH(INDEX(РізницяВитратНаПрацівників[],ROW()-ROW(РізницяВитратНаПрацівників[[#Headers],[Лип]]),1),INDEX(ЗапланованіВитратиНаПрацівників[],,1),0),MATCH(РізницяВитратНаПрацівників[[#Headers],[Лип]],ФактичніВитратиНаПрацівників[#Headers],0)) -> 87,500.00₴ | J6: =INDEX(ЗапланованіВитратиНаПрацівників[],MATCH(INDEX(РізницяВитратНаПрацівників[],ROW()-ROW(РізницяВитратНаПрацівників[[#Headers],[Cер]]),1),INDEX(ЗапланованіВитратиНаПрацівників[],,1),0),MATCH(РізницяВитратНаПрацівників[[#Headers],[Cер]],ЗапланованіВитратиНаПрацівників[#Headers],0))-INDEX(ФактичніВитратиНаПрацівників[],MATCH(INDEX(РізницяВитратНаПрацівників[],ROW()-ROW(РізницяВитратНаПрацівників[[#Headers],[Cер]]),1),INDEX(ЗапланованіВитратиНаПрацівників[],,1),0),MATCH(РізницяВитратНаПрацівників[[#Headers],[Cер]],ФактичніВитратиНаПрацівників[#Headers],0)) -> 92,400.00₴ | K6: =INDEX(ЗапланованіВитратиНаПрацівників[],MATCH(INDEX(РізницяВитратНаПрацівників[],ROW()-ROW(РізницяВитратНаПрацівників[[#Headers],[Вер]]),1),INDEX(ЗапланованіВитратиНаПрацівників[],,1),0),MATCH(РізницяВитратНаПрацівників[[#Headers],[Вер]],ЗапланованіВитратиНаПрацівників[#Headers],0))-INDEX(ФактичніВитратиНаПрацівників[],MATCH(INDEX(РізницяВитратНаПрацівників[],ROW()-ROW(РізницяВитратНаПрацівників[[#Headers],[Вер]]),1),INDEX(ЗапланованіВитратиНаПрацівників[],,1),0),MATCH(РізницяВитратНаПрацівників[[#Headers],[Вер]],ФактичніВитратиНаПрацівників[#Headers],0)) -> 92,400.00₴ | L6: =INDEX(ЗапланованіВитратиНаПрацівників[],MATCH(INDEX(РізницяВитратНаПрацівників[],ROW()-ROW(РізницяВитратНаПрацівників[[#Headers],[Жов]]),1),INDEX(ЗапланованіВитратиНаПрацівників[],,1),0),MATCH(РізницяВитратНаПрацівників[[#Headers],[Жов]],ЗапланованіВитратиНаПрацівників[#Headers],0))-INDEX(ФактичніВитратиНаПрацівників[],MATCH(INDEX(РізницяВитратНаПрацівників[],ROW()-ROW(РізницяВитратНаПрацівників[[#Headers],[Жов]]),1),INDEX(ЗапланованіВитратиНаПрацівників[],,1),0),MATCH(РізницяВитратНаПрацівників[[#Headers],[Жов]],ФактичніВитратиНаПрацівників[#Headers],0)) -> 92,400.00₴ | M6: =INDEX(ЗапланованіВитратиНаПрацівників[],MATCH(INDEX(РізницяВитратНаПрацівників[],ROW()-ROW(РізницяВитратНаПрацівників[[#Headers],[Лис]]),1),INDEX(ЗапланованіВитратиНаПрацівників[],,1),0),MATCH(РізницяВитратНаПрацівників[[#Headers],[Лис]],ЗапланованіВитратиНаПрацівників[#Headers],0))-INDEX(ФактичніВитратиНаПрацівників[],MATCH(INDEX(РізницяВитратНаПрацівників[],ROW()-ROW(РізницяВитратНаПрацівників[[#Headers],[Лис]]),1),INDEX(ЗапланованіВитратиНаПрацівників[],,1),0),MATCH(РізницяВитратНаПрацівників[[#Headers],[Лис]],ФактичніВитратиНаПрацівників[#Headers],0)) -> 92,400.00₴ | N6: =INDEX(ЗапланованіВитратиНаПрацівників[],MATCH(INDEX(РізницяВитратНаПрацівників[],ROW()-ROW(РізницяВитратНаПрацівників[[#Headers],[Гру]]),1),INDEX(ЗапланованіВитратиНаПрацівників[],,1),0),MATCH(РізницяВитратНаПрацівників[[#Headers],[Гру]],ЗапланованіВитратиНаПрацівників[#Headers],0))-INDEX(ФактичніВитратиНаПрацівників[],MATCH(INDEX(РізницяВитратНаПрацівників[],ROW()-ROW(РізницяВитратНаПрацівників[[#Headers],[Гру]]),1),INDEX(ЗапланованіВитратиНаПрацівників[],,1),0),MATCH(РізницяВитратНаПрацівників[[#Headers],[Гру]],ФактичніВитратиНаПрацівників[#Headers],0)) -> 92,400.00₴ | O6: =SUM(РізницяВитратНаПрацівників[[#This Row],[Січ]:[Гру]]) -> 548,000.00₴
B7: Пільги | C7: =INDEX(ЗапланованіВитратиНаПрацівників[],MATCH(INDEX(РізницяВитратНаПрацівників[],ROW()-ROW(РізницяВитратНаПрацівників[[#Headers],[Січ]]),1),INDEX(ЗапланованіВитратиНаПрацівників[],,1),0),MATCH(РізницяВитратНаПрацівників[[#Headers],[Січ]],ЗапланованіВитратиНаПрацівників[#Headers],0))-INDEX(ФактичніВитратиНаПрацівників[],MATCH(INDEX(РізницяВитратНаПрацівників[],ROW()-ROW(РізницяВитратНаПрацівників[[#Headers],[Січ]]),1),INDEX(ЗапланованіВитратиНаПрацівників[],,1),0),MATCH(РізницяВитратНаПрацівників[[#Headers],[Січ]],ФактичніВитратиНаПрацівників[#Headers],0)) -> 0.00₴ | D7: =INDEX(ЗапланованіВитратиНаПрацівників[],MATCH(INDEX(РізницяВитратНаПрацівників[],ROW()-ROW(РізницяВитратНаПрацівників[[#Headers],[Лют]]),1),INDEX(ЗапланованіВитратиНаПрацівників[],,1),0),MATCH(РізницяВитратНаПрацівників[[#Headers],[Лют]],ЗапланованіВитратиНаПрацівників[#Headers],0))-INDEX(ФактичніВитратиНаПрацівників[],MATCH(INDEX(РізницяВитратНаПрацівників[],ROW()-ROW(РізницяВитратНаПрацівників[[#Headers],[Лют]]),1),INDEX(ЗапланованіВитратиНаПрацівників[],,1),0),MATCH(РізницяВитратНаПрацівників[[#Headers],[Лют]],ФактичніВитратиНаПрацівників[#Headers],0)) -> 0.00₴ | E7: =INDEX(ЗапланованіВитратиНаПрацівників[],MATCH(INDEX(РізницяВитратНаПрацівників[],ROW()-ROW(РізницяВитратНаПрацівників[[#Headers],[Бер]]),1),INDEX(ЗапланованіВитратиНаПрацівників[],,1),0),MATCH(РізницяВитратНаПрацівників[[#Headers],[Бер]],ЗапланованіВитратиНаПрацівників[#Headers],0))-INDEX(ФактичніВитратиНаПрацівників[],MATCH(INDEX(РізницяВитратНаПрацівників[],ROW()-ROW(РізницяВитратНаПрацівників[[#Headers],[Бер]]),1),INDEX(ЗапланованіВитратиНаПрацівників[],,1),0),MATCH(РізницяВитратНаПрацівників[[#Headers],[Бер]],ФактичніВитратиНаПрацівників[#Headers],0)) -> 0.00₴ | F7: =INDEX(ЗапланованіВитратиНаПрацівників[],MATCH(INDEX(РізницяВитратНаПрацівників[],ROW()-ROW(РізницяВитратНаПрацівників[[#Headers],[Кві]]),1),INDEX(ЗапланованіВитратиНаПрацівників[],,1),0),MATCH(РізницяВитратНаПрацівників[[#Headers],[Кві]],ЗапланованіВитратиНаПрацівників[#Headers],0))-INDEX(ФактичніВитратиНаПрацівників[],MATCH(INDEX(РізницяВитратНаПрацівників[],ROW()-ROW(РізницяВитратНаПрацівників[[#Headers],[Кві]]),1),INDEX(ЗапланованіВитратиНаПрацівників[],,1),0),MATCH(РізницяВитратНаПрацівників[[#Headers],[Кві]],ФактичніВитратиНаПрацівників[#Headers],0)) -> -135.00₴ | G7: =INDEX(ЗапланованіВитратиНаПрацівників[],MATCH(INDEX(РізницяВитратНаПрацівників[],ROW()-ROW(РізницяВитратНаПрацівників[[#Headers],[Тра]]),1),INDEX(ЗапланованіВитратиНаПрацівників[],,1),0),MATCH(РізницяВитратНаПрацівників[[#Headers],[Тра]],ЗапланованіВитратиНаПрацівників[#Headers],0))-INDEX(ФактичніВитратиНаПрацівників[],MATCH(INDEX(РізницяВитратНаПрацівників[],ROW()-ROW(РізницяВитратНаПрацівників[[#Headers],[Тра]]),1),INDEX(ЗапланованіВитратиНаПрацівників[],,1),0),MATCH(РізницяВитратНаПрацівників[[#Headers],[Тра]],ФактичніВитратиНаПрацівників[#Headers],0)) -> -135.00₴ | H7: =INDEX(ЗапланованіВитратиНаПрацівників[],MATCH(INDEX(РізницяВитратНаПрацівників[],ROW()-ROW(РізницяВитратНаПрацівників[[#Headers],[Чер]]),1),INDEX(ЗапланованіВитратиНаПрацівників[],,1),0),MATCH(РізницяВитратНаПрацівників[[#Headers],[Чер]],ЗапланованіВитратиНаПрацівників[#Headers],0))-INDEX(ФактичніВитратиНаПрацівників[],MATCH(INDEX(РізницяВитратНаПрацівників[],ROW()-ROW(РізницяВитратНаПрацівників[[#Headers],[Чер]]),1),INDEX(ЗапланованіВитратиНаПрацівників[],,1),0),MATCH(РізницяВитратНаПрацівників[[#Headers],[Чер]],ФактичніВитратиНаПрацівників[#Headers],0)) -> -135.00₴ | I7: =INDEX(ЗапланованіВитратиНаПрацівників[],MATCH(INDEX(РізницяВитратНаПрацівників[],ROW()-ROW(РізницяВитратНаПрацівників[[#Headers],[Лип]]),1),INDEX(ЗапланованіВитратиНаПрацівників[],,1),0),MATCH(РізницяВитратНаПрацівників[[#Headers],[Лип]],ЗапланованіВитратиНаПрацівників[#Headers],0))-INDEX(ФактичніВитратиНаПрацівників[],MATCH(INDEX(РізницяВитратНаПрацівників[],ROW()-ROW(РізницяВитратНаПрацівників[[#Headers],[Лип]]),1),INDEX(ЗапланованіВитратиНаПрацівників[],,1),0),MATCH(РізницяВитратНаПрацівників[[#Headers],[Лип]],ФактичніВитратиНаПрацівників[#Headers],0)) -> 23,625.00₴ | J7: =INDEX(ЗапланованіВитратиНаПрацівників[],MATCH(INDEX(РізницяВитратНаПрацівників[],ROW()-ROW(РізницяВитратНаПрацівників[[#Headers],[Cер]]),1),INDEX(ЗапланованіВитратиНаПрацівників[],,1),0),MATCH(РізницяВитратНаПрацівників[[#Headers],[Cер]],ЗапланованіВитратиНаПрацівників[#Headers],0))-INDEX(ФактичніВитратиНаПрацівників[],MATCH(INDEX(РізницяВитратНаПрацівників[],ROW()-ROW(РізницяВитратНаПрацівників[[#Headers],[Cер]]),1),INDEX(ЗапланованіВитратиНаПрацівників[],,1),0),MATCH(РізницяВитратНаПрацівників[[#Headers],[Cер]],ФактичніВитратиНаПрацівників[#Headers],0)) -> 24,948.00₴ | K7: =INDEX(ЗапланованіВитратиНаПрацівників[],MATCH(INDEX(РізницяВитратНаПрацівників[],ROW()-ROW(РізницяВитратНаПрацівників[[#Headers],[Вер]]),1),INDEX(ЗапланованіВитратиНаПрацівників[],,1),0),MATCH(РізницяВитратНаПрацівників[[#Headers],[Вер]],ЗапланованіВитратиНаПрацівників[#Headers],0))-INDEX(ФактичніВитратиНаПрацівників[],MATCH(INDEX(РізницяВитратНаПрацівників[],ROW()-ROW(РізницяВитратНаПрацівників[[#Headers],[Вер]]),1),INDEX(ЗапланованіВитратиНаПрацівників[],,1),0),MATCH(РізницяВитратНаПрацівників[[#Headers],[Вер]],ФактичніВитратиНаПрацівників[#Headers],0)) -> 24,948.00₴ | L7: =INDEX(ЗапланованіВитратиНаПрацівників[],MATCH(INDEX(РізницяВитратНаПрацівників[],ROW()-ROW(РізницяВитратНаПрацівників[[#Headers],[Жов]]),1),INDEX(ЗапланованіВитратиНаПрацівників[],,1),0),MATCH(РізницяВитратНаПрацівників[[#Headers],[Жов]],ЗапланованіВитратиНаПрацівників[#Headers],0))-INDEX(ФактичніВитратиНаПрацівників[],MATCH(INDEX(РізницяВитратНаПрацівників[],ROW()-ROW(РізницяВитратНаПрацівників[[#Headers],[Жов]]),1),INDEX(ЗапланованіВитратиНаПрацівників[],,1),0),MATCH(РізницяВитратНаПрацівників[[#Headers],[Жов]],ФактичніВитратиНаПрацівників[#Headers],0)) -> 24,948.00₴ | M7: =INDEX(ЗапланованіВитратиНаПрацівників[],MATCH(INDEX(РізницяВитратНаПрацівників[],ROW()-ROW(РізницяВитратНаПрацівників[[#Headers],[Лис]]),1),INDEX(ЗапланованіВитратиНаПрацівників[],,1),0),MATCH(РізницяВитратНаПрацівників[[#Headers],[Лис]],ЗапланованіВитратиНаПрацівників[#Headers],0))-INDEX(ФактичніВитратиНаПрацівників[],MATCH(INDEX(РізницяВитратНаПрацівників[],ROW()-ROW(РізницяВитратНаПрацівників[[#Headers],[Лис]]),1),INDEX(ЗапланованіВитратиНаПрацівників[],,1),0),MATCH(РізницяВитратНаПрацівників[[#Headers],[Лис]],ФактичніВитратиНаПрацівників[#Headers],0)) -> 24,948.00₴ | N7: =INDEX(ЗапланованіВитратиНаПрацівників[],MATCH(INDEX(РізницяВитратНаПрацівників[],ROW()-ROW(РізницяВитратНаПрацівників[[#Headers],[Гру]]),1),INDEX(ЗапланованіВитратиНаПрацівників[],,1),0),MATCH(РізницяВитратНаПрацівників[[#Headers],[Гру]],ЗапланованіВитратиНаПрацівників[#Headers],0))-INDEX(ФактичніВитратиНаПрацівників[],MATCH(INDEX(РізницяВитратНаПрацівників[],ROW()-ROW(РізницяВитратНаПрацівників[[#Headers],[Гру]]),1),INDEX(ЗапланованіВитратиНаПрацівників[],,1),0),MATCH(РізницяВитратНаПрацівників[[#Headers],[Гру]],ФактичніВитратиНаПрацівників[#Headers],0)) -> 24,948.00₴ | O7: =SUM(РізницяВитратНаПрацівників[[#This Row],[Січ]:[Гру]]) -> 147,960.00₴
B8: Проміжний підсумок | C8: =SUBTOTAL(109,РізницяВитратНаПрацівників[Січ]) -> 0.00₴ | D8: =SUBTOTAL(109,РізницяВитратНаПрацівників[Лют]) -> 0.00₴ | E8: =SUBTOTAL(109,РізницяВитратНаПрацівників[Бер]) -> 0.00₴ | F8: =SUBTOTAL(109,РізницяВитратНаПрацівників[Кві]) -> -635.00₴ | G8: =SUBTOTAL(109,РізницяВитратНаПрацівників[Тра]) -> -635.00₴ | H8: =SUBTOTAL(109,РізницяВитратНаПрацівників[Чер]) -> -635.00₴ | I8: =SUBTOTAL(109,РізницяВитратНаПрацівників[Лип]) -> 111,125.00₴ | J8: =SUBTOTAL(109,РізницяВитратНаПрацівників[Cер]) -> 117,348.00₴ | K8: =SUBTOTAL(109,РізницяВитратНаПрацівників[Вер]) -> 117,348.00₴ | L8: =SUBTOTAL(109,РізницяВитратНаПрацівників[Жов]) -> 117,348.00₴ | M8: =SUBTOTAL(109,РізницяВитратНаПрацівників[Лис]) -> 117,348.00₴ | N8: =SUBTOTAL(109,РізницяВитратНаПрацівників[Гру]) -> 117,348.00₴ | O8: =SUBTOTAL(109,РізницяВитратНаПрацівників[РІК]) -> 695,960.00₴
A10: Різниця витрати на офіс автоматично обчислюється в таблиці, починаючи з клітинки праворуч. Подальші вказівки наведено в клітинці A21. | B10: Витрати на офіс | C10: Січ | D10: Лют | E10: Бер | F10: Кві | G10: Тра | H10: Чер | I10: Лип | J10: Cер | K10: Вер | L10: Жов | M10: Лис | N10: Гру | O10: РІК
B11: Оренда офісу | C11: =INDEX(ЗапланованіВитратиНаОфіс[],MATCH(INDEX(РізницяВитратНаОфіс[],ROW()-ROW(РізницяВитратНаОфіс[[#Headers],[Січ]]),1),INDEX(ЗапланованіВитратиНаОфіс[],,1),0),MATCH(РізницяВитратНаОфіс[[#Headers],[Січ]],ЗапланованіВитратиНаОфіс[#Headers],0))-INDEX(ФактичніВитратиНаОфіс[],MATCH(INDEX(РізницяВитратНаОфіс[],ROW()-ROW(РізницяВитратНаОфіс[[#Headers],[Січ]]),1),INDEX(ЗапланованіВитратиНаОфіс[],,1),0),MATCH(РізницяВитратНаОфіс[[#Headers],[Січ]],ФактичніВитратиНаОфіс[#Headers],0)) -> 0.00₴ | D11: =INDEX(ЗапланованіВитратиНаОфіс[],MATCH(INDEX(РізницяВитратНаОфіс[],ROW()-ROW(РізницяВитратНаОфіс[[#Headers],[Лют]]),1),INDEX(ЗапланованіВитратиНаОфіс[],,1),0),MATCH(РізницяВитратНаОфіс[[#Headers],[Лют]],ЗапланованіВитратиНаОфіс[#Headers],0))-INDEX(ФактичніВитратиНаОфіс[],MATCH(INDEX(РізницяВитратНаОфіс[],ROW()-ROW(РізницяВитратНаОфіс[[#Headers],[Лют]]),1),INDEX(ЗапланованіВитратиНаОфіс[],,1),0),MATCH(РізницяВитратНаОфіс[[#Headers],[Лют]],ФактичніВитратиНаОфіс[#Headers],0)) -> 0.00₴ | E11: =INDEX(ЗапланованіВитратиНаОфіс[],MATCH(INDEX(РізницяВитратНаОфіс[],ROW()-ROW(РізницяВитратНаОфіс[[#Headers],[Бер]]),1),INDEX(ЗапланованіВитратиНаОфіс[],,1),0),MATCH(РізницяВитратНаОфіс[[#Headers],[Бер]],ЗапланованіВитратиНаОфіс[#Headers],0))-INDEX(ФактичніВитратиНаОфіс[],MATCH(INDEX(РізницяВитратНаОфіс[],ROW()-ROW(РізницяВитратНаОфіс[[#Headers],[Бер]]),1),INDEX(ЗапланованіВитратиНаОфіс[],,1),0),MATCH(РізницяВитратНаОфіс[[#Headers],[Бер]],ФактичніВитратиНаОфіс[#Headers],0)) -> 0.00₴ | F11: =INDEX(ЗапланованіВитратиНаОфіс[],MATCH(INDEX(РізницяВитратНаОфіс[],ROW()-ROW(РізницяВитратНаОфіс[[#Headers],[Кві]]),1),INDEX(ЗапланованіВитратиНаОфіс[],,1),0),MATCH(РізницяВитратНаОфіс[[#Headers],[Кві]],ЗапланованіВитратиНаОфіс[#Headers],0))-INDEX(ФактичніВитратиНаОфіс[],MATCH(INDEX(РізницяВитратНаОфіс[],ROW()-ROW(РізницяВитратНаОфіс[[#Headers],[Кві]]),1),INDEX(ЗапланованіВитратиНаОфіс[],,1),0),MATCH(РізницяВитратНаОфіс[[#Headers],[Кві]],ФактичніВитратиНаОфіс[#Headers],0)) -> 0.00₴ | G11: =INDEX(ЗапланованіВитратиНаОфіс[],MATCH(INDEX(РізницяВитратНаОфіс[],ROW()-ROW(РізницяВитратНаОфіс[[#Headers],[Тра]]),1),INDEX(ЗапланованіВитратиНаОфіс[],,1),0),MATCH(РізницяВитратНаОфіс[[#Headers],[Тра]],ЗапланованіВитратиНаОфіс[#Headers],0))-INDEX(ФактичніВитратиНаОфіс[],MATCH(INDEX(РізницяВитратНаОфіс[],ROW()-ROW(РізницяВитратНаОфіс[[#Headers],[Тра]]),1),INDEX(ЗапланованіВитратиНаОфіс[],,1),0),MATCH(РізницяВитратНаОфіс[[#Headers],[Тра]],ФактичніВитратиНаОфіс[#Headers],0)) -> 0.00₴ | H11: =INDEX(ЗапланованіВитратиНаОфіс[],MATCH(INDEX(РізницяВитратНаОфіс[],ROW()-ROW(РізницяВитратНаОфіс[[#Headers],[Чер]]),1),INDEX(ЗапланованіВитратиНаОфіс[],,1),0),MATCH(РізницяВитратНаОфіс[[#Headers],[Чер]],ЗапланованіВитратиНаОфіс[#Headers],0))-INDEX(ФактичніВитратиНаОфіс[],MATCH(INDEX(РізницяВитратНаОфіс[],ROW()-ROW(РізницяВитратНаОфіс[[#Headers],[Чер]]),1),INDEX(ЗапланованіВитратиНаОфіс[],,1),0),MATCH(РізницяВитратНаОфіс[[#Headers],[Чер]],ФактичніВитратиНаОфіс[#Headers],0)) -> 0.00₴ | I11: =INDEX(ЗапланованіВитратиНаОфіс[],MATCH(INDEX(РізницяВитратНаОфіс[],ROW()-ROW(РізницяВитратНаОфіс[[#Headers],[Лип]]),1),INDEX(ЗапланованіВитратиНаОфіс[],,1),0),MATCH(РізницяВитратНаОфіс[[#Headers],[Лип]],ЗапланованіВитратиНаОфіс[#Headers],0))-INDEX(ФактичніВитратиНаОфіс[],MATCH(INDEX(РізницяВитратНаОфіс[],ROW()-ROW(РізницяВитратНаОфіс[[#Headers],[Лип]]),1),INDEX(ЗапланованіВитратиНаОфіс[],,1),0),MATCH(РізницяВитратНаОфіс[[#Headers],[Лип]],ФактичніВитратиНаОфіс[#Headers],0)) -> 9,800.00₴ | J11: =INDEX(ЗапланованіВитратиНаОфіс[],MATCH(INDEX(РізницяВитратНаОфіс[],ROW()-ROW(РізницяВитратНаОфіс[[#Headers],[Cер]]),1),INDEX(ЗапланованіВитратиНаОфіс[],,1),0),MATCH(РізницяВитратНаОфіс[[#Headers],[Cер]],ЗапланованіВитратиНаОфіс[#Headers],0))-INDEX(ФактичніВитратиНаОфіс[],MATCH(INDEX(РізницяВитратНаОфіс[],ROW()-ROW(РізницяВитратНаОфіс[[#Headers],[Cер]]),1),INDEX(ЗапланованіВитратиНаОфіс[],,1),0),MATCH(РізницяВитратНаОфіс[[#Headers],[Cер]],ФактичніВитратиНаОфіс[#Headers],0)) -> 9,800.00₴ | K11: =INDEX(ЗапланованіВитратиНаОфіс[],MATCH(INDEX(РізницяВитратНаОфіс[],ROW()-ROW(РізницяВитратНаОфіс[[#Headers],[Вер]]),1),INDEX(ЗапланованіВитратиНаОфіс[],,1),0),MATCH(РізницяВитратНаОфіс[[#Headers],[Вер]],ЗапланованіВитратиНаОфіс[#Headers],0))-INDEX(ФактичніВитратиНаОфіс[],MATCH(INDEX(РізницяВитратНаОфіс[],ROW()-ROW(РізницяВитратНаОфіс[[#Headers],[Вер]]),1),INDEX(ЗапланованіВитратиНаОфіс[],,1),0),MATCH(РізницяВитратНаОфіс[[#Headers],[Вер]],ФактичніВитратиНаОфіс[#Headers],0)) -> 9,800.00₴ | L11: =INDEX(ЗапланованіВитратиНаОфіс[],MATCH(INDEX(РізницяВитратНаОфіс[],ROW()-ROW(РізницяВитратНаОфіс[[#Headers],[Жов]]),1),INDEX(ЗапланованіВитратиНаОфіс[],,1),0),MATCH(РізницяВитратНаОфіс[[#Headers],[Жов]],ЗапланованіВитратиНаОфіс[#Headers],0))-INDEX(ФактичніВитратиНаОфіс[],MATCH(INDEX(РізницяВитратНаОфіс[],ROW()-ROW(РізницяВитратНаОфіс[[#Headers],[Жов]]),1),INDEX(ЗапланованіВитратиНаОфіс[],,1),0),MATCH(РізницяВитратНаОфіс[[#Headers],[Жов]],ФактичніВитратиНаОфіс[#Headers],0)) -> 9,800.00₴ | M11: =INDEX(ЗапланованіВитратиНаОфіс[],MATCH(INDEX(РізницяВитратНаОфіс[],ROW()-ROW(РізницяВитратНаОфіс[[#Headers],[Лис]]),1),INDEX(ЗапланованіВитратиНаОфіс[],,1),0),MATCH(РізницяВитратНаОфіс[[#Headers],[Лис]],ЗапланованіВитратиНаОфіс[#Headers],0))-INDEX(ФактичніВитратиНаОфіс[],MATCH(INDEX(РізницяВитратНаОфіс[],ROW()-ROW(РізницяВитратНаОфіс[[#Headers],[Лис]]),1),INDEX(ЗапланованіВитратиНаОфіс[],,1),0),MATCH(РізницяВитратНаОфіс[[#Headers],[Лис]],ФактичніВитратиНаОфіс[#Headers],0)) -> 9,800.00₴ | N11: =INDEX(ЗапланованіВитратиНаОфіс[],MATCH(INDEX(РізницяВитратНаОфіс[],ROW()-ROW(РізницяВитратНаОфіс[[#Headers],[Гру]]),1),INDEX(ЗапланованіВитратиНаОфіс[],,1),0),MATCH(РізницяВитратНаОфіс[[#Headers],[Гру]],ЗапланованіВитратиНаОфіс[#Headers],0))-INDEX(ФактичніВитратиНаОфіс[],MATCH(INDEX(РізницяВитратНаОфіс[],ROW()-ROW(РізницяВитратНаОфіс[[#Headers],[Гру]]),1),INDEX(ЗапланованіВитратиНаОфіс[],,1),0),MATCH(РізницяВитратНаОфіс[[#Headers],[Гру]],ФактичніВитратиНаОфіс[#Headers],0)) -> 9,800.00₴ | O11: =SUM(РізницяВитратНаОфіс[[#This Row],[Січ]:[Гру]]) -> 58,800.00₴
B12: Газ | C12: =INDEX(ЗапланованіВитратиНаОфіс[],MATCH(INDEX(РізницяВитратНаОфіс[],ROW()-ROW(РізницяВитратНаОфіс[[#Headers],[Січ]]),1),INDEX(ЗапланованіВитратиНаОфіс[],,1),0),MATCH(РізницяВитратНаОфіс[[#Headers],[Січ]],ЗапланованіВитратиНаОфіс[#Headers],0))-INDEX(ФактичніВитратиНаОфіс[],MATCH(INDEX(РізницяВитратНаОфіс[],ROW()-ROW(РізницяВитратНаОфіс[[#Headers],[Січ]]),1),INDEX(ЗапланованіВитратиНаОфіс[],,1),0),MATCH(РізницяВитратНаОфіс[[#Headers],[Січ]],ФактичніВитратиНаОфіс[#Headers],0)) -> -4.00₴ | D12: =INDEX(ЗапланованіВитратиНаОфіс[],MATCH(INDEX(РізницяВитратНаОфіс[],ROW()-ROW(РізницяВитратНаОфіс[[#Headers],[Лют]]),1),INDEX(ЗапланованіВитратиНаОфіс[],,1),0),MATCH(РізницяВитратНаОфіс[[#Headers],[Лют]],ЗапланованіВитратиНаОфіс[#Headers],0))-INDEX(ФактичніВитратиНаОфіс[],MATCH(INDEX(РізницяВитратНаОфіс[],ROW()-ROW(РізницяВитратНаОфіс[[#Headers],[Лют]]),1),INDEX(ЗапланованіВитратиНаОфіс[],,1),0),MATCH(РізницяВитратНаОфіс[[#Headers],[Лют]],ФактичніВитратиНаОфіс[#Headers],0)) -> -30.00₴ | E12: =INDEX(ЗапланованіВитратиНаОфіс[],MATCH(INDEX(РізницяВитратНаОфіс[],ROW()-ROW(РізницяВитратНаОфіс[[#Headers],[Бер]]),1),INDEX(ЗапланованіВитратиНаОфіс[],,1),0),MATCH(РізницяВитратНаОфіс[[#Headers],[Бер]],ЗапланованіВитратиНаОфіс[#Headers],0))-INDEX(ФактичніВитратиНаОфіс[],MATCH(INDEX(РізницяВитратНаОфіс[],ROW()-ROW(РізницяВитратНаОфіс[[#Headers],[Бер]]),1),INDEX(ЗапланованіВитратиНаОфіс[],,1),0),MATCH(РізницяВитратНаОфіс[[#Headers],[Бер]],ФактичніВитратиНаОфіс[#Headers],0)) -> 15.00₴ | F12: =INDEX(ЗапланованіВитратиНаОфіс[],MATCH(INDEX(РізницяВитратНаОфіс[],ROW()-ROW(РізницяВитратНаОфіс[[#Headers],[Кві]]),1),INDEX(ЗапланованіВитратиНаОфіс[],,1),0),MATCH(РізницяВитратНаОфіс[[#Headers],[Кві]],ЗапланованіВитратиНаОфіс[#Headers],0))-INDEX(ФактичніВитратиНаОфіс[],MATCH(INDEX(РізницяВитратНаОфіс[],ROW()-ROW(РізницяВитратНаОфіс[[#Headers],[Кві]]),1),INDEX(ЗапланованіВитратиНаОфіс[],,1),0),MATCH(РізницяВитратНаОфіс[[#Headers],[Кві]],ФактичніВитратиНаОфіс[#Headers],0)) -> -130.00₴ | G12: =INDEX(ЗапланованіВитратиНаОфіс[],MATCH(INDEX(РізницяВитратНаОфіс[],ROW()-ROW(РізницяВитратНаОфіс[[#Headers],[Тра]]),1),INDEX(ЗапланованіВитратиНаОфіс[],,1),0),MATCH(РізницяВитратНаОфіс[[#Headers],[Тра]],ЗапланованіВитратиНаОфіс[#Headers],0))-INDEX(ФактичніВитратиНаОфіс[],MATCH(INDEX(РізницяВитратНаОфіс[],ROW()-ROW(РізницяВитратНаОфіс[[#Headers],[Тра]]),1),INDEX(ЗапланованіВитратиНаОфіс[],,1),0),MATCH(РізницяВитратНаОфіс[[#Headers],[Тра]],ФактичніВитратиНаОфіс[#Headers],0)) -> 13.00₴ | H12: =INDEX(ЗапланованіВитратиНаОфіс[],MATCH(INDEX(РізницяВитратНаОфіс[],ROW()-ROW(РізницяВитратНаОфіс[[#Headers],[Чер]]),1),INDEX(ЗапланованіВитратиНаОфіс[],,1),0),MATCH(РізницяВитратНаОфіс[[#Headers],[Чер]],ЗапланованіВитратиНаОфіс[#Headers],0))-INDEX(ФактичніВитратиНаОфіс[],MATCH(INDEX(РізницяВитратНаОфіс[],ROW()-ROW(РізницяВитратНаОфіс[[#Headers],[Чер]]),1),INDEX(ЗапланованіВитратиНаОфіс[],,1),0),MATCH(РізницяВитратНаОфіс[[#Headers],[Чер]],ФактичніВитратиНаОфіс[#Headers],0)) -> 12.00₴ | I12: =INDEX(ЗапланованіВитратиНаОфіс[],MATCH(INDEX(РізницяВитратНаОфіс[],ROW()-ROW(РізницяВитратНаОфіс[[#Headers],[Лип]]),1),INDEX(ЗапланованіВитратиНаОфіс[],,1),0),MATCH(РізницяВитратНаОфіс[[#Headers],[Лип]],ЗапланованіВитратиНаОфіс[#Headers],0))-INDEX(ФактичніВитратиНаОфіс[],MATCH(INDEX(РізницяВитратНаОфіс[],ROW()-ROW(РізницяВитратНаОфіс[[#Headers],[Лип]]),1),INDEX(ЗапланованіВитратиНаОфіс[],,1),0),MATCH(РізницяВитратНаОфіс[[#Headers],[Лип]],ФактичніВитратиНаОфіс[#Headers],0)) -> 100.00₴ | J12: =INDEX(ЗапланованіВитратиНаОфіс[],MATCH(INDEX(РізницяВитратНаОфіс[],ROW()-ROW(РізницяВитратНаОфіс[[#Headers],[Cер]]),1),INDEX(ЗапланованіВитратиНаОфіс[],,1),0),MATCH(РізницяВитратНаОфіс[[#Headers],[Cер]],ЗапланованіВитратиНаОфіс[#Headers],0))-INDEX(ФактичніВитратиНаОфіс[],MATCH(INDEX(РізницяВитратНаОфіс[],ROW()-ROW(РізницяВитратНаОфіс[[#Headers],[Cер]]),1),INDEX(ЗапланованіВитратиНаОфіс[],,1),0),MATCH(РізницяВитратНаОфіс[[#Headers],[Cер]],ФактичніВитратиНаОфіс[#Headers],0)) -> 100.00₴ | K12: =INDEX(ЗапланованіВитратиНаОфіс[],MATCH(INDEX(РізницяВитратНаОфіс[],ROW()-ROW(РізницяВитратНаОфіс[[#Headers],[Вер]]),1),INDEX(ЗапланованіВитратиНаОфіс[],,1),0),MATCH(РізницяВитратНаОфіс[[#Headers],[Вер]],ЗапланованіВитратиНаОфіс[#Headers],0))-INDEX(ФактичніВитратиНаОфіс[],MATCH(INDEX(РізницяВитратНаОфіс[],ROW()-ROW(РізницяВитратНаОфіс[[#Headers],[Вер]]),1),INDEX(ЗапланованіВитратиНаОфіс[],,1),0),MATCH(РізницяВитратНаОфіс[[#Headers],[Вер]],ФактичніВитратиНаОфіс[#Headers],0)) -> 100.00₴ | L12: =INDEX(ЗапланованіВитратиНаОфіс[],MATCH(INDEX(РізницяВитратНаОфіс[],ROW()-ROW(РізницяВитратНаОфіс[[#Headers],[Жов]]),1),INDEX(ЗапланованіВитратиНаОфіс[],,1),0),MATCH(РізницяВитратНаОфіс[[#Headers],[Жов]],ЗапланованіВитратиНаОфіс[#Headers],0))-INDEX(ФактичніВитратиНаОфіс[],MATCH(INDEX(РізницяВитратНаОфіс[],ROW()-ROW(РізницяВитратНаОфіс[[#Headers],[Жов]]),1),INDEX(ЗапланованіВитратиНаОфіс[],,1),0),MATCH(РізницяВитратНаОфіс[[#Headers],[Жов]],ФактичніВитратиНаОфіс[#Headers],0)) -> 100.00₴ | M12: =INDEX(ЗапланованіВитратиНаОфіс[],MATCH(INDEX(РізницяВитратНаОфіс[],ROW()-ROW(РізницяВитратНаОфіс[[#Headers],[Лис]]),1),INDEX(ЗапланованіВитратиНаОфіс[],,1),0),MATCH(РізницяВитратНаОфіс[[#Headers],[Лис]],ЗапланованіВитратиНаОфіс[#Headers],0))-INDEX(ФактичніВитратиНаОфіс[],MATCH(INDEX(РізницяВитратНаОфіс[],ROW()-ROW(РізницяВитратНаОфіс[[#Headers],[Лис]]),1),INDEX(ЗапланованіВитратиНаОфіс[],,1),0),MATCH(РізницяВитратНаОфіс[[#Headers],[Лис]],ФактичніВитратиНаОфіс[#Headers],0)) -> 400.00₴ | N12: =INDEX(ЗапланованіВитратиНаОфіс[],MATCH(INDEX(РізницяВитратНаОфіс[],ROW()-ROW(РізницяВитратНаОфіс[[#Headers],[Гру]]),1),INDEX(ЗапланованіВитратиНаОфіс[],,1),0),MATCH(РізницяВитратНаОфіс[[#Headers],[Гру]],ЗапланованіВитратиНаОфіс[#Headers],0))-INDEX(ФактичніВитратиНаОфіс[],MATCH(INDEX(РізницяВитратНаОфіс[],ROW()-ROW(РізницяВитратНаОфіс[[#Headers],[Гру]]),1),INDEX(ЗапланованіВитратиНаОфіс[],,1),0),MATCH(РізницяВитратНаОфіс[[#Headers],[Гру]],ФактичніВитратиНаОфіс[#Headers],0)) -> 400.00₴ | O12: =SUM(РізницяВитратНаОфіс[[#This Row],[Січ]:[Гру]]) -> 1,076.00₴
B13: Електроенергія | C13: =INDEX(ЗапланованіВитратиНаОфіс[],MATCH(INDEX(РізницяВитратНаОфіс[],ROW()-ROW(РізницяВитратНаОфіс[[#Headers],[Січ]]),1),INDEX(ЗапланованіВитратиНаОфіс[],,1),0),MATCH(РізницяВитратНаОфіс[[#Headers],[Січ]],ЗапланованіВитратиНаОфіс[#Headers],0))-INDEX(ФактичніВитратиНаОфіс[],MATCH(INDEX(РізницяВитратНаОфіс[],ROW()-ROW(РізницяВитратНаОфіс[[#Headers],[Січ]]),1),INDEX(ЗапланованіВитратиНаОфіс[],,1),0),MATCH(РізницяВитратНаОфіс[[#Headers],[Січ]],ФактичніВитратиНаОфіс[#Headers],0)) -> 12.00₴ | D13: =INDEX(ЗапланованіВитратиНаОфіс[],MATCH(INDEX(РізницяВитратНаОфіс[],ROW()-ROW(РізницяВитратНаОфіс[[#Headers],[Лют]]),1),INDEX(ЗапланованіВитратиНаОфіс[],,1),0),MATCH(РізницяВитратНаОфіс[[#Headers],[Лют]],ЗапланованіВитратиНаОфіс[#Headers],0))-INDEX(ФактичніВитратиНаОфіс[],MATCH(INDEX(РізницяВитратНаОфіс[],ROW()-ROW(РізницяВитратНаОфіс[[#Headers],[Лют]]),1),INDEX(ЗапланованіВитратиНаОфіс[],,1),0),MATCH(РізницяВитратНаОфіс[[#Headers],[Лют]],ФактичніВитратиНаОфіс[#Headers],0)) -> 22.00₴ | E13: =INDEX(ЗапланованіВитратиНаОфіс[],MATCH(INDEX(РізницяВитратНаОфіс[],ROW()-ROW(РізницяВитратНаОфіс[[#Headers],[Бер]]),1),INDEX(ЗапланованіВитратиНаОфіс[],,1),0),MATCH(РізницяВитратНаОфіс[[#Headers],[Бер]],ЗапланованіВитратиНаОфіс[#Headers],0))-INDEX(ФактичніВитратиНаОфіс[],MATCH(INDEX(РізницяВитратНаОфіс[],ROW()-ROW(РізницяВитратНаОфіс[[#Headers],[Бер]]),1),INDEX(ЗапланованіВитратиНаОфіс[],,1),0),MATCH(РізницяВитратНаОфіс[[#Headers],[Бер]],ФактичніВитратиНаОфіс[#Headers],0)) -> 32.00₴ | F13: =INDEX(ЗапланованіВитратиНаОфіс[],MATCH(INDEX(РізницяВитратНаОфіс[],ROW()-ROW(РізницяВитратНаОфіс[[#Headers],[Кві]]),1),INDEX(ЗапланованіВитратиНаОфіс[],,1),0),MATCH(РізницяВитратНаОфіс[[#Headers],[Кві]],ЗапланованіВитратиНаОфіс[#Headers],0))-INDEX(ФактичніВитратиНаОфіс[],MATCH(INDEX(РізницяВитратНаОфіс[],ROW()-ROW(РізницяВитратНаОфіс[[#Headers],[Кві]]),1),INDEX(ЗапланованіВитратиНаОфіс[],,1),0),MATCH(РізницяВитратНаОфіс[[#Headers],[Кві]],ФактичніВитратиНаОфіс[#Headers],0)) -> 1.00₴ | G13: =INDEX(ЗапланованіВитратиНаОфіс[],MATCH(INDEX(РізницяВитратНаОфіс[],ROW()-ROW(РізницяВитратНаОфіс[[#Headers],[Тра]]),1),INDEX(ЗапланованіВитратиНаОфіс[],,1),0),MATCH(РізницяВитратНаОфіс[[#Headers],[Тра]],ЗапланованіВитратиНаОфіс[#Headers],0))-INDEX(ФактичніВитратиНаОфіс[],MATCH(INDEX(РізницяВитратНаОфіс[],ROW()-ROW(РізницяВитратНаОфіс[[#Headers],[Тра]]),1),INDEX(ЗапланованіВитратиНаОфіс[],,1),0),MATCH(РізницяВитратНаОфіс[[#Headers],[Тра]],ФактичніВитратиНаОфіс[#Headers],0)) -> -6.00₴ | H13: =INDEX(ЗапланованіВитратиНаОфіс[],MATCH(INDEX(РізницяВитратНаОфіс[],ROW()-ROW(РізницяВитратНаОфіс[[#Headers],[Чер]]),1),INDEX(ЗапланованіВитратиНаОфіс[],,1),0),MATCH(РізницяВитратНаОфіс[[#Headers],[Чер]],ЗапланованіВитратиНаОфіс[#Headers],0))-INDEX(ФактичніВитратиНаОфіс[],MATCH(INDEX(РізницяВитратНаОфіс[],ROW()-ROW(РізницяВитратНаОфіс[[#Headers],[Чер]]),1),INDEX(ЗапланованіВитратиНаОфіс[],,1),0),MATCH(РізницяВитратНаОфіс[[#Headers],[Чер]],ФактичніВитратиНаОфіс[#Headers],0)) -> 10.00₴ | I13: =INDEX(ЗапланованіВитратиНаОфіс[],MATCH(INDEX(РізницяВитратНаОфіс[],ROW()-ROW(РізницяВитратНаОфіс[[#Headers],[Лип]]),1),INDEX(ЗапланованіВитратиНаОфіс[],,1),0),MATCH(РізницяВитратНаОфіс[[#Headers],[Лип]],ЗапланованіВитратиНаОфіс[#Headers],0))-INDEX(ФактичніВитратиНаОфіс[],MATCH(INDEX(РізницяВитратНаОфіс[],ROW()-ROW(РізницяВитратНаОфіс[[#Headers],[Лип]]),1),INDEX(ЗапланованіВитратиНаОфіс[],,1),0),MATCH(РізницяВитратНаОфіс[[#Headers],[Лип]],ФактичніВитратиНаОфіс[#Headers],0)) -> 300.00₴ | J13: =INDEX(ЗапланованіВитратиНаОфіс[],MATCH(INDEX(РізницяВитратНаОфіс[],ROW()-ROW(РізницяВитратНаОфіс[[#Headers],[Cер]]),1),INDEX(ЗапланованіВитратиНаОфіс[],,1),0),MATCH(РізницяВитратНаОфіс[[#Headers],[Cер]],ЗапланованіВитратиНаОфіс[#Headers],0))-INDEX(ФактичніВитратиНаОфіс[],MATCH(INDEX(РізницяВитратНаОфіс[],ROW()-ROW(РізницяВитратНаОфіс[[#Headers],[Cер]]),1),INDEX(ЗапланованіВитратиНаОфіс[],,1),0),MATCH(РізницяВитратНаОфіс[[#Headers],[Cер]],ФактичніВитратиНаОфіс[#Headers],0)) -> 300.00₴ | K13: =INDEX(ЗапланованіВитратиНаОфіс[],MATCH(INDEX(РізницяВитратНаОфіс[],ROW()-ROW(РізницяВитратНаОфіс[[#Headers],[Вер]]),1),INDEX(ЗапланованіВитратиНаОфіс[],,1),0),MATCH(РізницяВитратНаОфіс[[#Headers],[Вер]],ЗапланованіВитратиНаОфіс[#Headers],0))-INDEX(ФактичніВитратиНаОфіс[],MATCH(INDEX(РізницяВитратНаОфіс[],ROW()-ROW(РізницяВитратНаОфіс[[#Headers],[Вер]]),1),INDEX(ЗапланованіВитратиНаОфіс[],,1),0),MATCH(РізницяВитратНаОфіс[[#Headers],[Вер]],ФактичніВитратиНаОфіс[#Headers],0)) -> 300.00₴ | L13: =INDEX(ЗапланованіВитратиНаОфіс[],MATCH(INDEX(РізницяВитратНаОфіс[],ROW()-ROW(РізницяВитратНаОфіс[[#Headers],[Жов]]),1),INDEX(ЗапланованіВитратиНаОфіс[],,1),0),MATCH(РізницяВитратНаОфіс[[#Headers],[Жов]],ЗапланованіВитратиНаОфіс[#Headers],0))-INDEX(ФактичніВитратиНаОфіс[],MATCH(INDEX(РізницяВитратНаОфіс[],ROW()-ROW(РізницяВитратНаОфіс[[#Headers],[Жов]]),1),INDEX(ЗапланованіВитратиНаОфіс[],,1),0),MATCH(РізницяВитратНаОфіс[[#Headers],[Жов]],ФактичніВитратиНаОфіс[#Headers],0)) -> 300.00₴ | M13: =INDEX(ЗапланованіВитратиНаОфіс[],MATCH(INDEX(РізницяВитратНаОфіс[],ROW()-ROW(РізницяВитратНаОфіс[[#Headers],[Лис]]),1),INDEX(ЗапланованіВитратиНаОфіс[],,1),0),MATCH(РізницяВитратНаОфіс[[#Headers],[Лис]],ЗапланованіВитратиНаОфіс[#Headers],0))-INDEX(ФактичніВитратиНаОфіс[],MATCH(INDEX(РізницяВитратНаОфіс[],ROW()-ROW(РізницяВитратНаОфіс[[#Headers],[Лис]]),1),INDEX(ЗапланованіВитратиНаОфіс[],,1),0),MATCH(РізницяВитратНаОфіс[[#Headers],[Лис]],ФактичніВитратиНаОфіс[#Headers],0)) -> 300.00₴ | N13: =INDEX(ЗапланованіВитратиНаОфіс[],MATCH(INDEX(РізницяВитратНаОфіс[],ROW()-ROW(РізницяВитратНаОфіс[[#Headers],[Гру]]),1),INDEX(ЗапланованіВитратиНаОфіс[],,1),0),MATCH(РізницяВитратНаОфіс[[#Headers],[Гру]],ЗапланованіВитратиНаОфіс[#Headers],0))-INDEX(ФактичніВитратиНаОфіс[],MATCH(INDEX(РізницяВитратНаОфіс[],ROW()-ROW(РізницяВитратНаОфіс[[#Headers],[Гру]]),1),INDEX(ЗапланованіВитратиНаОфіс[],,1),0),MATCH(РізницяВитратНаОфіс[[#Headers],[Гру]],ФактичніВитратиНаОфіс[#Headers],0)) -> 300.00₴ | O13: =SUM(РізницяВитратНаОфіс[[#This Row],[Січ]:[Гру]]) -> 1,871.00₴
B14: Вода | C14: =INDEX(ЗапланованіВитратиНаОфіс[],MATCH(INDEX(РізницяВитратНаОфіс[],ROW()-ROW(РізницяВитратНаОфіс[[#Headers],[Січ]]),1),INDEX(ЗапланованіВитратиНаОфіс[],,1),0),MATCH(РізницяВитратНаОфіс[[#Headers],[Січ]],ЗапланованіВитратиНаОфіс[#Headers],0))-INDEX(ФактичніВитратиНаОфіс[],MATCH(INDEX(РізницяВитратНаОфіс[],ROW()-ROW(РізницяВитратНаОфіс[[#Headers],[Січ]]),1),INDEX(ЗапланованіВитратиНаОфіс[],,1),0),MATCH(РізницяВитратНаОфіс[[#Headers],[Січ]],ФактичніВитратиНаОфіс[#Headers],0)) -> 5.00₴ | D14: =INDEX(ЗапланованіВитратиНаОфіс[],MATCH(INDEX(РізницяВитратНаОфіс[],ROW()-ROW(РізницяВитратНаОфіс[[#Headers],[Лют]]),1),INDEX(ЗапланованіВитратиНаОфіс[],,1),0),MATCH(РізницяВитратНаОфіс[[#Headers],[Лют]],ЗапланованіВитратиНаОфіс[#Headers],0))-INDEX(ФактичніВитратиНаОфіс[],MATCH(INDEX(РізницяВитратНаОфіс[],ROW()-ROW(РізницяВитратНаОфіс[[#Headers],[Лют]]),1),INDEX(ЗапланованіВитратиНаОфіс[],,1),0),MATCH(РізницяВитратНаОфіс[[#Headers],[Лют]],ФактичніВитратиНаОфіс[#Headers],0)) -> 7.00₴ | E14: =INDEX(ЗапланованіВитратиНаОфіс[],MATCH(INDEX(РізницяВитратНаОфіс[],ROW()-ROW(РізницяВитратНаОфіс[[#Headers],[Бер]]),1),INDEX(ЗапланованіВитратиНаОфіс[],,1),0),MATCH(РізницяВитратНаОфіс[[#Headers],[Бер]],ЗапланованіВитратиНаОфіс[#Headers],0))-INDEX(ФактичніВитратиНаОфіс[],MATCH(INDEX(РізницяВитратНаОфіс[],ROW()-ROW(РізницяВитратНаОфіс[[#Headers],[Бер]]),1),INDEX(ЗапланованіВитратиНаОфіс[],,1),0),MATCH(РізницяВитратНаОфіс[[#Headers],[Бер]],ФактичніВитратиНаОфіс[#Headers],0)) -> 6.00₴ | F14: =INDEX(ЗапланованіВитратиНаОфіс[],MATCH(INDEX(РізницяВитратНаОфіс[],ROW()-ROW(РізницяВитратНаОфіс[[#Headers],[Кві]]),1),INDEX(ЗапланованіВитратиНаОфіс[],,1),0),MATCH(РізницяВитратНаОфіс[[#Headers],[Кві]],ЗапланованіВитратиНаОфіс[#Headers],0))-INDEX(ФактичніВитратиНаОфіс[],MATCH(INDEX(РізницяВитратНаОфіс[],ROW()-ROW(РізницяВитратНаОфіс[[#Headers],[Кві]]),1),INDEX(ЗапланованіВитратиНаОфіс[],,1),0),MATCH(РізницяВитратНаОфіс[[#Headers],[Кві]],ФактичніВитратиНаОфіс[#Headers],0)) -> 4.00₴ | G14: =INDEX(ЗапланованіВитратиНаОфіс[],MATCH(INDEX(РізницяВитратНаОфіс[],ROW()-ROW(РізницяВитратНаОфіс[[#Headers],[Тра]]),1),INDEX(ЗапланованіВитратиНаОфіс[],,1),0),MATCH(РізницяВитратНаОфіс[[#Headers],[Тра]],ЗапланованіВитратиНаОфіс[#Headers],0))-INDEX(ФактичніВитратиНаОфіс[],MATCH(INDEX(РізницяВитратНаОфіс[],ROW()-ROW(РізницяВитратНаОфіс[[#Headers],[Тра]]),1),INDEX(ЗапланованіВитратиНаОфіс[],,1),0),MATCH(РізницяВитратНаОфіс[[#Headers],[Тра]],ФактичніВитратиНаОфіс[#Headers],0)) -> 6.00₴ | H14: =INDEX(ЗапланованіВитратиНаОфіс[],MATCH(INDEX(РізницяВитратНаОфіс[],ROW()-ROW(РізницяВитратНаОфіс[[#Headers],[Чер]]),1),INDEX(ЗапланованіВитратиНаОфіс[],,1),0),MATCH(РізницяВитратНаОфіс[[#Headers],[Чер]],ЗапланованіВитратиНаОфіс[#Headers],0))-INDEX(ФактичніВитратиНаОфіс[],MATCH(INDEX(РізницяВитратНаОфіс[],ROW()-ROW(РізницяВитратНаОфіс[[#Headers],[Чер]]),1),INDEX(ЗапланованіВитратиНаОфіс[],,1),0),MATCH(РізницяВитратНаОфіс[[#Headers],[Чер]],ФактичніВитратиНаОфіс[#Headers],0)) -> 4.00₴ | I14: =INDEX(ЗапланованіВитратиНаОфіс[],MATCH(INDEX(РізницяВитратНаОфіс[],ROW()-ROW(РізницяВитратНаОфіс[[#Headers],[Лип]]),1),INDEX(ЗапланованіВитратиНаОфіс[],,1),0),MATCH(РізницяВитратНаОфіс[[#Headers],[Лип]],ЗапланованіВитратиНаОфіс[#Headers],0))-INDEX(ФактичніВитратиНаОфіс[],MATCH(INDEX(РізницяВитратНаОфіс[],ROW()-ROW(РізницяВитратНаОфіс[[#Headers],[Лип]]),1),INDEX(ЗапланованіВитратиНаОфіс[],,1),0),MATCH(РізницяВитратНаОфіс[[#Headers],[Лип]],ФактичніВитратиНаОфіс[#Headers],0)) -> 40.00₴ | J14: =INDEX(ЗапланованіВитратиНаОфіс[],MATCH(INDEX(РізницяВитратНаОфіс[],ROW()-ROW(РізницяВитратНаОфіс[[#Headers],[Cер]]),1),INDEX(ЗапланованіВитратиНаОфіс[],,1),0),MATCH(РізницяВитратНаОфіс[[#Headers],[Cер]],ЗапланованіВитратиНаОфіс[#Headers],0))-INDEX(ФактичніВитратиНаОфіс[],MATCH(INDEX(РізницяВитратНаОфіс[],ROW()-ROW(РізницяВитратНаОфіс[[#Headers],[Cер]]),1),INDEX(ЗапланованіВитратиНаОфіс[],,1),0),MATCH(РізницяВитратНаОфіс[[#Headers],[Cер]],ФактичніВитратиНаОфіс[#Headers],0)) -> 40.00₴ | K14: =INDEX(ЗапланованіВитратиНаОфіс[],MATCH(INDEX(РізницяВитратНаОфіс[],ROW()-ROW(РізницяВитратНаОфіс[[#Headers],[Вер]]),1),INDEX(ЗапланованіВитратиНаОфіс[],,1),0),MATCH(РізницяВитратНаОфіс[[#Headers],[Вер]],ЗапланованіВитратиНаОфіс[#Headers],0))-INDEX(ФактичніВитратиНаОфіс[],MATCH(INDEX(РізницяВитратНаОфіс[],ROW()-ROW(РізницяВитратНаОфіс[[#Headers],[Вер]]),1),INDEX(ЗапланованіВитратиНаОфіс[],,1),0),MATCH(РізницяВитратНаОфіс[[#Headers],[Вер]],ФактичніВитратиНаОфіс[#Headers],0)) -> 40.00₴ | L14: =INDEX(ЗапланованіВитратиНаОфіс[],MATCH(INDEX(РізницяВитратНаОфіс[],ROW()-ROW(РізницяВитратНаОфіс[[#Headers],[Жов]]),1),INDEX(ЗапланованіВитратиНаОфіс[],,1),0),MATCH(РізницяВитратНаОфіс[[#Headers],[Жов]],ЗапланованіВитратиНаОфіс[#Headers],0))-INDEX(ФактичніВитратиНаОфіс[],MATCH(INDEX(РізницяВитратНаОфіс[],ROW()-ROW(РізницяВитратНаОфіс[[#Headers],[Жов]]),1),INDEX(ЗапланованіВитратиНаОфіс[],,1),0),MATCH(РізницяВитратНаОфіс[[#Headers],[Жов]],ФактичніВитратиНаОфіс[#Headers],0)) -> 40.00₴ | M14: =INDEX(ЗапланованіВитратиНаОфіс[],MATCH(INDEX(РізницяВитратНаОфіс[],ROW()-ROW(РізницяВитратНаОфіс[[#Headers],[Лис]]),1),INDEX(ЗапланованіВитратиНаОфіс[],,1),0),MATCH(РізницяВитратНаОфіс[[#Headers],[Лис]],ЗапланованіВитратиНаОфіс[#Headers],0))-INDEX(ФактичніВитратиНаОфіс[],MATCH(INDEX(РізницяВитратНаОфіс[],ROW()-ROW(РізницяВитратНаОфіс[[#Headers],[Лис]]),1),INDEX(ЗапланованіВитратиНаОфіс[],,1),0),MATCH(РізницяВитратНаОфіс[[#Headers],[Лис]],ФактичніВитратиНаОфіс[#Headers],0)) -> 40.00₴ | N14: =INDEX(ЗапланованіВитратиНаОфіс[],MATCH(INDEX(РізницяВитратНаОфіс[],ROW()-ROW(РізницяВитратНаОфіс[[#Headers],[Гру]]),1),INDEX(ЗапланованіВитратиНаОфіс[],,1),0),MATCH(РізницяВитратНаОфіс[[#Headers],[Гру]],ЗапланованіВитратиНаОфіс[#Headers],0))-INDEX(ФактичніВитратиНаОфіс[],MATCH(INDEX(РізницяВитратНаОфіс[],ROW()-ROW(РізницяВитратНаОфіс[[#Headers],[Гру]]),1),INDEX(ЗапланованіВитратиНаОфіс[],,1),0),MATCH(РізницяВитратНаОфіс[[#Headers],[Гру]],ФактичніВитратиНаОфіс[#Headers],0)) -> 40.00₴ | O14: =SUM(РізницяВитратНаОфіс[[#This Row],[Січ]:[Гру]]) -> 272.00₴
B15: Телефон | C15: =INDEX(ЗапланованіВитратиНаОфіс[],MATCH(INDEX(РізницяВитратНаОфіс[],ROW()-ROW(РізницяВитратНаОфіс[[#Headers],[Січ]]),1),INDEX(ЗапланованіВитратиНаОфіс[],,1),0),MATCH(РізницяВитратНаОфіс[[#Headers],[Січ]],ЗапланованіВитратиНаОфіс[#Headers],0))-INDEX(ФактичніВитратиНаОфіс[],MATCH(INDEX(РізницяВитратНаОфіс[],ROW()-ROW(РізницяВитратНаОфіс[[#Headers],[Січ]]),1),INDEX(ЗапланованіВитратиНаОфіс[],,1),0),MATCH(РізницяВитратНаОфіс[[#Headers],[Січ]],ФактичніВитратиНаОфіс[#Headers],0)) -> 26.00₴ | D15: =INDEX(ЗапланованіВитратиНаОфіс[],MATCH(INDEX(РізницяВитратНаОфіс[],ROW()-ROW(РізницяВитратНаОфіс[[#Headers],[Лют]]),1),INDEX(ЗапланованіВитратиНаОфіс[],,1),0),MATCH(РізницяВитратНаОфіс[[#Headers],[Лют]],ЗапланованіВитратиНаОфіс[#Headers],0))-INDEX(ФактичніВитратиНаОфіс[],MATCH(INDEX(РізницяВитратНаОфіс[],ROW()-ROW(РізницяВитратНаОфіс[[#Headers],[Лют]]),1),INDEX(ЗапланованіВитратиНаОфіс[],,1),0),MATCH(РізницяВитратНаОфіс[[#Headers],[Лют]],ФактичніВитратиНаОфіс[#Headers],0)) -> 15.00₴ | E15: =INDEX(ЗапланованіВитратиНаОфіс[],MATCH(INDEX(РізницяВитратНаОфіс[],ROW()-ROW(РізницяВитратНаОфіс[[#Headers],[Бер]]),1),INDEX(ЗапланованіВитратиНаОфіс[],,1),0),MATCH(РізницяВитратНаОфіс[[#Headers],[Бер]],ЗапланованіВитратиНаОфіс[#Headers],0))-INDEX(ФактичніВитратиНаОфіс[],MATCH(INDEX(РізницяВитратНаОфіс[],ROW()-ROW(РізницяВитратНаОфіс[[#Headers],[Бер]]),1),INDEX(ЗапланованіВитратиНаОфіс[],,1),0),MATCH(РізницяВитратНаОфіс[[#Headers],[Бер]],ФактичніВитратиНаОфіс[#Headers],0)) -> -15.00₴ | F15: =INDEX(ЗапланованіВитратиНаОфіс[],MATCH(INDEX(РізницяВитратНаОфіс[],ROW()-ROW(РізницяВитратНаОфіс[[#Headers],[Кві]]),1),INDEX(ЗапланованіВитратиНаОфіс[],,1),0),MATCH(РізницяВитратНаОфіс[[#Headers],[Кві]],ЗапланованіВитратиНаОфіс[#Headers],0))-INDEX(ФактичніВитратиНаОфіс[],MATCH(INDEX(РізницяВитратНаОфіс[],ROW()-ROW(РізницяВитратНаОфіс[[#Headers],[Кві]]),1),INDEX(ЗапланованіВитратиНаОфіс[],,1),0),MATCH(РізницяВитратНаОфіс[[#Headers],[Кві]],ФактичніВитратиНаОфіс[#Headers],0)) -> 5.00₴ | G15: =INDEX(ЗапланованіВитратиНаОфіс[],MATCH(INDEX(РізницяВитратНаОфіс[],ROW()-ROW(РізницяВитратНаОфіс[[#Headers],[Тра]]),1),INDEX(ЗапланованіВитратиНаОфіс[],,1),0),MATCH(РізницяВитратНаОфіс[[#Headers],[Тра]],ЗапланованіВитратиНаОфіс[#Headers],0))-INDEX(ФактичніВитратиНаОфіс[],MATCH(INDEX(РізницяВитратНаОфіс[],ROW()-ROW(РізницяВитратНаОфіс[[#Headers],[Тра]]),1),INDEX(ЗапланованіВитратиНаОфіс[],,1),0),MATCH(РізницяВитратНаОфіс[[#Headers],[Тра]],ФактичніВитратиНаОфіс[#Headers],0)) -> 5.00₴ | H15: =INDEX(ЗапланованіВитратиНаОфіс[],MATCH(INDEX(РізницяВитратНаОфіс[],ROW()-ROW(РізницяВитратНаОфіс[[#Headers],[Чер]]),1),INDEX(ЗапланованіВитратиНаОфіс[],,1),0),MATCH(РізницяВитратНаОфіс[[#Headers],[Чер]],ЗапланованіВитратиНаОфіс[#Headers],0))-INDEX(ФактичніВитратиНаОфіс[],MATCH(INDEX(РізницяВитратНаОфіс[],ROW()-ROW(РізницяВитратНаОфіс[[#Headers],[Чер]]),1),INDEX(ЗапланованіВитратиНаОфіс[],,1),0),MATCH(РізницяВитратНаОфіс[[#Headers],[Чер]],ФактичніВитратиНаОфіс[#Headers],0)) -> 30.00₴ | I15: =INDEX(ЗапланованіВитратиНаОфіс[],MATCH(INDEX(РізницяВитратНаОфіс[],ROW()-ROW(РізницяВитратНаОфіс[[#Headers],[Лип]]),1),INDEX(ЗапланованіВитратиНаОфіс[],,1),0),MATCH(РізницяВитратНаОфіс[[#Headers],[Лип]],ЗапланованіВитратиНаОфіс[#Headers],0))-INDEX(ФактичніВитратиНаОфіс[],MATCH(INDEX(РізницяВитратНаОфіс[],ROW()-ROW(РізницяВитратНаОфіс[[#Headers],[Лип]]),1),INDEX(ЗапланованіВитратиНаОфіс[],,1),0),MATCH(РізницяВитратНаОфіс[[#Headers],[Лип]],ФактичніВитратиНаОфіс[#Headers],0)) -> 250.00₴ | J15: =INDEX(ЗапланованіВитратиНаОфіс[],MATCH(INDEX(РізницяВитратНаОфіс[],ROW()-ROW(РізницяВитратНаОфіс[[#Headers],[Cер]]),1),INDEX(ЗапланованіВитратиНаОфіс[],,1),0),MATCH(РізницяВитратНаОфіс[[#Headers],[Cер]],ЗапланованіВитратиНаОфіс[#Headers],0))-INDEX(ФактичніВитратиНаОфіс[],MATCH(INDEX(РізницяВитратНаОфіс[],ROW()-ROW(РізницяВитратНаОфіс[[#Headers],[Cер]]),1),INDEX(ЗапланованіВитратиНаОфіс[],,1),0),MATCH(РізницяВитратНаОфіс[[#Headers],[Cер]],ФактичніВитратиНаОфіс[#Headers],0)) -> 250.00₴ | K15: =INDEX(ЗапланованіВитратиНаОфіс[],MATCH(INDEX(РізницяВитратНаОфіс[],ROW()-ROW(РізницяВитратНаОфіс[[#Headers],[Вер]]),1),INDEX(ЗапланованіВитратиНаОфіс[],,1),0),MATCH(РізницяВитратНаОфіс[[#Headers],[Вер]],ЗапланованіВитратиНаОфіс[#Headers],0))-INDEX(ФактичніВитратиНаОфіс[],MATCH(INDEX(РізницяВитратНаОфіс[],ROW()-ROW(РізницяВитратНаОфіс[[#Headers],[Вер]]),1),INDEX(ЗапланованіВитратиНаОфіс[],,1),0),MATCH(РізницяВитратНаОфіс[[#Headers],[Вер]],ФактичніВитратиНаОфіс[#Headers],0)) -> 250.00₴ | L15: =INDEX(ЗапланованіВитратиНаОфіс[],MATCH(INDEX(РізницяВитратНаОфіс[],ROW()-ROW(РізницяВитратНаОфіс[[#Headers],[Жов]]),1),INDEX(ЗапланованіВитратиНаОфіс[],,1),0),MATCH(РізницяВитратНаОфіс[[#Headers],[Жов]],ЗапланованіВитратиНаОфіс[#Headers],0))-INDEX(ФактичніВитратиНаОфіс[],MATCH(INDEX(РізницяВитратНаОфіс[],ROW()-ROW(РізницяВитратНаОфіс[[#Headers],[Жов]]),1),INDEX(ЗапланованіВитратиНаОфіс[],,1),0),MATCH(РізницяВитратНаОфіс[[#Headers],[Жов]],ФактичніВитратиНаОфіс[#Headers],0)) -> 250.00₴ | M15: =INDEX(ЗапланованіВитратиНаОфіс[],MATCH(INDEX(РізницяВитратНаОфіс[],ROW()-ROW(РізницяВитратНаОфіс[[#Headers],[Лис]]),1),INDEX(ЗапланованіВитратиНаОфіс[],,1),0),MATCH(РізницяВитратНаОфіс[[#Headers],[Лис]],ЗапланованіВитратиНаОфіс[#Headers],0))-INDEX(ФактичніВитратиНаОфіс[],MATCH(INDEX(РізницяВитратНаОфіс[],ROW()-ROW(РізницяВитратНаОфіс[[#Headers],[Лис]]),1),INDEX(ЗапланованіВитратиНаОфіс[],,1),0),MATCH(РізницяВитратНаОфіс[[#Headers],[Лис]],ФактичніВитратиНаОфіс[#Headers],0)) -> 250.00₴ | N15: =INDEX(ЗапланованіВитратиНаОфіс[],MATCH(INDEX(РізницяВитратНаОфіс[],ROW()-ROW(РізницяВитратНаОфіс[[#Headers],[Гру]]),1),INDEX(ЗапланованіВитратиНаОфіс[],,1),0),MATCH(РізницяВитратНаОфіс[[#Headers],[Гру]],ЗапланованіВитратиНаОфіс[#Headers],0))-INDEX(ФактичніВитратиНаОфіс[],MATCH(INDEX(РізницяВитратНаОфіс[],ROW()-ROW(РізницяВитратНаОфіс[[#Headers],[Гру]]),1),INDEX(ЗапланованіВитратиНаОфіс[],,1),0),MATCH(РізницяВитратНаОфіс[[#Headers],[Гру]],ФактичніВитратиНаОфіс[#Headers],0)) -> 250.00₴ | O15: =SUM(РізницяВитратНаОфіс[[#This Row],[Січ]:[Гру]]) -> 1,566.00₴
B16: Інтернет | C16: =INDEX(ЗапланованіВитратиНаОфіс[],MATCH(INDEX(РізницяВитратНаОфіс[],ROW()-ROW(РізницяВитратНаОфіс[[#Headers],[Січ]]),1),INDEX(ЗапланованіВитратиНаОфіс[],,1),0),MATCH(РізницяВитратНаОфіс[[#Headers],[Січ]],ЗапланованіВитратиНаОфіс[#Headers],0))-INDEX(ФактичніВитратиНаОфіс[],MATCH(INDEX(РізницяВитратНаОфіс[],ROW()-ROW(РізницяВитратНаОфіс[[#Headers],[Січ]]),1),INDEX(ЗапланованіВитратиНаОфіс[],,1),0),MATCH(РізницяВитратНаОфіс[[#Headers],[Січ]],ФактичніВитратиНаОфіс[#Headers],0)) -> 0.00₴ | D16: =INDEX(ЗапланованіВитратиНаОфіс[],MATCH(INDEX(РізницяВитратНаОфіс[],ROW()-ROW(РізницяВитратНаОфіс[[#Headers],[Лют]]),1),INDEX(ЗапланованіВитратиНаОфіс[],,1),0),MATCH(РізницяВитратНаОфіс[[#Headers],[Лют]],ЗапланованіВитратиНаОфіс[#Headers],0))-INDEX(ФактичніВитратиНаОфіс[],MATCH(INDEX(РізницяВитратНаОфіс[],ROW()-ROW(РізницяВитратНаОфіс[[#Headers],[Лют]]),1),INDEX(ЗапланованіВитратиНаОфіс[],,1),0),MATCH(РізницяВитратНаОфіс[[#Headers],[Лют]],ФактичніВитратиНаОфіс[#Headers],0)) -> 0.00₴ | E16: =INDEX(ЗапланованіВитратиНаОфіс[],MATCH(INDEX(РізницяВитратНаОфіс[],ROW()-ROW(РізницяВитратНаОфіс[[#Headers],[Бер]]),1),INDEX(ЗапланованіВитратиНаОфіс[],,1),0),MATCH(РізницяВитратНаОфіс[[#Headers],[Бер]],ЗапланованіВитратиНаОфіс[#Headers],0))-INDEX(ФактичніВитратиНаОфіс[],MATCH(INDEX(РізницяВитратНаОфіс[],ROW()-ROW(РізницяВитратНаОфіс[[#Headers],[Бер]]),1),INDEX(ЗапланованіВитратиНаОфіс[],,1),0),MATCH(РізницяВитратНаОфіс[[#Headers],[Бер]],ФактичніВитратиНаОфіс[#Headers],0)) -> 0.00₴ | F16: =INDEX(ЗапланованіВитратиНаОфіс[],MATCH(INDEX(РізницяВитратНаОфіс[],ROW()-ROW(РізницяВитратНаОфіс[[#Headers],[Кві]]),1),INDEX(ЗапланованіВитратиНаОфіс[],,1),0),MATCH(РізницяВитратНаОфіс[[#Headers],[Кві]],ЗапланованіВитратиНаОфіс[#Headers],0))-INDEX(ФактичніВитратиНаОфіс[],MATCH(INDEX(РізницяВитратНаОфіс[],ROW()-ROW(РізницяВитратНаОфіс[[#Headers],[Кві]]),1),INDEX(ЗапланованіВитратиНаОфіс[],,1),0),MATCH(РізницяВитратНаОфіс[[#Headers],[Кві]],ФактичніВитратиНаОфіс[#Headers],0)) -> 0.00₴ | G16: =INDEX(ЗапланованіВитратиНаОфіс[],MATCH(INDEX(РізницяВитратНаОфіс[],ROW()-ROW(РізницяВитратНаОфіс[[#Headers],[Тра]]),1),INDEX(ЗапланованіВитратиНаОфіс[],,1),0),MATCH(РізницяВитратНаОфіс[[#Headers],[Тра]],ЗапланованіВитратиНаОфіс[#Headers],0))-INDEX(ФактичніВитратиНаОфіс[],MATCH(INDEX(РізницяВитратНаОфіс[],ROW()-ROW(РізницяВитратНаОфіс[[#Headers],[Тра]]),1),INDEX(ЗапланованіВитратиНаОфіс[],,1),0),MATCH(РізницяВитратНаОфіс[[#Headers],[Тра]],ФактичніВитратиНаОфіс[#Headers],0)) -> 0.00₴ | H16: =INDEX(ЗапланованіВитратиНаОфіс[],MATCH(INDEX(РізницяВитратНаОфіс[],ROW()-ROW(РізницяВитратНаОфіс[[#Headers],[Чер]]),1),INDEX(ЗапланованіВитратиНаОфіс[],,1),0),MATCH(РізницяВитратНаОфіс[[#Headers],[Чер]],ЗапланованіВитратиНаОфіс[#Headers],0))-INDEX(ФактичніВитратиНаОфіс[],MATCH(INDEX(РізницяВитратНаОфіс[],ROW()-ROW(РізницяВитратНаОфіс[[#Headers],[Чер]]),1),INDEX(ЗапланованіВитратиНаОфіс[],,1),0),MATCH(РізницяВитратНаОфіс[[#Headers],[Чер]],ФактичніВитратиНаОфіс[#Headers],0)) -> 0.00₴ | I16: =INDEX(ЗапланованіВитратиНаОфіс[],MATCH(INDEX(РізницяВитратНаОфіс[],ROW()-ROW(РізницяВитратНаОфіс[[#Headers],[Лип]]),1),INDEX(ЗапланованіВитратиНаОфіс[],,1),0),MATCH(РізницяВитратНаОфіс[[#Headers],[Лип]],ЗапланованіВитратиНаОфіс[#Headers],0))-INDEX(ФактичніВитратиНаОфіс[],MATCH(INDEX(РізницяВитратНаОфіс[],ROW()-ROW(РізницяВитратНаОфіс[[#Headers],[Лип]]),1),INDEX(ЗапланованіВитратиНаОфіс[],,1),0),MATCH(РізницяВитратНаОфіс[[#Headers],[Лип]],ФактичніВитратиНаОфіс[#Headers],0)) -> 180.00₴ | J16: =INDEX(ЗапланованіВитратиНаОфіс[],MATCH(INDEX(РізницяВитратНаОфіс[],ROW()-ROW(РізницяВитратНаОфіс[[#Headers],[Cер]]),1),INDEX(ЗапланованіВитратиНаОфіс[],,1),0),MATCH(РізницяВитратНаОфіс[[#Headers],[Cер]],ЗапланованіВитратиНаОфіс[#Headers],0))-INDEX(ФактичніВитратиНаОфіс[],MATCH(INDEX(РізницяВитратНаОфіс[],ROW()-ROW(РізницяВитратНаОфіс[[#Headers],[Cер]]),1),INDEX(ЗапланованіВитратиНаОфіс[],,1),0),MATCH(РізницяВитратНаОфіс[[#Headers],[Cер]],ФактичніВитратиНаОфіс[#Headers],0)) -> 180.00₴ | K16: =INDEX(ЗапланованіВитратиНаОфіс[],MATCH(INDEX(РізницяВитратНаОфіс[],ROW()-ROW(РізницяВитратНаОфіс[[#Headers],[Вер]]),1),INDEX(ЗапланованіВитратиНаОфіс[],,1),0),MATCH(РізницяВитратНаОфіс[[#Headers],[Вер]],ЗапланованіВитратиНаОфіс[#Headers],0))-INDEX(ФактичніВитратиНаОфіс[],MATCH(INDEX(РізницяВитратНаОфіс[],ROW()-ROW(РізницяВитратНаОфіс[[#Headers],[Вер]]),1),INDEX(ЗапланованіВитратиНаОфіс[],,1),0),MATCH(РізницяВитратНаОфіс[[#Headers],[Вер]],ФактичніВитратиНаОфіс[#Headers],0)) -> 180.00₴ | L16: =INDEX(ЗапланованіВитратиНаОфіс[],MATCH(INDEX(РізницяВитратНаОфіс[],ROW()-ROW(РізницяВитратНаОфіс[[#Headers],[Жов]]),1),INDEX(ЗапланованіВитратиНаОфіс[],,1),0),MATCH(РізницяВитратНаОфіс[[#Headers],[Жов]],ЗапланованіВитратиНаОфіс[#Headers],0))-INDEX(ФактичніВитратиНаОфіс[],MATCH(INDEX(РізницяВитратНаОфіс[],ROW()-ROW(РізницяВитратНаОфіс[[#Headers],[Жов]]),1),INDEX(ЗапланованіВитратиНаОфіс[],,1),0),MATCH(РізницяВитратНаОфіс[[#Headers],[Жов]],ФактичніВитратиНаОфіс[#Headers],0)) -> 180.00₴ | M16: =INDEX(ЗапланованіВитратиНаОфіс[],MATCH(INDEX(РізницяВитратНаОфіс[],ROW()-ROW(РізницяВитратНаОфіс[[#Headers],[Лис]]),1),INDEX(ЗапланованіВитратиНаОфіс[],,1),0),MATCH(РізницяВитратНаОфіс[[#Headers],[Лис]],ЗапланованіВитратиНаОфіс[#Headers],0))-INDEX(ФактичніВитратиНаОфіс[],MATCH(INDEX(РізницяВитратНаОфіс[],ROW()-ROW(РізницяВитратНаОфіс[[#Headers],[Лис]]),1),INDEX(ЗапланованіВитратиНаОфіс[],,1),0),MATCH(РізницяВитратНаОфіс[[#Headers],[Лис]],ФактичніВитратиНаОфіс[#Headers],0)) -> 180.00₴ | N16: =INDEX(ЗапланованіВитратиНаОфіс[],MATCH(INDEX(РізницяВитратНаОфіс[],ROW()-ROW(РізницяВитратНаОфіс[[#Headers],[Гру]]),1),INDEX(ЗапланованіВитратиНаОфіс[],,1),0),MATCH(РізницяВитратНаОфіс[[#Headers],[Гру]],ЗапланованіВитратиНаОфіс[#Headers],0))-INDEX(ФактичніВитратиНаОфіс[],MATCH(INDEX(РізницяВитратНаОфіс[],ROW()-ROW(РізницяВитратНаОфіс[[#Headers],[Гру]]),1),INDEX(ЗапланованіВитратиНаОфіс[],,1),0),MATCH(РізницяВитратНаОфіс[[#Headers],[Гру]],ФактичніВитратиНаОфіс[#Headers],0)) -> 180.00₴ | O16: =SUM(РізницяВитратНаОфіс[[#This Row],[Січ]:[Гру]]) -> 1,080.00₴
B17: Матеріально-технічне забезпечення офісу | C17: =INDEX(ЗапланованіВитратиНаОфіс[],MATCH(INDEX(РізницяВитратНаОфіс[],ROW()-ROW(РізницяВитратНаОфіс[[#Headers],[Січ]]),1),INDEX(ЗапланованіВитратиНаОфіс[],,1),0),MATCH(РізницяВитратНаОфіс[[#Headers],[Січ]],ЗапланованіВитратиНаОфіс[#Headers],0))-INDEX(ФактичніВитратиНаОфіс[],MATCH(INDEX(РізницяВитратНаОфіс[],ROW()-ROW(РізницяВитратНаОфіс[[#Headers],[Січ]]),1),INDEX(ЗапланованіВитратиНаОфіс[],,1),0),MATCH(РізницяВитратНаОфіс[[#Headers],[Січ]],ФактичніВитратиНаОфіс[#Headers],0)) -> -56.00₴ | D17: =INDEX(ЗапланованіВитратиНаОфіс[],MATCH(INDEX(РізницяВитратНаОфіс[],ROW()-ROW(РізницяВитратНаОфіс[[#Headers],[Лют]]),1),INDEX(ЗапланованіВитратиНаОфіс[],,1),0),MATCH(РізницяВитратНаОфіс[[#Headers],[Лют]],ЗапланованіВитратиНаОфіс[#Headers],0))-INDEX(ФактичніВитратиНаОфіс[],MATCH(INDEX(РізницяВитратНаОфіс[],ROW()-ROW(РізницяВитратНаОфіс[[#Headers],[Лют]]),1),INDEX(ЗапланованіВитратиНаОфіс[],,1),0),MATCH(РізницяВитратНаОфіс[[#Headers],[Лют]],ФактичніВитратиНаОфіс[#Headers],0)) -> 58.00₴ | E17: =INDEX(ЗапланованіВитратиНаОфіс[],MATCH(INDEX(РізницяВитратНаОфіс[],ROW()-ROW(РізницяВитратНаОфіс[[#Headers],[Бер]]),1),INDEX(ЗапланованіВитратиНаОфіс[],,1),0),MATCH(РізницяВитратНаОфіс[[#Headers],[Бер]],ЗапланованіВитратиНаОфіс[#Headers],0))-INDEX(ФактичніВитратиНаОфіс[],MATCH(INDEX(РізницяВитратНаОфіс[],ROW()-ROW(РізницяВитратНаОфіс[[#Headers],[Бер]]),1),INDEX(ЗапланованіВитратиНаОфіс[],,1),0),MATCH(РізницяВитратНаОфіс[[#Headers],[Бер]],ФактичніВитратиНаОфіс[#Headers],0)) -> 40.00₴ | F17: =INDEX(ЗапланованіВитратиНаОфіс[],MATCH(INDEX(РізницяВитратНаОфіс[],ROW()-ROW(РізницяВитратНаОфіс[[#Headers],[Кві]]),1),INDEX(ЗапланованіВитратиНаОфіс[],,1),0),MATCH(РізницяВитратНаОфіс[[#Headers],[Кві]],ЗапланованіВитратиНаОфіс[#Headers],0))-INDEX(ФактичніВитратиНаОфіс[],MATCH(INDEX(РізницяВитратНаОфіс[],ROW()-ROW(РізницяВитратНаОфіс[[#Headers],[Кві]]),1),INDEX(ЗапланованіВитратиНаОфіс[],,1),0),MATCH(РізницяВитратНаОфіс[[#Headers],[Кві]],ФактичніВитратиНаОфіс[#Headers],0)) -> -21.00₴ | G17: =INDEX(ЗапланованіВитратиНаОфіс[],MATCH(INDEX(РізницяВитратНаОфіс[],ROW()-ROW(РізницяВитратНаОфіс[[#Headers],[Тра]]),1),INDEX(ЗапланованіВитратиНаОфіс[],,1),0),MATCH(РізницяВитратНаОфіс[[#Headers],[Тра]],ЗапланованіВитратиНаОфіс[#Headers],0))-INDEX(ФактичніВитратиНаОфіс[],MATCH(INDEX(РізницяВитратНаОфіс[],ROW()-ROW(РізницяВитратНаОфіс[[#Headers],[Тра]]),1),INDEX(ЗапланованіВитратиНаОфіс[],,1),0),MATCH(РізницяВитратНаОфіс[[#Headers],[Тра]],ФактичніВитратиНаОфіс[#Headers],0)) -> -56.00₴ | H17: =INDEX(ЗапланованіВитратиНаОфіс[],MATCH(INDEX(РізницяВитратНаОфіс[],ROW()-ROW(РізницяВитратНаОфіс[[#Headers],[Чер]]),1),INDEX(ЗапланованіВитратиНаОфіс[],,1),0),MATCH(РізницяВитратНаОфіс[[#Headers],[Чер]],ЗапланованіВитратиНаОфіс[#Headers],0))-INDEX(ФактичніВитратиНаОфіс[],MATCH(INDEX(РізницяВитратНаОфіс[],ROW()-ROW(РізницяВитратНаОфіс[[#Headers],[Чер]]),1),INDEX(ЗапланованіВитратиНаОфіс[],,1),0),MATCH(РізницяВитратНаОфіс[[#Headers],[Чер]],ФактичніВитратиНаОфіс[#Headers],0)) -> -40.00₴ | I17: =INDEX(ЗапланованіВитратиНаОфіс[],MATCH(INDEX(РізницяВитратНаОфіс[],ROW()-ROW(РізницяВитратНаОфіс[[#Headers],[Лип]]),1),INDEX(ЗапланованіВитратиНаОфіс[],,1),0),MATCH(РізницяВитратНаОфіс[[#Headers],[Лип]],ЗапланованіВитратиНаОфіс[#Headers],0))-INDEX(ФактичніВитратиНаОфіс[],MATCH(INDEX(РізницяВитратНаОфіс[],ROW()-ROW(РізницяВитратНаОфіс[[#Headers],[Лип]]),1),INDEX(ЗапланованіВитратиНаОфіс[],,1),0),MATCH(РізницяВитратНаОфіс[[#Headers],[Лип]],ФактичніВитратиНаОфіс[#Headers],0)) -> 200.00₴ | J17: =INDEX(ЗапланованіВитратиНаОфіс[],MATCH(INDEX(РізницяВитратНаОфіс[],ROW()-ROW(РізницяВитратНаОфіс[[#Headers],[Cер]]),1),INDEX(ЗапланованіВитратиНаОфіс[],,1),0),MATCH(РізницяВитратНаОфіс[[#Headers],[Cер]],ЗапланованіВитратиНаОфіс[#Headers],0))-INDEX(ФактичніВитратиНаОфіс[],MATCH(INDEX(РізницяВитратНаОфіс[],ROW()-ROW(РізницяВитратНаОфіс[[#Headers],[Cер]]),1),INDEX(ЗапланованіВитратиНаОфіс[],,1),0),MATCH(РізницяВитратНаОфіс[[#Headers],[Cер]],ФактичніВитратиНаОфіс[#Headers],0)) -> 200.00₴ | K17: =INDEX(ЗапланованіВитратиНаОфіс[],MATCH(INDEX(РізницяВитратНаОфіс[],ROW()-ROW(РізницяВитратНаОфіс[[#Headers],[Вер]]),1),INDEX(ЗапланованіВитратиНаОфіс[],,1),0),MATCH(РізницяВитратНаОфіс[[#Headers],[Вер]],ЗапланованіВитратиНаОфіс[#Headers],0))-INDEX(ФактичніВитратиНаОфіс[],MATCH(INDEX(РізницяВитратНаОфіс[],ROW()-ROW(РізницяВитратНаОфіс[[#Headers],[Вер]]),1),INDEX(ЗапланованіВитратиНаОфіс[],,1),0),MATCH(РізницяВитратНаОфіс[[#Headers],[Вер]],ФактичніВитратиНаОфіс[#Headers],0)) -> 200.00₴ | L17: =INDEX(ЗапланованіВитратиНаОфіс[],MATCH(INDEX(РізницяВитратНаОфіс[],ROW()-ROW(РізницяВитратНаОфіс[[#Headers],[Жов]]),1),INDEX(ЗапланованіВитратиНаОфіс[],,1),0),MATCH(РізницяВитратНаОфіс[[#Headers],[Жов]],ЗапланованіВитратиНаОфіс[#Headers],0))-INDEX(ФактичніВитратиНаОфіс[],MATCH(INDEX(РізницяВитратНаОфіс[],ROW()-ROW(РізницяВитратНаОфіс[[#Headers],[Жов]]),1),INDEX(ЗапланованіВитратиНаОфіс[],,1),0),MATCH(РізницяВитратНаОфіс[[#Headers],[Жов]],ФактичніВитратиНаОфіс[#Headers],0)) -> 200.00₴ | M17: =INDEX(ЗапланованіВитратиНаОфіс[],MATCH(INDEX(РізницяВитратНаОфіс[],ROW()-ROW(РізницяВитратНаОфіс[[#Headers],[Лис]]),1),INDEX(ЗапланованіВитратиНаОфіс[],,1),0),MATCH(РізницяВитратНаОфіс[[#Headers],[Лис]],ЗапланованіВитратиНаОфіс[#Headers],0))-INDEX(ФактичніВитратиНаОфіс[],MATCH(INDEX(РізницяВитратНаОфіс[],ROW()-ROW(РізницяВитратНаОфіс[[#Headers],[Лис]]),1),INDEX(ЗапланованіВитратиНаОфіс[],,1),0),MATCH(РізницяВитратНаОфіс[[#Headers],[Лис]],ФактичніВитратиНаОфіс[#Headers],0)) -> 200.00₴ | N17: =INDEX(ЗапланованіВитратиНаОфіс[],MATCH(INDEX(РізницяВитратНаОфіс[],ROW()-ROW(РізницяВитратНаОфіс[[#Headers],[Гру]]),1),INDEX(ЗапланованіВитратиНаОфіс[],,1),0),MATCH(РізницяВитратНаОфіс[[#Headers],[Гру]],ЗапланованіВитратиНаОфіс[#Headers],0))-INDEX(ФактичніВитратиНаОфіс[],MATCH(INDEX(РізницяВитратНаОфіс[],ROW()-ROW(РізницяВитратНаОфіс[[#Headers],[Гру]]),1),INDEX(ЗапланованіВитратиНаОфіс[],,1),0),MATCH(РізницяВитратНаОфіс[[#Headers],[Гру]],ФактичніВитратиНаОфіс[#Headers],0)) -> 200.00₴ | O17: =SUM(РізницяВитратНаОфіс[[#This Row],[Січ]:[Гру]]) -> 1,125.00₴
B18: Безпека | C18: =INDEX(ЗапланованіВитратиНаОфіс[],MATCH(INDEX(РізницяВитратНаОфіс[],ROW()-ROW(РізницяВитратНаОфіс[[#Headers],[Січ]]),1),INDEX(ЗапланованіВитратиНаОфіс[],,1),0),MATCH(РізницяВитратНаОфіс[[#Headers],[Січ]],ЗапланованіВитратиНаОфіс[#Headers],0))-INDEX(ФактичніВитратиНаОфіс[],MATCH(INDEX(РізницяВитратНаОфіс[],ROW()-ROW(РізницяВитратНаОфіс[[#Headers],[Січ]]),1),INDEX(ЗапланованіВитратиНаОфіс[],,1),0),MATCH(РізницяВитратНаОфіс[[#Headers],[Січ]],ФактичніВитратиНаОфіс[#Headers],0)) -> 0.00₴ | D18: =INDEX(ЗапланованіВитратиНаОфіс[],MATCH(INDEX(РізницяВитратНаОфіс[],ROW()-ROW(РізницяВитратНаОфіс[[#Headers],[Лют]]),1),INDEX(ЗапланованіВитратиНаОфіс[],,1),0),MATCH(РізницяВитратНаОфіс[[#Headers],[Лют]],ЗапланованіВитратиНаОфіс[#Headers],0))-INDEX(ФактичніВитратиНаОфіс[],MATCH(INDEX(РізницяВитратНаОфіс[],ROW()-ROW(РізницяВитратНаОфіс[[#Headers],[Лют]]),1),INDEX(ЗапланованіВитратиНаОфіс[],,1),0),MATCH(РізницяВитратНаОфіс[[#Headers],[Лют]],ФактичніВитратиНаОфіс[#Headers],0)) -> 0.00₴ | E18: =INDEX(ЗапланованіВитратиНаОфіс[],MATCH(INDEX(РізницяВитратНаОфіс[],ROW()-ROW(РізницяВитратНаОфіс[[#Headers],[Бер]]),1),INDEX(ЗапланованіВитратиНаОфіс[],,1),0),MATCH(РізницяВитратНаОфіс[[#Headers],[Бер]],ЗапланованіВитратиНаОфіс[#Headers],0))-INDEX(ФактичніВитратиНаОфіс[],MATCH(INDEX(РізницяВитратНаОфіс[],ROW()-ROW(РізницяВитратНаОфіс[[#Headers],[Бер]]),1),INDEX(ЗапланованіВитратиНаОфіс[],,1),0),MATCH(РізницяВитратНаОфіс[[#Headers],[Бер]],ФактичніВитратиНаОфіс[#Headers],0)) -> 0.00₴ | F18: =INDEX(ЗапланованіВитратиНаОфіс[],MATCH(INDEX(РізницяВитратНаОфіс[],ROW()-ROW(РізницяВитратНаОфіс[[#Headers],[Кві]]),1),INDEX(ЗапланованіВитратиНаОфіс[],,1),0),MATCH(РізницяВитратНаОфіс[[#Headers],[Кві]],ЗапланованіВитратиНаОфіс[#Headers],0))-INDEX(ФактичніВитратиНаОфіс[],MATCH(INDEX(РізницяВитратНаОфіс[],ROW()-ROW(РізницяВитратНаОфіс[[#Headers],[Кві]]),1),INDEX(ЗапланованіВитратиНаОфіс[],,1),0),MATCH(РізницяВитратНаОфіс[[#Headers],[Кві]],ФактичніВитратиНаОфіс[#Headers],0)) -> 0.00₴ | G18: =INDEX(ЗапланованіВитратиНаОфіс[],MATCH(INDEX(РізницяВитратНаОфіс[],ROW()-ROW(РізницяВитратНаОфіс[[#Headers],[Тра]]),1),INDEX(ЗапланованіВитратиНаОфіс[],,1),0),MATCH(РізницяВитратНаОфіс[[#Headers],[Тра]],ЗапланованіВитратиНаОфіс[#Headers],0))-INDEX(ФактичніВитратиНаОфіс[],MATCH(INDEX(РізницяВитратНаОфіс[],ROW()-ROW(РізницяВитратНаОфіс[[#Headers],[Тра]]),1),INDEX(ЗапланованіВитратиНаОфіс[],,1),0),MATCH(РізницяВитратНаОфіс[[#Headers],[Тра]],ФактичніВитратиНаОфіс[#Headers],0)) -> 0.00₴ | H18: =INDEX(ЗапланованіВитратиНаОфіс[],MATCH(INDEX(РізницяВитратНаОфіс[],ROW()-ROW(РізницяВитратНаОфіс[[#Headers],[Чер]]),1),INDEX(ЗапланованіВитратиНаОфіс[],,1),0),MATCH(РізницяВитратНаОфіс[[#Headers],[Чер]],ЗапланованіВитратиНаОфіс[#Headers],0))-INDEX(ФактичніВитратиНаОфіс[],MATCH(INDEX(РізницяВитратНаОфіс[],ROW()-ROW(РізницяВитратНаОфіс[[#Headers],[Чер]]),1),INDEX(ЗапланованіВитратиНаОфіс[],,1),0),MATCH(РізницяВитратНаОфіс[[#Headers],[Чер]],ФактичніВитратиНаОфіс[#Headers],0)) -> 0.00₴ | I18: =INDEX(ЗапланованіВитратиНаОфіс[],MATCH(INDEX(РізницяВитратНаОфіс[],ROW()-ROW(РізницяВитратНаОфіс[[#Headers],[Лип]]),1),INDEX(ЗапланованіВитратиНаОфіс[],,1),0),MATCH(РізницяВитратНаОфіс[[#Headers],[Лип]],ЗапланованіВитратиНаОфіс[#Headers],0))-INDEX(ФактичніВитратиНаОфіс[],MATCH(INDEX(РізницяВитратНаОфіс[],ROW()-ROW(РізницяВитратНаОфіс[[#Headers],[Лип]]),1),INDEX(ЗапланованіВитратиНаОфіс[],,1),0),MATCH(РізницяВитратНаОфіс[[#Headers],[Лип]],ФактичніВитратиНаОфіс[#Headers],0)) -> 600.00₴ | J18: =INDEX(ЗапланованіВитратиНаОфіс[],MATCH(INDEX(РізницяВитратНаОфіс[],ROW()-ROW(РізницяВитратНаОфіс[[#Headers],[Cер]]),1),INDEX(ЗапланованіВитратиНаОфіс[],,1),0),MATCH(РізницяВитратНаОфіс[[#Headers],[Cер]],ЗапланованіВитратиНаОфіс[#Headers],0))-INDEX(ФактичніВитратиНаОфіс[],MATCH(INDEX(РізницяВитратНаОфіс[],ROW()-ROW(РізницяВитратНаОфіс[[#Headers],[Cер]]),1),INDEX(ЗапланованіВитратиНаОфіс[],,1),0),MATCH(РізницяВитратНаОфіс[[#Headers],[Cер]],ФактичніВитратиНаОфіс[#Headers],0)) -> 600.00₴ | K18: =INDEX(ЗапланованіВитратиНаОфіс[],MATCH(INDEX(РізницяВитратНаОфіс[],ROW()-ROW(РізницяВитратНаОфіс[[#Headers],[Вер]]),1),INDEX(ЗапланованіВитратиНаОфіс[],,1),0),MATCH(РізницяВитратНаОфіс[[#Headers],[Вер]],ЗапланованіВитратиНаОфіс[#Headers],0))-INDEX(ФактичніВитратиНаОфіс[],MATCH(INDEX(РізницяВитратНаОфіс[],ROW()-ROW(РізницяВитратНаОфіс[[#Headers],[Вер]]),1),INDEX(ЗапланованіВитратиНаОфіс[],,1),0),MATCH(РізницяВитратНаОфіс[[#Headers],[Вер]],ФактичніВитратиНаОфіс[#Headers],0)) -> 600.00₴ | L18: =INDEX(ЗапланованіВитратиНаОфіс[],MATCH(INDEX(РізницяВитратНаОфіс[],ROW()-ROW(РізницяВитратНаОфіс[[#Headers],[Жов]]),1),INDEX(ЗапланованіВитратиНаОфіс[],,1),0),MATCH(РізницяВитратНаОфіс[[#Headers],[Жов]],ЗапланованіВитратиНаОфіс[#Headers],0))-INDEX(ФактичніВитратиНаОфіс[],MATCH(INDEX(РізницяВитратНаОфіс[],ROW()-ROW(РізницяВитратНаОфіс[[#Headers],[Жов]]),1),INDEX(ЗапланованіВитратиНаОфіс[],,1),0),MATCH(РізницяВитратНаОфіс[[#Headers],[Жов]],ФактичніВитратиНаОфіс[#Headers],0)) -> 600.00₴ | M18: =INDEX(ЗапланованіВитратиНаОфіс[],MATCH(INDEX(РізницяВитратНаОфіс[],ROW()-ROW(РізницяВитратНаОфіс[[#Headers],[Лис]]),1),INDEX(ЗапланованіВитратиНаОфіс[],,1),0),MATCH(РізницяВитратНаОфіс[[#Headers],[Лис]],ЗапланованіВитратиНаОфіс[#Headers],0))-INDEX(ФактичніВитратиНаОфіс[],MATCH(INDEX(РізницяВитратНаОфіс[],ROW()-ROW(РізницяВитратНаОфіс[[#Headers],[Лис]]),1),INDEX(ЗапланованіВитратиНаОфіс[],,1),0),MATCH(РізницяВитратНаОфіс[[#Headers],[Лис]],ФактичніВитратиНаОфіс[#Headers],0)) -> 600.00₴ | N18: =INDEX(ЗапланованіВитратиНаОфіс[],MATCH(INDEX(РізницяВитратНаОфіс[],ROW()-ROW(РізницяВитратНаОфіс[[#Headers],[Гру]]),1),INDEX(ЗапланованіВитратиНаОфіс[],,1),0),MATCH(РізницяВитратНаОфіс[[#Headers],[Гру]],ЗапланованіВитратиНаОфіс[#Headers],0))-INDEX(ФактичніВитратиНаОфіс[],MATCH(INDEX(РізницяВитратНаОфіс[],ROW()-ROW(РізницяВитратНаОфіс[[#Headers],[Гру]]),1),INDEX(ЗапланованіВитратиНаОфіс[],,1),0),MATCH(РізницяВитратНаОфіс[[#Headers],[Гру]],ФактичніВитратиНаОфіс[#Headers],0)) -> 600.00₴ | O18: =SUM(РізницяВитратНаОфіс[[#This Row],[Січ]:[Гру]]) -> 3,600.00₴
B19: Проміжний підсумок | C19: =SUBTOTAL(109,РізницяВитратНаОфіс[Січ]) -> -17.00₴ | D19: =SUBTOTAL(109,РізницяВитратНаОфіс[Лют]) -> 72.00₴ | E19: =SUBTOTAL(109,РізницяВитратНаОфіс[Бер]) -> 78.00₴ | F19: =SUBTOTAL(109,РізницяВитратНаОфіс[Кві]) -> -141.00₴ | G19: =SUBTOTAL(109,РізницяВитратНаОфіс[Тра]) -> -38.00₴ | H19: =SUBTOTAL(109,РізницяВитратНаОфіс[Чер]) -> 16.00₴ | I19: =SUBTOTAL(109,РізницяВитратНаОфіс[Лип]) -> 11,470.00₴ | J19: =SUBTOTAL(109,РізницяВитратНаОфіс[Cер]) -> 11,470.00₴ | K19: =SUBTOTAL(109,РізницяВитратНаОфіс[Вер]) -> 11,470.00₴ | L19: =SUBTOTAL(109,РізницяВитратНаОфіс[Жов]) -> 11,470.00₴ | M19: =SUBTOTAL(109,РізницяВитратНаОфіс[Лис]) -> 11,770.00₴ | N19: =SUBTOTAL(109,РізницяВитратНаОфіс[Гру]) -> 11,770.00₴ | O19: =SUBTOTAL(109,РізницяВитратНаОфіс[РІК]) -> 69,390.00₴
A21: Різниця витрати на маркетинг автоматично обчислюється в таблиці, починаючи з клітинки праворуч. Подальші вказівки наведено в клітинці A30. | B21: Витрати на маркетинг | C21: Січ | D21: Лют | E21: Бер | F21: Кві | G21: Тра | H21: Чер | I21: Лип | J21: Cер | K21: Вер | L21: Жов | M21: Лис | N21: Гру | O21: РІК
B22: Розміщення веб-сайту | C22: =INDEX(ЗапланованіВитратиНаМаркетинг[],MATCH(INDEX(РізницяВитратНаМаркетинг[],ROW()-ROW(РізницяВитратНаМаркетинг[[#Headers],[Січ]]),1),INDEX(ЗапланованіВитратиНаМаркетинг[],,1),0),MATCH(РізницяВитратНаМаркетинг[[#Headers],[Січ]],ЗапланованіВитратиНаМаркетинг[#Headers],0))-INDEX(ФактичніВитратиНаМаркетинг[],MATCH(INDEX(РізницяВитратНаМаркетинг[],ROW()-ROW(РізницяВитратНаМаркетинг[[#Headers],[Січ]]),1),INDEX(ЗапланованіВитратиНаМаркетинг[],,1),0),MATCH(РізницяВитратНаМаркетинг[[#Headers],[Січ]],ФактичніВитратиНаМаркетинг[#Headers],0)) -> 0.00₴ | D22: =INDEX(ЗапланованіВитратиНаМаркетинг[],MATCH(INDEX(РізницяВитратНаМаркетинг[],ROW()-ROW(РізницяВитратНаМаркетинг[[#Headers],[Лют]]),1),INDEX(ЗапланованіВитратиНаМаркетинг[],,1),0),MATCH(РізницяВитратНаМаркетинг[[#Headers],[Лют]],ЗапланованіВитратиНаМаркетинг[#Headers],0))-INDEX(ФактичніВитратиНаМаркетинг[],MATCH(INDEX(РізницяВитратНаМаркетинг[],ROW()-ROW(РізницяВитратНаМаркетинг[[#Headers],[Лют]]),1),INDEX(ЗапланованіВитратиНаМаркетинг[],,1),0),MATCH(РізницяВитратНаМаркетинг[[#Headers],[Лют]],ФактичніВитратиНаМаркетинг[#Headers],0)) -> 0.00₴ | E22: =INDEX(ЗапланованіВитратиНаМаркетинг[],MATCH(INDEX(РізницяВитратНаМаркетинг[],ROW()-ROW(РізницяВитратНаМаркетинг[[#Headers],[Бер]]),1),INDEX(ЗапланованіВитратиНаМаркетинг[],,1),0),MATCH(РізницяВитратНаМаркетинг[[#Headers],[Бер]],ЗапланованіВитратиНаМаркетинг[#Headers],0))-INDEX(ФактичніВитратиНаМаркетинг[],MATCH(INDEX(РізницяВитратНаМаркетинг[],ROW()-ROW(РізницяВитратНаМаркетинг[[#Headers],[Бер]]),1),INDEX(ЗапланованіВитратиНаМаркетинг[],,1),0),MATCH(РізницяВитратНаМаркетинг[[#Headers],[Бер]],ФактичніВитратиНаМаркетинг[#Headers],0)) -> 0.00₴ | F22: =INDEX(ЗапланованіВитратиНаМаркетинг[],MATCH(INDEX(РізницяВитратНаМаркетинг[],ROW()-ROW(РізницяВитратНаМаркетинг[[#Headers],[Кві]]),1),INDEX(ЗапланованіВитратиНаМаркетинг[],,1),0),MATCH(РізницяВитратНаМаркетинг[[#Headers],[Кві]],ЗапланованіВитратиНаМаркетинг[#Headers],0))-INDEX(ФактичніВитратиНаМаркетинг[],MATCH(INDEX(РізницяВитратНаМаркетинг[],ROW()-ROW(РізницяВитратНаМаркетинг[[#Headers],[Кві]]),1),INDEX(ЗапланованіВитратиНаМаркетинг[],,1),0),MATCH(РізницяВитратНаМаркетинг[[#Headers],[Кві]],ФактичніВитратиНаМаркетинг[#Headers],0)) -> 0.00₴ | G22: =INDEX(ЗапланованіВитратиНаМаркетинг[],MATCH(INDEX(РізницяВитратНаМаркетинг[],ROW()-ROW(РізницяВитратНаМаркетинг[[#Headers],[Тра]]),1),INDEX(ЗапланованіВитратиНаМаркетинг[],,1),0),MATCH(РізницяВитратНаМаркетинг[[#Headers],[Тра]],ЗапланованіВитратиНаМаркетинг[#Headers],0))-INDEX(ФактичніВитратиНаМаркетинг[],MATCH(INDEX(РізницяВитратНаМаркетинг[],ROW()-ROW(РізницяВитратНаМаркетинг[[#Headers],[Тра]]),1),INDEX(ЗапланованіВитратиНаМаркетинг[],,1),0),MATCH(РізницяВитратНаМаркетинг[[#Headers],[Тра]],ФактичніВитратиНаМаркетинг[#Headers],0)) -> 0.00₴ | H22: =INDEX(ЗапланованіВитратиНаМаркетинг[],MATCH(INDEX(РізницяВитратНаМаркетинг[],ROW()-ROW(РізницяВитратНаМаркетинг[[#Headers],[Чер]]),1),INDEX(ЗапланованіВитратиНаМаркетинг[],,1),0),MATCH(РізницяВитратНаМаркетинг[[#Headers],[Чер]],ЗапланованіВитратиНаМаркетинг[#Headers],0))-INDEX(ФактичніВитратиНаМаркетинг[],MATCH(INDEX(РізницяВитратНаМаркетинг[],ROW()-ROW(РізницяВитратНаМаркетинг[[#Headers],[Чер]]),1),INDEX(ЗапланованіВитратиНаМаркетинг[],,1),0),MATCH(РізницяВитратНаМаркетинг[[#Headers],[Чер]],ФактичніВитратиНаМаркетинг[#Headers],0)) -> 0.00₴ | I22: =INDEX(ЗапланованіВитратиНаМаркетинг[],MATCH(INDEX(РізницяВитратНаМаркетинг[],ROW()-ROW(РізницяВитратНаМаркетинг[[#Headers],[Лип]]),1),INDEX(ЗапланованіВитратиНаМаркетинг[],,1),0),MATCH(РізницяВитратНаМаркетинг[[#Headers],[Лип]],ЗапланованіВитратиНаМаркетинг[#Headers],0))-INDEX(ФактичніВитратиНаМаркетинг[],MATCH(INDEX(РізницяВитратНаМаркетинг[],ROW()-ROW(РізницяВитратНаМаркетинг[[#Headers],[Лип]]),1),INDEX(ЗапланованіВитратиНаМаркетинг[],,1),0),MATCH(РізницяВитратНаМаркетинг[[#Headers],[Лип]],ФактичніВитратиНаМаркетинг[#Headers],0)) -> 500.00₴ | J22: =INDEX(ЗапланованіВитратиНаМаркетинг[],MATCH(INDEX(РізницяВитратНаМаркетинг[],ROW()-ROW(РізницяВитратНаМаркетинг[[#Headers],[Cер]]),1),INDEX(ЗапланованіВитратиНаМаркетинг[],,1),0),MATCH(РізницяВитратНаМаркетинг[[#Headers],[Cер]],ЗапланованіВитратиНаМаркетинг[#Headers],0))-INDEX(ФактичніВитратиНаМаркетинг[],MATCH(INDEX(РізницяВитратНаМаркетинг[],ROW()-ROW(РізницяВитратНаМаркетинг[[#Headers],[Cер]]),1),INDEX(ЗапланованіВитратиНаМаркетинг[],,1),0),MATCH(РізницяВитратНаМаркетинг[[#Headers],[Cер]],ФактичніВитратиНаМаркетинг[#Headers],0)) -> 500.00₴ | K22: =INDEX(ЗапланованіВитратиНаМаркетинг[],MATCH(INDEX(РізницяВитратНаМаркетинг[],ROW()-ROW(РізницяВитратНаМаркетинг[[#Headers],[Вер]]),1),INDEX(ЗапланованіВитратиНаМаркетинг[],,1),0),MATCH(РізницяВитратНаМаркетинг[[#Headers],[Вер]],ЗапланованіВитратиНаМаркетинг[#Headers],0))-INDEX(ФактичніВитратиНаМаркетинг[],MATCH(INDEX(РізницяВитратНаМаркетинг[],ROW()-ROW(РізницяВитратНаМаркетинг[[#Headers],[Вер]]),1),INDEX(ЗапланованіВитратиНаМаркетинг[],,1),0),MATCH(РізницяВитратНаМаркетинг[[#Headers],[Вер]],ФактичніВитратиНаМаркетинг[#Headers],0)) -> 500.00₴ | L22: =INDEX(ЗапланованіВитратиНаМаркетинг[],MATCH(INDEX(РізницяВитратНаМаркетинг[],ROW()-ROW(РізницяВитратНаМаркетинг[[#Headers],[Жов]]),1),INDEX(ЗапланованіВитратиНаМаркетинг[],,1),0),MATCH(РізницяВитратНаМаркетинг[[#Headers],[Жов]],ЗапланованіВитратиНаМаркетинг[#Headers],0))-INDEX(ФактичніВитратиНаМаркетинг[],MATCH(INDEX(РізницяВитратНаМаркетинг[],ROW()-ROW(РізницяВитратНаМаркетинг[[#Headers],[Жов]]),1),INDEX(ЗапланованіВитратиНаМаркетинг[],,1),0),MATCH(РізницяВитратНаМаркетинг[[#Headers],[Жов]],ФактичніВитратиНаМаркетинг[#Headers],0)) -> 500.00₴ | M22: =INDEX(ЗапланованіВитратиНаМаркетинг[],MATCH(INDEX(РізницяВитратНаМаркетинг[],ROW()-ROW(РізницяВитратНаМаркетинг[[#Headers],[Лис]]),1),INDEX(ЗапланованіВитратиНаМаркетинг[],,1),0),MATCH(РізницяВитратНаМаркетинг[[#Headers],[Лис]],ЗапланованіВитратиНаМаркетинг[#Headers],0))-INDEX(ФактичніВитратиНаМаркетинг[],MATCH(INDEX(РізницяВитратНаМаркетинг[],ROW()-ROW(РізницяВитратНаМаркетинг[[#Headers],[Лис]]),1),INDEX(ЗапланованіВитратиНаМаркетинг[],,1),0),MATCH(РізницяВитратНаМаркетинг[[#Headers],[Лис]],ФактичніВитратиНаМаркетинг[#Headers],0)) -> 500.00₴ | N22: =INDEX(ЗапланованіВитратиНаМаркетинг[],MATCH(INDEX(РізницяВитратНаМаркетинг[],ROW()-ROW(РізницяВитратНаМаркетинг[[#Headers],[Гру]]),1),INDEX(ЗапланованіВитратиНаМаркетинг[],,1),0),MATCH(РізницяВитратНаМаркетинг[[#Headers],[Гру]],ЗапланованіВитратиНаМаркетинг[#Headers],0))-INDEX(ФактичніВитратиНаМаркетинг[],MATCH(INDEX(РізницяВитратНаМаркетинг[],ROW()-ROW(РізницяВитратНаМаркетинг[[#Headers],[Гру]]),1),INDEX(ЗапланованіВитратиНаМаркетинг[],,1),0),MATCH(РізницяВитратНаМаркетинг[[#Headers],[Гру]],ФактичніВитратиНаМаркетинг[#Headers],0)) -> 500.00₴ | O22: =SUM(РізницяВитратНаМаркетинг[[#This Row],[Січ]:[Гру]]) -> 3,000.00₴
B23: Оновлення веб-сайту | C23: =INDEX(ЗапланованіВитратиНаМаркетинг[],MATCH(INDEX(РізницяВитратНаМаркетинг[],ROW()-ROW(РізницяВитратНаМаркетинг[[#Headers],[Січ]]),1),INDEX(ЗапланованіВитратиНаМаркетинг[],,1),0),MATCH(РізницяВитратНаМаркетинг[[#Headers],[Січ]],ЗапланованіВитратиНаМаркетинг[#Headers],0))-INDEX(ФактичніВитратиНаМаркетинг[],MATCH(INDEX(РізницяВитратНаМаркетинг[],ROW()-ROW(РізницяВитратНаМаркетинг[[#Headers],[Січ]]),1),INDEX(ЗапланованіВитратиНаМаркетинг[],,1),0),MATCH(РізницяВитратНаМаркетинг[[#Headers],[Січ]],ФактичніВитратиНаМаркетинг[#Headers],0)) -> 0.00₴ | D23: =INDEX(ЗапланованіВитратиНаМаркетинг[],MATCH(INDEX(РізницяВитратНаМаркетинг[],ROW()-ROW(РізницяВитратНаМаркетинг[[#Headers],[Лют]]),1),INDEX(ЗапланованіВитратиНаМаркетинг[],,1),0),MATCH(РізницяВитратНаМаркетинг[[#Headers],[Лют]],ЗапланованіВитратиНаМаркетинг[#Headers],0))-INDEX(ФактичніВитратиНаМаркетинг[],MATCH(INDEX(РізницяВитратНаМаркетинг[],ROW()-ROW(РізницяВитратНаМаркетинг[[#Headers],[Лют]]),1),INDEX(ЗапланованіВитратиНаМаркетинг[],,1),0),MATCH(РізницяВитратНаМаркетинг[[#Headers],[Лют]],ФактичніВитратиНаМаркетинг[#Headers],0)) -> 0.00₴ | E23: =INDEX(ЗапланованіВитратиНаМаркетинг[],MATCH(INDEX(РізницяВитратНаМаркетинг[],ROW()-ROW(РізницяВитратНаМаркетинг[[#Headers],[Бер]]),1),INDEX(ЗапланованіВитратиНаМаркетинг[],,1),0),MATCH(РізницяВитратНаМаркетинг[[#Headers],[Бер]],ЗапланованіВитратиНаМаркетинг[#Headers],0))-INDEX(ФактичніВитратиНаМаркетинг[],MATCH(INDEX(РізницяВитратНаМаркетинг[],ROW()-ROW(РізницяВитратНаМаркетинг[[#Headers],[Бер]]),1),INDEX(ЗапланованіВитратиНаМаркетинг[],,1),0),MATCH(РізницяВитратНаМаркетинг[[#Headers],[Бер]],ФактичніВитратиНаМаркетинг[#Headers],0)) -> 0.00₴ | F23: =INDEX(ЗапланованіВитратиНаМаркетинг[],MATCH(INDEX(РізницяВитратНаМаркетинг[],ROW()-ROW(РізницяВитратНаМаркетинг[[#Headers],[Кві]]),1),INDEX(ЗапланованіВитратиНаМаркетинг[],,1),0),MATCH(РізницяВитратНаМаркетинг[[#Headers],[Кві]],ЗапланованіВитратиНаМаркетинг[#Headers],0))-INDEX(ФактичніВитратиНаМаркетинг[],MATCH(INDEX(РізницяВитратНаМаркетинг[],ROW()-ROW(РізницяВитратНаМаркетинг[[#Headers],[Кві]]),1),INDEX(ЗапланованіВитратиНаМаркетинг[],,1),0),MATCH(РізницяВитратНаМаркетинг[[#Headers],[Кві]],ФактичніВитратиНаМаркетинг[#Headers],0)) -> 0.00₴ | G23: =INDEX(ЗапланованіВитратиНаМаркетинг[],MATCH(INDEX(РізницяВитратНаМаркетинг[],ROW()-ROW(РізницяВитратНаМаркетинг[[#Headers],[Тра]]),1),INDEX(ЗапланованіВитратиНаМаркетинг[],,1),0),MATCH(РізницяВитратНаМаркетинг[[#Headers],[Тра]],ЗапланованіВитратиНаМаркетинг[#Headers],0))-INDEX(ФактичніВитратиНаМаркетинг[],MATCH(INDEX(РізницяВитратНаМаркетинг[],ROW()-ROW(РізницяВитратНаМаркетинг[[#Headers],[Тра]]),1),INDEX(ЗапланованіВитратиНаМаркетинг[],,1),0),MATCH(РізницяВитратНаМаркетинг[[#Headers],[Тра]],ФактичніВитратиНаМаркетинг[#Headers],0)) -> 0.00₴ | H23: =INDEX(ЗапланованіВитратиНаМаркетинг[],MATCH(INDEX(РізницяВитратНаМаркетинг[],ROW()-ROW(РізницяВитратНаМаркетинг[[#Headers],[Чер]]),1),INDEX(ЗапланованіВитратиНаМаркетинг[],,1),0),MATCH(РізницяВитратНаМаркетинг[[#Headers],[Чер]],ЗапланованіВитратиНаМаркетинг[#Headers],0))-INDEX(ФактичніВитратиНаМаркетинг[],MATCH(INDEX(РізницяВитратНаМаркетинг[],ROW()-ROW(РізницяВитратНаМаркетинг[[#Headers],[Чер]]),1),INDEX(ЗапланованіВитратиНаМаркетинг[],,1),0),MATCH(РізницяВитратНаМаркетинг[[#Headers],[Чер]],ФактичніВитратиНаМаркетинг[#Headers],0)) -> -500.00₴ | I23: =INDEX(ЗапланованіВитратиНаМаркетинг[],MATCH(INDEX(РізницяВитратНаМаркетинг[],ROW()-ROW(РізницяВитратНаМаркетинг[[#Headers],[Лип]]),1),INDEX(ЗапланованіВитратиНаМаркетинг[],,1),0),MATCH(РізницяВитратНаМаркетинг[[#Headers],[Лип]],ЗапланованіВитратиНаМаркетинг[#Headers],0))-INDEX(ФактичніВитратиНаМаркетинг[],MATCH(INDEX(РізницяВитратНаМаркетинг[],ROW()-ROW(РізницяВитратНаМаркетинг[[#Headers],[Лип]]),1),INDEX(ЗапланованіВитратиНаМаркетинг[],,1),0),MATCH(РізницяВитратНаМаркетинг[[#Headers],[Лип]],ФактичніВитратиНаМаркетинг[#Headers],0)) -> 200.00₴ | J23: =INDEX(ЗапланованіВитратиНаМаркетинг[],MATCH(INDEX(РізницяВитратНаМаркетинг[],ROW()-ROW(РізницяВитратНаМаркетинг[[#Headers],[Cер]]),1),INDEX(ЗапланованіВитратиНаМаркетинг[],,1),0),MATCH(РізницяВитратНаМаркетинг[[#Headers],[Cер]],ЗапланованіВитратиНаМаркетинг[#Headers],0))-INDEX(ФактичніВитратиНаМаркетинг[],MATCH(INDEX(РізницяВитратНаМаркетинг[],ROW()-ROW(РізницяВитратНаМаркетинг[[#Headers],[Cер]]),1),INDEX(ЗапланованіВитратиНаМаркетинг[],,1),0),MATCH(РізницяВитратНаМаркетинг[[#Headers],[Cер]],ФактичніВитратиНаМаркетинг[#Headers],0)) -> 200.00₴ | K23: =INDEX(ЗапланованіВитратиНаМаркетинг[],MATCH(INDEX(РізницяВитратНаМаркетинг[],ROW()-ROW(РізницяВитратНаМаркетинг[[#Headers],[Вер]]),1),INDEX(ЗапланованіВитратиНаМаркетинг[],,1),0),MATCH(РізницяВитратНаМаркетинг[[#Headers],[Вер]],ЗапланованіВитратиНаМаркетинг[#Headers],0))-INDEX(ФактичніВитратиНаМаркетинг[],MATCH(INDEX(РізницяВитратНаМаркетинг[],ROW()-ROW(РізницяВитратНаМаркетинг[[#Headers],[Вер]]),1),INDEX(ЗапланованіВитратиНаМаркетинг[],,1),0),MATCH(РізницяВитратНаМаркетинг[[#Headers],[Вер]],ФактичніВитратиНаМаркетинг[#Headers],0)) -> 200.00₴ | L23: =INDEX(ЗапланованіВитратиНаМаркетинг[],MATCH(INDEX(РізницяВитратНаМаркетинг[],ROW()-ROW(РізницяВитратНаМаркетинг[[#Headers],[Жов]]),1),INDEX(ЗапланованіВитратиНаМаркетинг[],,1),0),MATCH(РізницяВитратНаМаркетинг[[#Headers],[Жов]],ЗапланованіВитратиНаМаркетинг[#Headers],0))-INDEX(ФактичніВитратиНаМаркетинг[],MATCH(INDEX(РізницяВитратНаМаркетинг[],ROW()-ROW(РізницяВитратНаМаркетинг[[#Headers],[Жов]]),1),INDEX(ЗапланованіВитратиНаМаркетинг[],,1),0),MATCH(РізницяВитратНаМаркетинг[[#Headers],[Жов]],ФактичніВитратиНаМаркетинг[#Headers],0)) -> 200.00₴ | M23: =INDEX(ЗапланованіВитратиНаМаркетинг[],MATCH(INDEX(РізницяВитратНаМаркетинг[],ROW()-ROW(РізницяВитратНаМаркетинг[[#Headers],[Лис]]),1),INDEX(ЗапланованіВитратиНаМаркетинг[],,1),0),MATCH(РізницяВитратНаМаркетинг[[#Headers],[Лис]],ЗапланованіВитратиНаМаркетинг[#Headers],0))-INDEX(ФактичніВитратиНаМаркетинг[],MATCH(INDEX(РізницяВитратНаМаркетинг[],ROW()-ROW(РізницяВитратНаМаркетинг[[#Headers],[Лис]]),1),INDEX(ЗапланованіВитратиНаМаркетинг[],,1),0),MATCH(РізницяВитратНаМаркетинг[[#Headers],[Лис]],ФактичніВитратиНаМаркетинг[#Headers],0)) -> 200.00₴ | N23: =INDEX(ЗапланованіВитратиНаМаркетинг[],MATCH(INDEX(РізницяВитратНаМаркетинг[],ROW()-ROW(РізницяВитратНаМаркетинг[[#Headers],[Гру]]),1),INDEX(ЗапланованіВитратиНаМаркетинг[],,1),0),MATCH(РізницяВитратНаМаркетинг[[#Headers],[Гру]],ЗапланованіВитратиНаМаркетинг[#Headers],0))-INDEX(ФактичніВитратиНаМаркетинг[],MATCH(INDEX(РізницяВитратНаМаркетинг[],ROW()-ROW(РізницяВитратНаМаркетинг[[#Headers],[Гру]]),1),INDEX(ЗапланованіВитратиНаМаркетинг[],,1),0),MATCH(РізницяВитратНаМаркетинг[[#Headers],[Гру]],ФактичніВитратиНаМаркетинг[#Headers],0)) -> 1,000.00₴ | O23: =SUM(РізницяВитратНаМаркетинг[[#This Row],[Січ]:[Гру]]) -> 1,500.00₴
B24: Підготовка супровідних матеріалів | C24: =INDEX(ЗапланованіВитратиНаМаркетинг[],MATCH(INDEX(РізницяВитратНаМаркетинг[],ROW()-ROW(РізницяВитратНаМаркетинг[[#Headers],[Січ]]),1),INDEX(ЗапланованіВитратиНаМаркетинг[],,1),0),MATCH(РізницяВитратНаМаркетинг[[#Headers],[Січ]],ЗапланованіВитратиНаМаркетинг[#Headers],0))-INDEX(ФактичніВитратиНаМаркетинг[],MATCH(INDEX(РізницяВитратНаМаркетинг[],ROW()-ROW(РізницяВитратНаМаркетинг[[#Headers],[Січ]]),1),INDEX(ЗапланованіВитратиНаМаркетинг[],,1),0),MATCH(РізницяВитратНаМаркетинг[[#Headers],[Січ]],ФактичніВитратиНаМаркетинг[#Headers],0)) -> 200.00₴ | D24: =INDEX(ЗапланованіВитратиНаМаркетинг[],MATCH(INDEX(РізницяВитратНаМаркетинг[],ROW()-ROW(РізницяВитратНаМаркетинг[[#Headers],[Лют]]),1),INDEX(ЗапланованіВитратиНаМаркетинг[],,1),0),MATCH(РізницяВитратНаМаркетинг[[#Headers],[Лют]],ЗапланованіВитратиНаМаркетинг[#Headers],0))-INDEX(ФактичніВитратиНаМаркетинг[],MATCH(INDEX(РізницяВитратНаМаркетинг[],ROW()-ROW(РізницяВитратНаМаркетинг[[#Headers],[Лют]]),1),INDEX(ЗапланованіВитратиНаМаркетинг[],,1),0),MATCH(РізницяВитратНаМаркетинг[[#Headers],[Лют]],ФактичніВитратиНаМаркетинг[#Headers],0)) -> 0.00₴ | E24: =INDEX(ЗапланованіВитратиНаМаркетинг[],MATCH(INDEX(РізницяВитратНаМаркетинг[],ROW()-ROW(РізницяВитратНаМаркетинг[[#Headers],[Бер]]),1),INDEX(ЗапланованіВитратиНаМаркетинг[],,1),0),MATCH(РізницяВитратНаМаркетинг[[#Headers],[Бер]],ЗапланованіВитратиНаМаркетинг[#Headers],0))-INDEX(ФактичніВитратиНаМаркетинг[],MATCH(INDEX(РізницяВитратНаМаркетинг[],ROW()-ROW(РізницяВитратНаМаркетинг[[#Headers],[Бер]]),1),INDEX(ЗапланованіВитратиНаМаркетинг[],,1),0),MATCH(РізницяВитратНаМаркетинг[[#Headers],[Бер]],ФактичніВитратиНаМаркетинг[#Headers],0)) -> 0.00₴ | F24: =INDEX(ЗапланованіВитратиНаМаркетинг[],MATCH(INDEX(РізницяВитратНаМаркетинг[],ROW()-ROW(РізницяВитратНаМаркетинг[[#Headers],[Кві]]),1),INDEX(ЗапланованіВитратиНаМаркетинг[],,1),0),MATCH(РізницяВитратНаМаркетинг[[#Headers],[Кві]],ЗапланованіВитратиНаМаркетинг[#Headers],0))-INDEX(ФактичніВитратиНаМаркетинг[],MATCH(INDEX(РізницяВитратНаМаркетинг[],ROW()-ROW(РізницяВитратНаМаркетинг[[#Headers],[Кві]]),1),INDEX(ЗапланованіВитратиНаМаркетинг[],,1),0),MATCH(РізницяВитратНаМаркетинг[[#Headers],[Кві]],ФактичніВитратиНаМаркетинг[#Headers],0)) -> -500.00₴ | G24: =INDEX(ЗапланованіВитратиНаМаркетинг[],MATCH(INDEX(РізницяВитратНаМаркетинг[],ROW()-ROW(РізницяВитратНаМаркетинг[[#Headers],[Тра]]),1),INDEX(ЗапланованіВитратиНаМаркетинг[],,1),0),MATCH(РізницяВитратНаМаркетинг[[#Headers],[Тра]],ЗапланованіВитратиНаМаркетинг[#Headers],0))-INDEX(ФактичніВитратиНаМаркетинг[],MATCH(INDEX(РізницяВитратНаМаркетинг[],ROW()-ROW(РізницяВитратНаМаркетинг[[#Headers],[Тра]]),1),INDEX(ЗапланованіВитратиНаМаркетинг[],,1),0),MATCH(РізницяВитратНаМаркетинг[[#Headers],[Тра]],ФактичніВитратиНаМаркетинг[#Headers],0)) -> 0.00₴ | H24: =INDEX(ЗапланованіВитратиНаМаркетинг[],MATCH(INDEX(РізницяВитратНаМаркетинг[],ROW()-ROW(РізницяВитратНаМаркетинг[[#Headers],[Чер]]),1),INDEX(ЗапланованіВитратиНаМаркетинг[],,1),0),MATCH(РізницяВитратНаМаркетинг[[#Headers],[Чер]],ЗапланованіВитратиНаМаркетинг[#Headers],0))-INDEX(ФактичніВитратиНаМаркетинг[],MATCH(INDEX(РізницяВитратНаМаркетинг[],ROW()-ROW(РізницяВитратНаМаркетинг[[#Headers],[Чер]]),1),INDEX(ЗапланованіВитратиНаМаркетинг[],,1),0),MATCH(РізницяВитратНаМаркетинг[[#Headers],[Чер]],ФактичніВитратиНаМаркетинг[#Headers],0)) -> 0.00₴ | I24: =INDEX(ЗапланованіВитратиНаМаркетинг[],MATCH(INDEX(РізницяВитратНаМаркетинг[],ROW()-ROW(РізницяВитратНаМаркетинг[[#Headers],[Лип]]),1),INDEX(ЗапланованіВитратиНаМаркетинг[],,1),0),MATCH(РізницяВитратНаМаркетинг[[#Headers],[Лип]],ЗапланованіВитратиНаМаркетинг[#Headers],0))-INDEX(ФактичніВитратиНаМаркетинг[],MATCH(INDEX(РізницяВитратНаМаркетинг[],ROW()-ROW(РізницяВитратНаМаркетинг[[#Headers],[Лип]]),1),INDEX(ЗапланованіВитратиНаМаркетинг[],,1),0),MATCH(РізницяВитратНаМаркетинг[[#Headers],[Лип]],ФактичніВитратиНаМаркетинг[#Headers],0)) -> 5,000.00₴ | J24: =INDEX(ЗапланованіВитратиНаМаркетинг[],MATCH(INDEX(РізницяВитратНаМаркетинг[],ROW()-ROW(РізницяВитратНаМаркетинг[[#Headers],[Cер]]),1),INDEX(ЗапланованіВитратиНаМаркетинг[],,1),0),MATCH(РізницяВитратНаМаркетинг[[#Headers],[Cер]],ЗапланованіВитратиНаМаркетинг[#Headers],0))-INDEX(ФактичніВитратиНаМаркетинг[],MATCH(INDEX(РізницяВитратНаМаркетинг[],ROW()-ROW(РізницяВитратНаМаркетинг[[#Headers],[Cер]]),1),INDEX(ЗапланованіВитратиНаМаркетинг[],,1),0),MATCH(РізницяВитратНаМаркетинг[[#Headers],[Cер]],ФактичніВитратиНаМаркетинг[#Headers],0)) -> 0.00₴ | K24: =INDEX(ЗапланованіВитратиНаМаркетинг[],MATCH(INDEX(РізницяВитратНаМаркетинг[],ROW()-ROW(РізницяВитратНаМаркетинг[[#Headers],[Вер]]),1),INDEX(ЗапланованіВитратиНаМаркетинг[],,1),0),MATCH(РізницяВитратНаМаркетинг[[#Headers],[Вер]],ЗапланованіВитратиНаМаркетинг[#Headers],0))-INDEX(ФактичніВитратиНаМаркетинг[],MATCH(INDEX(РізницяВитратНаМаркетинг[],ROW()-ROW(РізницяВитратНаМаркетинг[[#Headers],[Вер]]),1),INDEX(ЗапланованіВитратиНаМаркетинг[],,1),0),MATCH(РізницяВитратНаМаркетинг[[#Headers],[Вер]],ФактичніВитратиНаМаркетинг[#Headers],0)) -> 0.00₴ | L24: =INDEX(ЗапланованіВитратиНаМаркетинг[],MATCH(INDEX(РізницяВитратНаМаркетинг[],ROW()-ROW(РізницяВитратНаМаркетинг[[#Headers],[Жов]]),1),INDEX(ЗапланованіВитратиНаМаркетинг[],,1),0),MATCH(РізницяВитратНаМаркетинг[[#Headers],[Жов]],ЗапланованіВитратиНаМаркетинг[#Headers],0))-INDEX(ФактичніВитратиНаМаркетинг[],MATCH(INDEX(РізницяВитратНаМаркетинг[],ROW()-ROW(РізницяВитратНаМаркетинг[[#Headers],[Жов]]),1),INDEX(ЗапланованіВитратиНаМаркетинг[],,1),0),MATCH(РізницяВитратНаМаркетинг[[#Headers],[Жов]],ФактичніВитратиНаМаркетинг[#Headers],0)) -> 5,000.00₴ | M24: =INDEX(ЗапланованіВитратиНаМаркетинг[],MATCH(INDEX(РізницяВитратНаМаркетинг[],ROW()-ROW(РізницяВитратНаМаркетинг[[#Headers],[Лис]]),1),INDEX(ЗапланованіВитратиНаМаркетинг[],,1),0),MATCH(РізницяВитратНаМаркетинг[[#Headers],[Лис]],ЗапланованіВитратиНаМаркетинг[#Headers],0))-INDEX(ФактичніВитратиНаМаркетинг[],MATCH(INDEX(РізницяВитратНаМаркетинг[],ROW()-ROW(РізницяВитратНаМаркетинг[[#Headers],[Лис]]),1),INDEX(ЗапланованіВитратиНаМаркетинг[],,1),0),MATCH(РізницяВитратНаМаркетинг[[#Headers],[Лис]],ФактичніВитратиНаМаркетинг[#Headers],0)) -> 0.00₴ | N24: =INDEX(ЗапланованіВитратиНаМаркетинг[],MATCH(INDEX(РізницяВитратНаМаркетинг[],ROW()-ROW(РізницяВитратНаМаркетинг[[#Headers],[Гру]]),1),INDEX(ЗапланованіВитратиНаМаркетинг[],,1),0),MATCH(РізницяВитратНаМаркетинг[[#Headers],[Гру]],ЗапланованіВитратиНаМаркетинг[#Headers],0))-INDEX(ФактичніВитратиНаМаркетинг[],MATCH(INDEX(РізницяВитратНаМаркетинг[],ROW()-ROW(РізницяВитратНаМаркетинг[[#Headers],[Гру]]),1),INDEX(ЗапланованіВитратиНаМаркетинг[],,1),0),MATCH(РізницяВитратНаМаркетинг[[#Headers],[Гру]],ФактичніВитратиНаМаркетинг[#Headers],0)) -> 0.00₴ | O24: =SUM(РізницяВитратНаМаркетинг[[#This Row],[Січ]:[Гру]]) -> 9,700.00₴
B25: Друк супровідних матеріалів | C25: =INDEX(ЗапланованіВитратиНаМаркетинг[],MATCH(INDEX(РізницяВитратНаМаркетинг[],ROW()-ROW(РізницяВитратНаМаркетинг[[#Headers],[Січ]]),1),INDEX(ЗапланованіВитратиНаМаркетинг[],,1),0),MATCH(РізницяВитратНаМаркетинг[[#Headers],[Січ]],ЗапланованіВитратиНаМаркетинг[#Headers],0))-INDEX(ФактичніВитратиНаМаркетинг[],MATCH(INDEX(РізницяВитратНаМаркетинг[],ROW()-ROW(РізницяВитратНаМаркетинг[[#Headers],[Січ]]),1),INDEX(ЗапланованіВитратиНаМаркетинг[],,1),0),MATCH(РізницяВитратНаМаркетинг[[#Headers],[Січ]],ФактичніВитратиНаМаркетинг[#Headers],0)) -> 100.00₴ | D25: =INDEX(ЗапланованіВитратиНаМаркетинг[],MATCH(INDEX(РізницяВитратНаМаркетинг[],ROW()-ROW(РізницяВитратНаМаркетинг[[#Headers],[Лют]]),1),INDEX(ЗапланованіВитратиНаМаркетинг[],,1),0),MATCH(РізницяВитратНаМаркетинг[[#Headers],[Лют]],ЗапланованіВитратиНаМаркетинг[#Headers],0))-INDEX(ФактичніВитратиНаМаркетинг[],MATCH(INDEX(РізницяВитратНаМаркетинг[],ROW()-ROW(РізницяВитратНаМаркетинг[[#Headers],[Лют]]),1),INDEX(ЗапланованіВитратиНаМаркетинг[],,1),0),MATCH(РізницяВитратНаМаркетинг[[#Headers],[Лют]],ФактичніВитратиНаМаркетинг[#Headers],0)) -> -300.00₴ | E25: =INDEX(ЗапланованіВитратиНаМаркетинг[],MATCH(INDEX(РізницяВитратНаМаркетинг[],ROW()-ROW(РізницяВитратНаМаркетинг[[#Headers],[Бер]]),1),INDEX(ЗапланованіВитратиНаМаркетинг[],,1),0),MATCH(РізницяВитратНаМаркетинг[[#Headers],[Бер]],ЗапланованіВитратиНаМаркетинг[#Headers],0))-INDEX(ФактичніВитратиНаМаркетинг[],MATCH(INDEX(РізницяВитратНаМаркетинг[],ROW()-ROW(РізницяВитратНаМаркетинг[[#Headers],[Бер]]),1),INDEX(ЗапланованіВитратиНаМаркетинг[],,1),0),MATCH(РізницяВитратНаМаркетинг[[#Headers],[Бер]],ФактичніВитратиНаМаркетинг[#Headers],0)) -> 100.00₴ | F25: =INDEX(ЗапланованіВитратиНаМаркетинг[],MATCH(INDEX(РізницяВитратНаМаркетинг[],ROW()-ROW(РізницяВитратНаМаркетинг[[#Headers],[Кві]]),1),INDEX(ЗапланованіВитратиНаМаркетинг[],,1),0),MATCH(РізницяВитратНаМаркетинг[[#Headers],[Кві]],ЗапланованіВитратиНаМаркетинг[#Headers],0))-INDEX(ФактичніВитратиНаМаркетинг[],MATCH(INDEX(РізницяВитратНаМаркетинг[],ROW()-ROW(РізницяВитратНаМаркетинг[[#Headers],[Кві]]),1),INDEX(ЗапланованіВитратиНаМаркетинг[],,1),0),MATCH(РізницяВитратНаМаркетинг[[#Headers],[Кві]],ФактичніВитратиНаМаркетинг[#Headers],0)) -> 100.00₴ | G25: =INDEX(ЗапланованіВитратиНаМаркетинг[],MATCH(INDEX(РізницяВитратНаМаркетинг[],ROW()-ROW(РізницяВитратНаМаркетинг[[#Headers],[Тра]]),1),INDEX(ЗапланованіВитратиНаМаркетинг[],,1),0),MATCH(РізницяВитратНаМаркетинг[[#Headers],[Тра]],ЗапланованіВитратиНаМаркетинг[#Headers],0))-INDEX(ФактичніВитратиНаМаркетинг[],MATCH(INDEX(РізницяВитратНаМаркетинг[],ROW()-ROW(РізницяВитратНаМаркетинг[[#Headers],[Тра]]),1),INDEX(ЗапланованіВитратиНаМаркетинг[],,1),0),MATCH(РізницяВитратНаМаркетинг[[#Headers],[Тра]],ФактичніВитратиНаМаркетинг[#Headers],0)) -> -400.00₴ | H25: =INDEX(ЗапланованіВитратиНаМаркетинг[],MATCH(INDEX(РізницяВитратНаМаркетинг[],ROW()-ROW(РізницяВитратНаМаркетинг[[#Headers],[Чер]]),1),INDEX(ЗапланованіВитратиНаМаркетинг[],,1),0),MATCH(РізницяВитратНаМаркетинг[[#Headers],[Чер]],ЗапланованіВитратиНаМаркетинг[#Headers],0))-INDEX(ФактичніВитратиНаМаркетинг[],MATCH(INDEX(РізницяВитратНаМаркетинг[],ROW()-ROW(РізницяВитратНаМаркетинг[[#Headers],[Чер]]),1),INDEX(ЗапланованіВитратиНаМаркетинг[],,1),0),MATCH(РізницяВитратНаМаркетинг[[#Headers],[Чер]],ФактичніВитратиНаМаркетинг[#Headers],0)) -> 20.00₴ | I25: =INDEX(ЗапланованіВитратиНаМаркетинг[],MATCH(INDEX(РізницяВитратНаМаркетинг[],ROW()-ROW(РізницяВитратНаМаркетинг[[#Headers],[Лип]]),1),INDEX(ЗапланованіВитратиНаМаркетинг[],,1),0),MATCH(РізницяВитратНаМаркетинг[[#Headers],[Лип]],ЗапланованіВитратиНаМаркетинг[#Headers],0))-INDEX(ФактичніВитратиНаМаркетинг[],MATCH(INDEX(РізницяВитратНаМаркетинг[],ROW()-ROW(РізницяВитратНаМаркетинг[[#Headers],[Лип]]),1),INDEX(ЗапланованіВитратиНаМаркетинг[],,1),0),MATCH(РізницяВитратНаМаркетинг[[#Headers],[Лип]],ФактичніВитратиНаМаркетинг[#Headers],0)) -> 200.00₴ | J25: =INDEX(ЗапланованіВитратиНаМаркетинг[],MATCH(INDEX(РізницяВитратНаМаркетинг[],ROW()-ROW(РізницяВитратНаМаркетинг[[#Headers],[Cер]]),1),INDEX(ЗапланованіВитратиНаМаркетинг[],,1),0),MATCH(РізницяВитратНаМаркетинг[[#Headers],[Cер]],ЗапланованіВитратиНаМаркетинг[#Headers],0))-INDEX(ФактичніВитратиНаМаркетинг[],MATCH(INDEX(РізницяВитратНаМаркетинг[],ROW()-ROW(РізницяВитратНаМаркетинг[[#Headers],[Cер]]),1),INDEX(ЗапланованіВитратиНаМаркетинг[],,1),0),MATCH(РізницяВитратНаМаркетинг[[#Headers],[Cер]],ФактичніВитратиНаМаркетинг[#Headers],0)) -> 200.00₴ | K25: =INDEX(ЗапланованіВитратиНаМаркетинг[],MATCH(INDEX(РізницяВитратНаМаркетинг[],ROW()-ROW(РізницяВитратНаМаркетинг[[#Headers],[Вер]]),1),INDEX(ЗапланованіВитратиНаМаркетинг[],,1),0),MATCH(РізницяВитратНаМаркетинг[[#Headers],[Вер]],ЗапланованіВитратиНаМаркетинг[#Headers],0))-INDEX(ФактичніВитратиНаМаркетинг[],MATCH(INDEX(РізницяВитратНаМаркетинг[],ROW()-ROW(РізницяВитратНаМаркетинг[[#Headers],[Вер]]),1),INDEX(ЗапланованіВитратиНаМаркетинг[],,1),0),MATCH(РізницяВитратНаМаркетинг[[#Headers],[Вер]],ФактичніВитратиНаМаркетинг[#Headers],0)) -> 200.00₴ | L25: =INDEX(ЗапланованіВитратиНаМаркетинг[],MATCH(INDEX(РізницяВитратНаМаркетинг[],ROW()-ROW(РізницяВитратНаМаркетинг[[#Headers],[Жов]]),1),INDEX(ЗапланованіВитратиНаМаркетинг[],,1),0),MATCH(РізницяВитратНаМаркетинг[[#Headers],[Жов]],ЗапланованіВитратиНаМаркетинг[#Headers],0))-INDEX(ФактичніВитратиНаМаркетинг[],MATCH(INDEX(РізницяВитратНаМаркетинг[],ROW()-ROW(РізницяВитратНаМаркетинг[[#Headers],[Жов]]),1),INDEX(ЗапланованіВитратиНаМаркетинг[],,1),0),MATCH(РізницяВитратНаМаркетинг[[#Headers],[Жов]],ФактичніВитратиНаМаркетинг[#Headers],0)) -> 200.00₴ | M25: =INDEX(ЗапланованіВитратиНаМаркетинг[],MATCH(INDEX(РізницяВитратНаМаркетинг[],ROW()-ROW(РізницяВитратНаМаркетинг[[#Headers],[Лис]]),1),INDEX(ЗапланованіВитратиНаМаркетинг[],,1),0),MATCH(РізницяВитратНаМаркетинг[[#Headers],[Лис]],ЗапланованіВитратиНаМаркетинг[#Headers],0))-INDEX(ФактичніВитратиНаМаркетинг[],MATCH(INDEX(РізницяВитратНаМаркетинг[],ROW()-ROW(РізницяВитратНаМаркетинг[[#Headers],[Лис]]),1),INDEX(ЗапланованіВитратиНаМаркетинг[],,1),0),MATCH(РізницяВитратНаМаркетинг[[#Headers],[Лис]],ФактичніВитратиНаМаркетинг[#Headers],0)) -> 200.00₴ | N25: =INDEX(ЗапланованіВитратиНаМаркетинг[],MATCH(INDEX(РізницяВитратНаМаркетинг[],ROW()-ROW(РізницяВитратНаМаркетинг[[#Headers],[Гру]]),1),INDEX(ЗапланованіВитратиНаМаркетинг[],,1),0),MATCH(РізницяВитратНаМаркетинг[[#Headers],[Гру]],ЗапланованіВитратиНаМаркетинг[#Headers],0))-INDEX(ФактичніВитратиНаМаркетинг[],MATCH(INDEX(РізницяВитратНаМаркетинг[],ROW()-ROW(РізницяВитратНаМаркетинг[[#Headers],[Гру]]),1),INDEX(ЗапланованіВитратиНаМаркетинг[],,1),0),MATCH(РізницяВитратНаМаркетинг[[#Headers],[Гру]],ФактичніВитратиНаМаркетинг[#Headers],0)) -> 200.00₴ | O25: =SUM(РізницяВитратНаМаркетинг[[#This Row],[Січ]:[Гру]]) -> 820.00₴
B26: Маркетингові заходи | C26: =INDEX(ЗапланованіВитратиНаМаркетинг[],MATCH(INDEX(РізницяВитратНаМаркетинг[],ROW()-ROW(РізницяВитратНаМаркетинг[[#Headers],[Січ]]),1),INDEX(ЗапланованіВитратиНаМаркетинг[],,1),0),MATCH(РізницяВитратНаМаркетинг[[#Headers],[Січ]],ЗапланованіВитратиНаМаркетинг[#Headers],0))-INDEX(ФактичніВитратиНаМаркетинг[],MATCH(INDEX(РізницяВитратНаМаркетинг[],ROW()-ROW(РізницяВитратНаМаркетинг[[#Headers],[Січ]]),1),INDEX(ЗапланованіВитратиНаМаркетинг[],,1),0),MATCH(РізницяВитратНаМаркетинг[[#Headers],[Січ]],ФактичніВитратиНаМаркетинг[#Headers],0)) -> 200.00₴ | D26: =INDEX(ЗапланованіВитратиНаМаркетинг[],MATCH(INDEX(РізницяВитратНаМаркетинг[],ROW()-ROW(РізницяВитратНаМаркетинг[[#Headers],[Лют]]),1),INDEX(ЗапланованіВитратиНаМаркетинг[],,1),0),MATCH(РізницяВитратНаМаркетинг[[#Headers],[Лют]],ЗапланованіВитратиНаМаркетинг[#Headers],0))-INDEX(ФактичніВитратиНаМаркетинг[],MATCH(INDEX(РізницяВитратНаМаркетинг[],ROW()-ROW(РізницяВитратНаМаркетинг[[#Headers],[Лют]]),1),INDEX(ЗапланованіВитратиНаМаркетинг[],,1),0),MATCH(РізницяВитратНаМаркетинг[[#Headers],[Лют]],ФактичніВитратиНаМаркетинг[#Headers],0)) -> -200.00₴ | E26: =INDEX(ЗапланованіВитратиНаМаркетинг[],MATCH(INDEX(РізницяВитратНаМаркетинг[],ROW()-ROW(РізницяВитратНаМаркетинг[[#Headers],[Бер]]),1),INDEX(ЗапланованіВитратиНаМаркетинг[],,1),0),MATCH(РізницяВитратНаМаркетинг[[#Headers],[Бер]],ЗапланованіВитратиНаМаркетинг[#Headers],0))-INDEX(ФактичніВитратиНаМаркетинг[],MATCH(INDEX(РізницяВитратНаМаркетинг[],ROW()-ROW(РізницяВитратНаМаркетинг[[#Headers],[Бер]]),1),INDEX(ЗапланованіВитратиНаМаркетинг[],,1),0),MATCH(РізницяВитратНаМаркетинг[[#Headers],[Бер]],ФактичніВитратиНаМаркетинг[#Headers],0)) -> -200.00₴ | F26: =INDEX(ЗапланованіВитратиНаМаркетинг[],MATCH(INDEX(РізницяВитратНаМаркетинг[],ROW()-ROW(РізницяВитратНаМаркетинг[[#Headers],[Кві]]),1),INDEX(ЗапланованіВитратиНаМаркетинг[],,1),0),MATCH(РізницяВитратНаМаркетинг[[#Headers],[Кві]],ЗапланованіВитратиНаМаркетинг[#Headers],0))-INDEX(ФактичніВитратиНаМаркетинг[],MATCH(INDEX(РізницяВитратНаМаркетинг[],ROW()-ROW(РізницяВитратНаМаркетинг[[#Headers],[Кві]]),1),INDEX(ЗапланованіВитратиНаМаркетинг[],,1),0),MATCH(РізницяВитратНаМаркетинг[[#Headers],[Кві]],ФактичніВитратиНаМаркетинг[#Headers],0)) -> 300.00₴ | G26: =INDEX(ЗапланованіВитратиНаМаркетинг[],MATCH(INDEX(РізницяВитратНаМаркетинг[],ROW()-ROW(РізницяВитратНаМаркетинг[[#Headers],[Тра]]),1),INDEX(ЗапланованіВитратиНаМаркетинг[],,1),0),MATCH(РізницяВитратНаМаркетинг[[#Headers],[Тра]],ЗапланованіВитратиНаМаркетинг[#Headers],0))-INDEX(ФактичніВитратиНаМаркетинг[],MATCH(INDEX(РізницяВитратНаМаркетинг[],ROW()-ROW(РізницяВитратНаМаркетинг[[#Headers],[Тра]]),1),INDEX(ЗапланованіВитратиНаМаркетинг[],,1),0),MATCH(РізницяВитратНаМаркетинг[[#Headers],[Тра]],ФактичніВитратиНаМаркетинг[#Headers],0)) -> 500.00₴ | H26: =INDEX(ЗапланованіВитратиНаМаркетинг[],MATCH(INDEX(РізницяВитратНаМаркетинг[],ROW()-ROW(РізницяВитратНаМаркетинг[[#Headers],[Чер]]),1),INDEX(ЗапланованіВитратиНаМаркетинг[],,1),0),MATCH(РізницяВитратНаМаркетинг[[#Headers],[Чер]],ЗапланованіВитратиНаМаркетинг[#Headers],0))-INDEX(ФактичніВитратиНаМаркетинг[],MATCH(INDEX(РізницяВитратНаМаркетинг[],ROW()-ROW(РізницяВитратНаМаркетинг[[#Headers],[Чер]]),1),INDEX(ЗапланованіВитратиНаМаркетинг[],,1),0),MATCH(РізницяВитратНаМаркетинг[[#Headers],[Чер]],ФактичніВитратиНаМаркетинг[#Headers],0)) -> -300.00₴ | I26: =INDEX(ЗапланованіВитратиНаМаркетинг[],MATCH(INDEX(РізницяВитратНаМаркетинг[],ROW()-ROW(РізницяВитратНаМаркетинг[[#Headers],[Лип]]),1),INDEX(ЗапланованіВитратиНаМаркетинг[],,1),0),MATCH(РізницяВитратНаМаркетинг[[#Headers],[Лип]],ЗапланованіВитратиНаМаркетинг[#Headers],0))-INDEX(ФактичніВитратиНаМаркетинг[],MATCH(INDEX(РізницяВитратНаМаркетинг[],ROW()-ROW(РізницяВитратНаМаркетинг[[#Headers],[Лип]]),1),INDEX(ЗапланованіВитратиНаМаркетинг[],,1),0),MATCH(РізницяВитратНаМаркетинг[[#Headers],[Лип]],ФактичніВитратиНаМаркетинг[#Headers],0)) -> 2,000.00₴ | J26: =INDEX(ЗапланованіВитратиНаМаркетинг[],MATCH(INDEX(РізницяВитратНаМаркетинг[],ROW()-ROW(РізницяВитратНаМаркетинг[[#Headers],[Cер]]),1),INDEX(ЗапланованіВитратиНаМаркетинг[],,1),0),MATCH(РізницяВитратНаМаркетинг[[#Headers],[Cер]],ЗапланованіВитратиНаМаркетинг[#Headers],0))-INDEX(ФактичніВитратиНаМаркетинг[],MATCH(INDEX(РізницяВитратНаМаркетинг[],ROW()-ROW(РізницяВитратНаМаркетинг[[#Headers],[Cер]]),1),INDEX(ЗапланованіВитратиНаМаркетинг[],,1),0),MATCH(РізницяВитратНаМаркетинг[[#Headers],[Cер]],ФактичніВитратиНаМаркетинг[#Headers],0)) -> 5,000.00₴ | K26: =INDEX(ЗапланованіВитратиНаМаркетинг[],MATCH(INDEX(РізницяВитратНаМаркетинг[],ROW()-ROW(РізницяВитратНаМаркетинг[[#Headers],[Вер]]),1),INDEX(ЗапланованіВитратиНаМаркетинг[],,1),0),MATCH(РізницяВитратНаМаркетинг[[#Headers],[Вер]],ЗапланованіВитратиНаМаркетинг[#Headers],0))-INDEX(ФактичніВитратиНаМаркетинг[],MATCH(INDEX(РізницяВитратНаМаркетинг[],ROW()-ROW(РізницяВитратНаМаркетинг[[#Headers],[Вер]]),1),INDEX(ЗапланованіВитратиНаМаркетинг[],,1),0),MATCH(РізницяВитратНаМаркетинг[[#Headers],[Вер]],ФактичніВитратиНаМаркетинг[#Headers],0)) -> 2,000.00₴ | L26: =INDEX(ЗапланованіВитратиНаМаркетинг[],MATCH(INDEX(РізницяВитратНаМаркетинг[],ROW()-ROW(РізницяВитратНаМаркетинг[[#Headers],[Жов]]),1),INDEX(ЗапланованіВитратиНаМаркетинг[],,1),0),MATCH(РізницяВитратНаМаркетинг[[#Headers],[Жов]],ЗапланованіВитратиНаМаркетинг[#Headers],0))-INDEX(ФактичніВитратиНаМаркетинг[],MATCH(INDEX(РізницяВитратНаМаркетинг[],ROW()-ROW(РізницяВитратНаМаркетинг[[#Headers],[Жов]]),1),INDEX(ЗапланованіВитратиНаМаркетинг[],,1),0),MATCH(РізницяВитратНаМаркетинг[[#Headers],[Жов]],ФактичніВитратиНаМаркетинг[#Headers],0)) -> 2,000.00₴ | M26: =INDEX(ЗапланованіВитратиНаМаркетинг[],MATCH(INDEX(РізницяВитратНаМаркетинг[],ROW()-ROW(РізницяВитратНаМаркетинг[[#Headers],[Лис]]),1),INDEX(ЗапланованіВитратиНаМаркетинг[],,1),0),MATCH(РізницяВитратНаМаркетинг[[#Headers],[Лис]],ЗапланованіВитратиНаМаркетинг[#Headers],0))-INDEX(ФактичніВитратиНаМаркетинг[],MATCH(INDEX(РізницяВитратНаМаркетинг[],ROW()-ROW(РізницяВитратНаМаркетинг[[#Headers],[Лис]]),1),INDEX(ЗапланованіВитратиНаМаркетинг[],,1),0),MATCH(РізницяВитратНаМаркетинг[[#Headers],[Лис]],ФактичніВитратиНаМаркетинг[#Headers],0)) -> 2,000.00₴ | N26: =INDEX(ЗапланованіВитратиНаМаркетинг[],MATCH(INDEX(РізницяВитратНаМаркетинг[],ROW()-ROW(РізницяВитратНаМаркетинг[[#Headers],[Гру]]),1),INDEX(ЗапланованіВитратиНаМаркетинг[],,1),0),MATCH(РізницяВитратНаМаркетинг[[#Headers],[Гру]],ЗапланованіВитратиНаМаркетинг[#Headers],0))-INDEX(ФактичніВитратиНаМаркетинг[],MATCH(INDEX(РізницяВитратНаМаркетинг[],ROW()-ROW(РізницяВитратНаМаркетинг[[#Headers],[Гру]]),1),INDEX(ЗапланованіВитратиНаМаркетинг[],,1),0),MATCH(РізницяВитратНаМаркетинг[[#Headers],[Гру]],ФактичніВитратиНаМаркетинг[#Headers],0)) -> 5,000.00₴ | O26: =SUM(РізницяВитратНаМаркетинг[[#This Row],[Січ]:[Гру]]) -> 18,300.00₴
B27: Інші витрати | C27: =INDEX(ЗапланованіВитратиНаМаркетинг[],MATCH(INDEX(РізницяВитратНаМаркетинг[],ROW()-ROW(РізницяВитратНаМаркетинг[[#Headers],[Січ]]),1),INDEX(ЗапланованіВитратиНаМаркетинг[],,1),0),MATCH(РізницяВитратНаМаркетинг[[#Headers],[Січ]],ЗапланованіВитратиНаМаркетинг[#Headers],0))-INDEX(ФактичніВитратиНаМаркетинг[],MATCH(INDEX(РізницяВитратНаМаркетинг[],ROW()-ROW(РізницяВитратНаМаркетинг[[#Headers],[Січ]]),1),INDEX(ЗапланованіВитратиНаМаркетинг[],,1),0),MATCH(РізницяВитратНаМаркетинг[[#Headers],[Січ]],ФактичніВитратиНаМаркетинг[#Headers],0)) -> 55.00₴ | D27: =INDEX(ЗапланованіВитратиНаМаркетинг[],MATCH(INDEX(РізницяВитратНаМаркетинг[],ROW()-ROW(РізницяВитратНаМаркетинг[[#Headers],[Лют]]),1),INDEX(ЗапланованіВитратиНаМаркетинг[],,1),0),MATCH(РізницяВитратНаМаркетинг[[#Headers],[Лют]],ЗапланованіВитратиНаМаркетинг[#Headers],0))-INDEX(ФактичніВитратиНаМаркетинг[],MATCH(INDEX(РізницяВитратНаМаркетинг[],ROW()-ROW(РізницяВитратНаМаркетинг[[#Headers],[Лют]]),1),INDEX(ЗапланованіВитратиНаМаркетинг[],,1),0),MATCH(РізницяВитратНаМаркетинг[[#Headers],[Лют]],ФактичніВитратиНаМаркетинг[#Headers],0)) -> 44.00₴ | E27: =INDEX(ЗапланованіВитратиНаМаркетинг[],MATCH(INDEX(РізницяВитратНаМаркетинг[],ROW()-ROW(РізницяВитратНаМаркетинг[[#Headers],[Бер]]),1),INDEX(ЗапланованіВитратиНаМаркетинг[],,1),0),MATCH(РізницяВитратНаМаркетинг[[#Headers],[Бер]],ЗапланованіВитратиНаМаркетинг[#Headers],0))-INDEX(ФактичніВитратиНаМаркетинг[],MATCH(INDEX(РізницяВитратНаМаркетинг[],ROW()-ROW(РізницяВитратНаМаркетинг[[#Headers],[Бер]]),1),INDEX(ЗапланованіВитратиНаМаркетинг[],,1),0),MATCH(РізницяВитратНаМаркетинг[[#Headers],[Бер]],ФактичніВитратиНаМаркетинг[#Headers],0)) -> 77.00₴ | F27: =INDEX(ЗапланованіВитратиНаМаркетинг[],MATCH(INDEX(РізницяВитратНаМаркетинг[],ROW()-ROW(РізницяВитратНаМаркетинг[[#Headers],[Кві]]),1),INDEX(ЗапланованіВитратиНаМаркетинг[],,1),0),MATCH(РізницяВитратНаМаркетинг[[#Headers],[Кві]],ЗапланованіВитратиНаМаркетинг[#Headers],0))-INDEX(ФактичніВитратиНаМаркетинг[],MATCH(INDEX(РізницяВитратНаМаркетинг[],ROW()-ROW(РізницяВитратНаМаркетинг[[#Headers],[Кві]]),1),INDEX(ЗапланованіВитратиНаМаркетинг[],,1),0),MATCH(РізницяВитратНаМаркетинг[[#Headers],[Кві]],ФактичніВитратиНаМаркетинг[#Headers],0)) -> -23.00₴ | G27: =INDEX(ЗапланованіВитратиНаМаркетинг[],MATCH(INDEX(РізницяВитратНаМаркетинг[],ROW()-ROW(РізницяВитратНаМаркетинг[[#Headers],[Тра]]),1),INDEX(ЗапланованіВитратиНаМаркетинг[],,1),0),MATCH(РізницяВитратНаМаркетинг[[#Headers],[Тра]],ЗапланованіВитратиНаМаркетинг[#Headers],0))-INDEX(ФактичніВитратиНаМаркетинг[],MATCH(INDEX(РізницяВитратНаМаркетинг[],ROW()-ROW(РізницяВитратНаМаркетинг[[#Headers],[Тра]]),1),INDEX(ЗапланованіВитратиНаМаркетинг[],,1),0),MATCH(РізницяВитратНаМаркетинг[[#Headers],[Тра]],ФактичніВитратиНаМаркетинг[#Headers],0)) -> 13.00₴ | H27: =INDEX(ЗапланованіВитратиНаМаркетинг[],MATCH(INDEX(РізницяВитратНаМаркетинг[],ROW()-ROW(РізницяВитратНаМаркетинг[[#Headers],[Чер]]),1),INDEX(ЗапланованіВитратиНаМаркетинг[],,1),0),MATCH(РізницяВитратНаМаркетинг[[#Headers],[Чер]],ЗапланованіВитратиНаМаркетинг[#Headers],0))-INDEX(ФактичніВитратиНаМаркетинг[],MATCH(INDEX(РізницяВитратНаМаркетинг[],ROW()-ROW(РізницяВитратНаМаркетинг[[#Headers],[Чер]]),1),INDEX(ЗапланованіВитратиНаМаркетинг[],,1),0),MATCH(РізницяВитратНаМаркетинг[[#Headers],[Чер]],ФактичніВитратиНаМаркетинг[#Headers],0)) -> -45.00₴ | I27: =INDEX(ЗапланованіВитратиНаМаркетинг[],MATCH(INDEX(РізницяВитратНаМаркетинг[],ROW()-ROW(РізницяВитратНаМаркетинг[[#Headers],[Лип]]),1),INDEX(ЗапланованіВитратиНаМаркетинг[],,1),0),MATCH(РізницяВитратНаМаркетинг[[#Headers],[Лип]],ЗапланованіВитратиНаМаркетинг[#Headers],0))-INDEX(ФактичніВитратиНаМаркетинг[],MATCH(INDEX(РізницяВитратНаМаркетинг[],ROW()-ROW(РізницяВитратНаМаркетинг[[#Headers],[Лип]]),1),INDEX(ЗапланованіВитратиНаМаркетинг[],,1),0),MATCH(РізницяВитратНаМаркетинг[[#Headers],[Лип]],ФактичніВитратиНаМаркетинг[#Headers],0)) -> 200.00₴ | J27: =INDEX(ЗапланованіВитратиНаМаркетинг[],MATCH(INDEX(РізницяВитратНаМаркетинг[],ROW()-ROW(РізницяВитратНаМаркетинг[[#Headers],[Cер]]),1),INDEX(ЗапланованіВитратиНаМаркетинг[],,1),0),MATCH(РізницяВитратНаМаркетинг[[#Headers],[Cер]],ЗапланованіВитратиНаМаркетинг[#Headers],0))-INDEX(ФактичніВитратиНаМаркетинг[],MATCH(INDEX(РізницяВитратНаМаркетинг[],ROW()-ROW(РізницяВитратНаМаркетинг[[#Headers],[Cер]]),1),INDEX(ЗапланованіВитратиНаМаркетинг[],,1),0),MATCH(РізницяВитратНаМаркетинг[[#Headers],[Cер]],ФактичніВитратиНаМаркетинг[#Headers],0)) -> 200.00₴ | K27: =INDEX(ЗапланованіВитратиНаМаркетинг[],MATCH(INDEX(РізницяВитратНаМаркетинг[],ROW()-ROW(РізницяВитратНаМаркетинг[[#Headers],[Вер]]),1),INDEX(ЗапланованіВитратиНаМаркетинг[],,1),0),MATCH(РізницяВитратНаМаркетинг[[#Headers],[Вер]],ЗапланованіВитратиНаМаркетинг[#Headers],0))-INDEX(ФактичніВитратиНаМаркетинг[],MATCH(INDEX(РізницяВитратНаМаркетинг[],ROW()-ROW(РізницяВитратНаМаркетинг[[#Headers],[Вер]]),1),INDEX(ЗапланованіВитратиНаМаркетинг[],,1),0),MATCH(РізницяВитратНаМаркетинг[[#Headers],[Вер]],ФактичніВитратиНаМаркетинг[#Headers],0)) -> 200.00₴ | L27: =INDEX(ЗапланованіВитратиНаМаркетинг[],MATCH(INDEX(РізницяВитратНаМаркетинг[],ROW()-ROW(РізницяВитратНаМаркетинг[[#Headers],[Жов]]),1),INDEX(ЗапланованіВитратиНаМаркетинг[],,1),0),MATCH(РізницяВитратНаМаркетинг[[#Headers],[Жов]],ЗапланованіВитратиНаМаркетинг[#Headers],0))-INDEX(ФактичніВитратиНаМаркетинг[],MATCH(INDEX(РізницяВитратНаМаркетинг[],ROW()-ROW(РізницяВитратНаМаркетинг[[#Headers],[Жов]]),1),INDEX(ЗапланованіВитратиНаМаркетинг[],,1),0),MATCH(РізницяВитратНаМаркетинг[[#Headers],[Жов]],ФактичніВитратиНаМаркетинг[#Headers],0)) -> 200.00₴ | M27: =INDEX(ЗапланованіВитратиНаМаркетинг[],MATCH(INDEX(РізницяВитратНаМаркетинг[],ROW()-ROW(РізницяВитратНаМаркетинг[[#Headers],[Лис]]),1),INDEX(ЗапланованіВитратиНаМаркетинг[],,1),0),MATCH(РізницяВитратНаМаркетинг[[#Headers],[Лис]],ЗапланованіВитратиНаМаркетинг[#Headers],0))-INDEX(ФактичніВитратиНаМаркетинг[],MATCH(INDEX(РізницяВитратНаМаркетинг[],ROW()-ROW(РізницяВитратНаМаркетинг[[#Headers],[Лис]]),1),INDEX(ЗапланованіВитратиНаМаркетинг[],,1),0),MATCH(РізницяВитратНаМаркетинг[[#Headers],[Лис]],ФактичніВитратиНаМаркетинг[#Headers],0)) -> 200.00₴ | N27: =INDEX(ЗапланованіВитратиНаМаркетинг[],MATCH(INDEX(РізницяВитратНаМаркетинг[],ROW()-ROW(РізницяВитратНаМаркетинг[[#Headers],[Гру]]),1),INDEX(ЗапланованіВитратиНаМаркетинг[],,1),0),MATCH(РізницяВитратНаМаркетинг[[#Headers],[Гру]],ЗапланованіВитратиНаМаркетинг[#Headers],0))-INDEX(ФактичніВитратиНаМаркетинг[],MATCH(INDEX(РізницяВитратНаМаркетинг[],ROW()-ROW(РізницяВитратНаМаркетинг[[#Headers],[Гру]]),1),INDEX(ЗапланованіВитратиНаМаркетинг[],,1),0),MATCH(РізницяВитратНаМаркетинг[[#Headers],[Гру]],ФактичніВитратиНаМаркетинг[#Headers],0)) -> 200.00₴ | O27: =SUM(РізницяВитратНаМаркетинг[[#This Row],[Січ]:[Гру]]) -> 1,321.00₴
B28: Проміжний підсумок | C28: =SUBTOTAL(109,РізницяВитратНаМаркетинг[Січ]) -> 555.00₴ | D28: =SUBTOTAL(109,РізницяВитратНаМаркетинг[Лют]) -> -456.00₴ | E28: =SUBTOTAL(109,РізницяВитратНаМаркетинг[Бер]) -> -23.00₴ | F28: =SUBTOTAL(109,РізницяВитратНаМаркетинг[Кві]) -> -123.00₴ | G28: =SUBTOTAL(109,РізницяВитратНаМаркетинг[Тра]) -> 113.00₴ | H28: =SUBTOTAL(109,РізницяВитратНаМаркетинг[Чер]) -> -825.00₴ | I28: =SUBTOTAL(109,РізницяВитратНаМаркетинг[Лип]) -> 8,100.00₴ | J28: =SUBTOTAL(109,РізницяВитратНаМаркетинг[Cер]) -> 6,100.00₴ | K28: =SUBTOTAL(109,РізницяВитратНаМаркетинг[Вер]) -> 3,100.00₴ | L28: =SUBTOTAL(109,РізницяВитратНаМаркетинг[Жов]) -> 8,100.00₴ | M28: =SUBTOTAL(109,РізницяВитратНаМаркетинг[Лис]) -> 3,100.00₴ | N28: =SUBTOTAL(109,РізницяВитратНаМаркетинг[Гру]) -> 6,900.00₴ | O28: =SUBTOTAL(109,РізницяВитратНаМаркетинг[РІК]) -> 34,641.00₴
A30: Різниця витрат на підготовчі курси та відрядження автоматично обчислюється в таблиці, починаючи з клітинки праворуч. Подальші вказівки наведено в клітинці A35. | B30: Курси та відрядження | C30: Січ | D30: Лют | E30: Бер | F30: Кві | G30: Тра | H30: Чер | I30: Лип | J30: Cер | K30: Вер | L30: Жов | M30: Лис | N30: Гру | O30: РІК
B31: Підготовчі курси | C31: =INDEX(ЗапланованіВитратиНаКурсиТаВідрядження[],MATCH(INDEX(РізницяВитратНаКурсиТаВідрядження[],ROW()-ROW(РізницяВитратНаКурсиТаВідрядження[[#Headers],[Січ]]),1),INDEX(ЗапланованіВитратиНаКурсиТаВідрядження[],,1),0),MATCH(РізницяВитратНаКурсиТаВідрядження[[#Headers],[Січ]],ЗапланованіВитратиНаКурсиТаВідрядження[#Headers],0))-INDEX(ФактичніВитратиНаКурсиТаВідрядження[],MATCH(INDEX(РізницяВитратНаКурсиТаВідрядження[],ROW()-ROW(РізницяВитратНаКурсиТаВідрядження[[#Headers],[Січ]]),1),INDEX(ЗапланованіВитратиНаКурсиТаВідрядження[],,1),0),MATCH(РізницяВитратНаКурсиТаВідрядження[[#Headers],[Січ]],ФактичніВитратиНаКурсиТаВідрядження[#Headers],0)) -> 400.00₴ | D31: =INDEX(ЗапланованіВитратиНаКурсиТаВідрядження[],MATCH(INDEX(РізницяВитратНаКурсиТаВідрядження[],ROW()-ROW(РізницяВитратНаКурсиТаВідрядження[[#Headers],[Лют]]),1),INDEX(ЗапланованіВитратиНаКурсиТаВідрядження[],,1),0),MATCH(РізницяВитратНаКурсиТаВідрядження[[#Headers],[Лют]],ЗапланованіВитратиНаКурсиТаВідрядження[#Headers],0))-INDEX(ФактичніВитратиНаКурсиТаВідрядження[],MATCH(INDEX(РізницяВитратНаКурсиТаВідрядження[],ROW()-ROW(РізницяВитратНаКурсиТаВідрядження[[#Headers],[Лют]]),1),INDEX(ЗапланованіВитратиНаКурсиТаВідрядження[],,1),0),MATCH(РізницяВитратНаКурсиТаВідрядження[[#Headers],[Лют]],ФактичніВитратиНаКурсиТаВідрядження[#Headers],0)) -> -400.00₴ | E31: =INDEX(ЗапланованіВитратиНаКурсиТаВідрядження[],MATCH(INDEX(РізницяВитратНаКурсиТаВідрядження[],ROW()-ROW(РізницяВитратНаКурсиТаВідрядження[[#Headers],[Бер]]),1),INDEX(ЗапланованіВитратиНаКурсиТаВідрядження[],,1),0),MATCH(РізницяВитратНаКурсиТаВідрядження[[#Headers],[Бер]],ЗапланованіВитратиНаКурсиТаВідрядження[#Headers],0))-INDEX(ФактичніВитратиНаКурсиТаВідрядження[],MATCH(INDEX(РізницяВитратНаКурсиТаВідрядження[],ROW()-ROW(РізницяВитратНаКурсиТаВідрядження[[#Headers],[Бер]]),1),INDEX(ЗапланованіВитратиНаКурсиТаВідрядження[],,1),0),MATCH(РізницяВитратНаКурсиТаВідрядження[[#Headers],[Бер]],ФактичніВитратиНаКурсиТаВідрядження[#Headers],0)) -> 600.00₴ | F31: =INDEX(ЗапланованіВитратиНаКурсиТаВідрядження[],MATCH(INDEX(РізницяВитратНаКурсиТаВідрядження[],ROW()-ROW(РізницяВитратНаКурсиТаВідрядження[[#Headers],[Кві]]),1),INDEX(ЗапланованіВитратиНаКурсиТаВідрядження[],,1),0),MATCH(РізницяВитратНаКурсиТаВідрядження[[#Headers],[Кві]],ЗапланованіВитратиНаКурсиТаВідрядження[#Headers],0))-INDEX(ФактичніВитратиНаКурсиТаВідрядження[],MATCH(INDEX(РізницяВитратНаКурсиТаВідрядження[],ROW()-ROW(РізницяВитратНаКурсиТаВідрядження[[#Headers],[Кві]]),1),INDEX(ЗапланованіВитратиНаКурсиТаВідрядження[],,1),0),MATCH(РізницяВитратНаКурсиТаВідрядження[[#Headers],[Кві]],ФактичніВитратиНаКурсиТаВідрядження[#Headers],0)) -> 400.00₴ | G31: =INDEX(ЗапланованіВитратиНаКурсиТаВідрядження[],MATCH(INDEX(РізницяВитратНаКурсиТаВідрядження[],ROW()-ROW(РізницяВитратНаКурсиТаВідрядження[[#Headers],[Тра]]),1),INDEX(ЗапланованіВитратиНаКурсиТаВідрядження[],,1),0),MATCH(РізницяВитратНаКурсиТаВідрядження[[#Headers],[Тра]],ЗапланованіВитратиНаКурсиТаВідрядження[#Headers],0))-INDEX(ФактичніВитратиНаКурсиТаВідрядження[],MATCH(INDEX(РізницяВитратНаКурсиТаВідрядження[],ROW()-ROW(РізницяВитратНаКурсиТаВідрядження[[#Headers],[Тра]]),1),INDEX(ЗапланованіВитратиНаКурсиТаВідрядження[],,1),0),MATCH(РізницяВитратНаКурсиТаВідрядження[[#Headers],[Тра]],ФактичніВитратиНаКурсиТаВідрядження[#Headers],0)) -> 800.00₴ | H31: =INDEX(ЗапланованіВитратиНаКурсиТаВідрядження[],MATCH(INDEX(РізницяВитратНаКурсиТаВідрядження[],ROW()-ROW(РізницяВитратНаКурсиТаВідрядження[[#Headers],[Чер]]),1),INDEX(ЗапланованіВитратиНаКурсиТаВідрядження[],,1),0),MATCH(РізницяВитратНаКурсиТаВідрядження[[#Headers],[Чер]],ЗапланованіВитратиНаКурсиТаВідрядження[#Headers],0))-INDEX(ФактичніВитратиНаКурсиТаВідрядження[],MATCH(INDEX(РізницяВитратНаКурсиТаВідрядження[],ROW()-ROW(РізницяВитратНаКурсиТаВідрядження[[#Headers],[Чер]]),1),INDEX(ЗапланованіВитратиНаКурсиТаВідрядження[],,1),0),MATCH(РізницяВитратНаКурсиТаВідрядження[[#Headers],[Чер]],ФактичніВитратиНаКурсиТаВідрядження[#Headers],0)) -> -800.00₴ | I31: =INDEX(ЗапланованіВитратиНаКурсиТаВідрядження[],MATCH(INDEX(РізницяВитратНаКурсиТаВідрядження[],ROW()-ROW(РізницяВитратНаКурсиТаВідрядження[[#Headers],[Лип]]),1),INDEX(ЗапланованіВитратиНаКурсиТаВідрядження[],,1),0),MATCH(РізницяВитратНаКурсиТаВідрядження[[#Headers],[Лип]],ЗапланованіВитратиНаКурсиТаВідрядження[#Headers],0))-INDEX(ФактичніВитратиНаКурсиТаВідрядження[],MATCH(INDEX(РізницяВитратНаКурсиТаВідрядження[],ROW()-ROW(РізницяВитратНаКурсиТаВідрядження[[#Headers],[Лип]]),1),INDEX(ЗапланованіВитратиНаКурсиТаВідрядження[],,1),0),MATCH(РізницяВитратНаКурсиТаВідрядження[[#Headers],[Лип]],ФактичніВитратиНаКурсиТаВідрядження[#Headers],0)) -> 2,000.00₴ | J31: =INDEX(ЗапланованіВитратиНаКурсиТаВідрядження[],MATCH(INDEX(РізницяВитратНаКурсиТаВідрядження[],ROW()-ROW(РізницяВитратНаКурсиТаВідрядження[[#Headers],[Cер]]),1),INDEX(ЗапланованіВитратиНаКурсиТаВідрядження[],,1),0),MATCH(РізницяВитратНаКурсиТаВідрядження[[#Headers],[Cер]],ЗапланованіВитратиНаКурсиТаВідрядження[#Headers],0))-INDEX(ФактичніВитратиНаКурсиТаВідрядження[],MATCH(INDEX(РізницяВитратНаКурсиТаВідрядження[],ROW()-ROW(РізницяВитратНаКурсиТаВідрядження[[#Headers],[Cер]]),1),INDEX(ЗапланованіВитратиНаКурсиТаВідрядження[],,1),0),MATCH(РізницяВитратНаКурсиТаВідрядження[[#Headers],[Cер]],ФактичніВитратиНаКурсиТаВідрядження[#Headers],0)) -> 2,000.00₴ | K31: =INDEX(ЗапланованіВитратиНаКурсиТаВідрядження[],MATCH(INDEX(РізницяВитратНаКурсиТаВідрядження[],ROW()-ROW(РізницяВитратНаКурсиТаВідрядження[[#Headers],[Вер]]),1),INDEX(ЗапланованіВитратиНаКурсиТаВідрядження[],,1),0),MATCH(РізницяВитратНаКурсиТаВідрядження[[#Headers],[Вер]],ЗапланованіВитратиНаКурсиТаВідрядження[#Headers],0))-INDEX(ФактичніВитратиНаКурсиТаВідрядження[],MATCH(INDEX(РізницяВитратНаКурсиТаВідрядження[],ROW()-ROW(РізницяВитратНаКурсиТаВідрядження[[#Headers],[Вер]]),1),INDEX(ЗапланованіВитратиНаКурсиТаВідрядження[],,1),0),MATCH(РізницяВитратНаКурсиТаВідрядження[[#Headers],[Вер]],ФактичніВитратиНаКурсиТаВідрядження[#Headers],0)) -> 2,000.00₴ | L31: =INDEX(ЗапланованіВитратиНаКурсиТаВідрядження[],MATCH(INDEX(РізницяВитратНаКурсиТаВідрядження[],ROW()-ROW(РізницяВитратНаКурсиТаВідрядження[[#Headers],[Жов]]),1),INDEX(ЗапланованіВитратиНаКурсиТаВідрядження[],,1),0),MATCH(РізницяВитратНаКурсиТаВідрядження[[#Headers],[Жов]],ЗапланованіВитратиНаКурсиТаВідрядження[#Headers],0))-INDEX(ФактичніВитратиНаКурсиТаВідрядження[],MATCH(INDEX(РізницяВитратНаКурсиТаВідрядження[],ROW()-ROW(РізницяВитратНаКурсиТаВідрядження[[#Headers],[Жов]]),1),INDEX(ЗапланованіВитратиНаКурсиТаВідрядження[],,1),0),MATCH(РізницяВитратНаКурсиТаВідрядження[[#Headers],[Жов]],ФактичніВитратиНаКурсиТаВідрядження[#Headers],0)) -> 2,000.00₴ | M31: =INDEX(ЗапланованіВитратиНаКурсиТаВідрядження[],MATCH(INDEX(РізницяВитратНаКурсиТаВідрядження[],ROW()-ROW(РізницяВитратНаКурсиТаВідрядження[[#Headers],[Лис]]),1),INDEX(ЗапланованіВитратиНаКурсиТаВідрядження[],,1),0),MATCH(РізницяВитратНаКурсиТаВідрядження[[#Headers],[Лис]],ЗапланованіВитратиНаКурсиТаВідрядження[#Headers],0))-INDEX(ФактичніВитратиНаКурсиТаВідрядження[],MATCH(INDEX(РізницяВитратНаКурсиТаВідрядження[],ROW()-ROW(РізницяВитратНаКурсиТаВідрядження[[#Headers],[Лис]]),1),INDEX(ЗапланованіВитратиНаКурсиТаВідрядження[],,1),0),MATCH(РізницяВитратНаКурсиТаВідрядження[[#Headers],[Лис]],ФактичніВитратиНаКурсиТаВідрядження[#Headers],0)) -> 2,000.00₴ | N31: =INDEX(ЗапланованіВитратиНаКурсиТаВідрядження[],MATCH(INDEX(РізницяВитратНаКурсиТаВідрядження[],ROW()-ROW(РізницяВитратНаКурсиТаВідрядження[[#Headers],[Гру]]),1),INDEX(ЗапланованіВитратиНаКурсиТаВідрядження[],,1),0),MATCH(РізницяВитратНаКурсиТаВідрядження[[#Headers],[Гру]],ЗапланованіВитратиНаКурсиТаВідрядження[#Headers],0))-INDEX(ФактичніВитратиНаКурсиТаВідрядження[],MATCH(INDEX(РізницяВитратНаКурсиТаВідрядження[],ROW()-ROW(РізницяВитратНаКурсиТаВідрядження[[#Headers],[Гру]]),1),INDEX(ЗапланованіВитратиНаКурсиТаВідрядження[],,1),0),MATCH(РізницяВитратНаКурсиТаВідрядження[[#Headers],[Гру]],ФактичніВитратиНаКурсиТаВідрядження[#Headers],0)) -> 2,000.00₴ | O31: =SUM(РізницяВитратНаКурсиТаВідрядження[[#This Row],[Січ]:[Гру]]) -> 13,000.00₴
B32: Витрати на відрядження, пов’язані з курсами | C32: =INDEX(ЗапланованіВитратиНаКурсиТаВідрядження[],MATCH(INDEX(РізницяВитратНаКурсиТаВідрядження[],ROW()-ROW(РізницяВитратНаКурсиТаВідрядження[[#Headers],[Січ]]),1),INDEX(ЗапланованіВитратиНаКурсиТаВідрядження[],,1),0),MATCH(РізницяВитратНаКурсиТаВідрядження[[#Headers],[Січ]],ЗапланованіВитратиНаКурсиТаВідрядження[#Headers],0))-INDEX(ФактичніВитратиНаКурсиТаВідрядження[],MATCH(INDEX(РізницяВитратНаКурсиТаВідрядження[],ROW()-ROW(РізницяВитратНаКурсиТаВідрядження[[#Headers],[Січ]]),1),INDEX(ЗапланованіВитратиНаКурсиТаВідрядження[],,1),0),MATCH(РізницяВитратНаКурсиТаВідрядження[[#Headers],[Січ]],ФактичніВитратиНаКурсиТаВідрядження[#Headers],0)) -> 800.00₴ | D32: =INDEX(ЗапланованіВитратиНаКурсиТаВідрядження[],MATCH(INDEX(РізницяВитратНаКурсиТаВідрядження[],ROW()-ROW(РізницяВитратНаКурсиТаВідрядження[[#Headers],[Лют]]),1),INDEX(ЗапланованіВитратиНаКурсиТаВідрядження[],,1),0),MATCH(РізницяВитратНаКурсиТаВідрядження[[#Headers],[Лют]],ЗапланованіВитратиНаКурсиТаВідрядження[#Headers],0))-INDEX(ФактичніВитратиНаКурсиТаВідрядження[],MATCH(INDEX(РізницяВитратНаКурсиТаВідрядження[],ROW()-ROW(РізницяВитратНаКурсиТаВідрядження[[#Headers],[Лют]]),1),INDEX(ЗапланованіВитратиНаКурсиТаВідрядження[],,1),0),MATCH(РізницяВитратНаКурсиТаВідрядження[[#Headers],[Лют]],ФактичніВитратиНаКурсиТаВідрядження[#Headers],0)) -> -200.00₴ | E32: =INDEX(ЗапланованіВитратиНаКурсиТаВідрядження[],MATCH(INDEX(РізницяВитратНаКурсиТаВідрядження[],ROW()-ROW(РізницяВитратНаКурсиТаВідрядження[[#Headers],[Бер]]),1),INDEX(ЗапланованіВитратиНаКурсиТаВідрядження[],,1),0),MATCH(РізницяВитратНаКурсиТаВідрядження[[#Headers],[Бер]],ЗапланованіВитратиНаКурсиТаВідрядження[#Headers],0))-INDEX(ФактичніВитратиНаКурсиТаВідрядження[],MATCH(INDEX(РізницяВитратНаКурсиТаВідрядження[],ROW()-ROW(РізницяВитратНаКурсиТаВідрядження[[#Headers],[Бер]]),1),INDEX(ЗапланованіВитратиНаКурсиТаВідрядження[],,1),0),MATCH(РізницяВитратНаКурсиТаВідрядження[[#Headers],[Бер]],ФактичніВитратиНаКурсиТаВідрядження[#Headers],0)) -> 600.00₴ | F32: =INDEX(ЗапланованіВитратиНаКурсиТаВідрядження[],MATCH(INDEX(РізницяВитратНаКурсиТаВідрядження[],ROW()-ROW(РізницяВитратНаКурсиТаВідрядження[[#Headers],[Кві]]),1),INDEX(ЗапланованіВитратиНаКурсиТаВідрядження[],,1),0),MATCH(РізницяВитратНаКурсиТаВідрядження[[#Headers],[Кві]],ЗапланованіВитратиНаКурсиТаВідрядження[#Headers],0))-INDEX(ФактичніВитратиНаКурсиТаВідрядження[],MATCH(INDEX(РізницяВитратНаКурсиТаВідрядження[],ROW()-ROW(РізницяВитратНаКурсиТаВідрядження[[#Headers],[Кві]]),1),INDEX(ЗапланованіВитратиНаКурсиТаВідрядження[],,1),0),MATCH(РізницяВитратНаКурсиТаВідрядження[[#Headers],[Кві]],ФактичніВитратиНаКурсиТаВідрядження[#Headers],0)) -> 800.00₴ | G32: =INDEX(ЗапланованіВитратиНаКурсиТаВідрядження[],MATCH(INDEX(РізницяВитратНаКурсиТаВідрядження[],ROW()-ROW(РізницяВитратНаКурсиТаВідрядження[[#Headers],[Тра]]),1),INDEX(ЗапланованіВитратиНаКурсиТаВідрядження[],,1),0),MATCH(РізницяВитратНаКурсиТаВідрядження[[#Headers],[Тра]],ЗапланованіВитратиНаКурсиТаВідрядження[#Headers],0))-INDEX(ФактичніВитратиНаКурсиТаВідрядження[],MATCH(INDEX(РізницяВитратНаКурсиТаВідрядження[],ROW()-ROW(РізницяВитратНаКурсиТаВідрядження[[#Headers],[Тра]]),1),INDEX(ЗапланованіВитратиНаКурсиТаВідрядження[],,1),0),MATCH(РізницяВитратНаКурсиТаВідрядження[[#Headers],[Тра]],ФактичніВитратиНаКурсиТаВідрядження[#Headers],0)) -> 1,200.00₴ | H32: =INDEX(ЗапланованіВитратиНаКурсиТаВідрядження[],MATCH(INDEX(РізницяВитратНаКурсиТаВідрядження[],ROW()-ROW(РізницяВитратНаКурсиТаВідрядження[[#Headers],[Чер]]),1),INDEX(ЗапланованіВитратиНаКурсиТаВідрядження[],,1),0),MATCH(РізницяВитратНаКурсиТаВідрядження[[#Headers],[Чер]],ЗапланованіВитратиНаКурсиТаВідрядження[#Headers],0))-INDEX(ФактичніВитратиНаКурсиТаВідрядження[],MATCH(INDEX(РізницяВитратНаКурсиТаВідрядження[],ROW()-ROW(РізницяВитратНаКурсиТаВідрядження[[#Headers],[Чер]]),1),INDEX(ЗапланованіВитратиНаКурсиТаВідрядження[],,1),0),MATCH(РізницяВитратНаКурсиТаВідрядження[[#Headers],[Чер]],ФактичніВитратиНаКурсиТаВідрядження[#Headers],0)) -> -1,500.00₴ | I32: =INDEX(ЗапланованіВитратиНаКурсиТаВідрядження[],MATCH(INDEX(РізницяВитратНаКурсиТаВідрядження[],ROW()-ROW(РізницяВитратНаКурсиТаВідрядження[[#Headers],[Лип]]),1),INDEX(ЗапланованіВитратиНаКурсиТаВідрядження[],,1),0),MATCH(РізницяВитратНаКурсиТаВідрядження[[#Headers],[Лип]],ЗапланованіВитратиНаКурсиТаВідрядження[#Headers],0))-INDEX(ФактичніВитратиНаКурсиТаВідрядження[],MATCH(INDEX(РізницяВитратНаКурсиТаВідрядження[],ROW()-ROW(РізницяВитратНаКурсиТаВідрядження[[#Headers],[Лип]]),1),INDEX(ЗапланованіВитратиНаКурсиТаВідрядження[],,1),0),MATCH(РізницяВитратНаКурсиТаВідрядження[[#Headers],[Лип]],ФактичніВитратиНаКурсиТаВідрядження[#Headers],0)) -> 2,000.00₴ | J32: =INDEX(ЗапланованіВитратиНаКурсиТаВідрядження[],MATCH(INDEX(РізницяВитратНаКурсиТаВідрядження[],ROW()-ROW(РізницяВитратНаКурсиТаВідрядження[[#Headers],[Cер]]),1),INDEX(ЗапланованіВитратиНаКурсиТаВідрядження[],,1),0),MATCH(РізницяВитратНаКурсиТаВідрядження[[#Headers],[Cер]],ЗапланованіВитратиНаКурсиТаВідрядження[#Headers],0))-INDEX(ФактичніВитратиНаКурсиТаВідрядження[],MATCH(INDEX(РізницяВитратНаКурсиТаВідрядження[],ROW()-ROW(РізницяВитратНаКурсиТаВідрядження[[#Headers],[Cер]]),1),INDEX(ЗапланованіВитратиНаКурсиТаВідрядження[],,1),0),MATCH(РізницяВитратНаКурсиТаВідрядження[[#Headers],[Cер]],ФактичніВитратиНаКурсиТаВідрядження[#Headers],0)) -> 2,000.00₴ | K32: =INDEX(ЗапланованіВитратиНаКурсиТаВідрядження[],MATCH(INDEX(РізницяВитратНаКурсиТаВідрядження[],ROW()-ROW(РізницяВитратНаКурсиТаВідрядження[[#Headers],[Вер]]),1),INDEX(ЗапланованіВитратиНаКурсиТаВідрядження[],,1),0),MATCH(РізницяВитратНаКурсиТаВідрядження[[#Headers],[Вер]],ЗапланованіВитратиНаКурсиТаВідрядження[#Headers],0))-INDEX(ФактичніВитратиНаКурсиТаВідрядження[],MATCH(INDEX(РізницяВитратНаКурсиТаВідрядження[],ROW()-ROW(РізницяВитратНаКурсиТаВідрядження[[#Headers],[Вер]]),1),INDEX(ЗапланованіВитратиНаКурсиТаВідрядження[],,1),0),MATCH(РізницяВитратНаКурсиТаВідрядження[[#Headers],[Вер]],ФактичніВитратиНаКурсиТаВідрядження[#Headers],0)) -> 2,000.00₴ | L32: =INDEX(ЗапланованіВитратиНаКурсиТаВідрядження[],MATCH(INDEX(РізницяВитратНаКурсиТаВідрядження[],ROW()-ROW(РізницяВитратНаКурсиТаВідрядження[[#Headers],[Жов]]),1),INDEX(ЗапланованіВитратиНаКурсиТаВідрядження[],,1),0),MATCH(РізницяВитратНаКурсиТаВідрядження[[#Headers],[Жов]],ЗапланованіВитратиНаКурсиТаВідрядження[#Headers],0))-INDEX(ФактичніВитратиНаКурсиТаВідрядження[],MATCH(INDEX(РізницяВитратНаКурсиТаВідрядження[],ROW()-ROW(РізницяВитратНаКурсиТаВідрядження[[#Headers],[Жов]]),1),INDEX(ЗапланованіВитратиНаКурсиТаВідрядження[],,1),0),MATCH(РізницяВитратНаКурсиТаВідрядження[[#Headers],[Жов]],ФактичніВитратиНаКурсиТаВідрядження[#Headers],0)) -> 2,000.00₴ | M32: =INDEX(ЗапланованіВитратиНаКурсиТаВідрядження[],MATCH(INDEX(РізницяВитратНаКурсиТаВідрядження[],ROW()-ROW(РізницяВитратНаКурсиТаВідрядження[[#Headers],[Лис]]),1),INDEX(ЗапланованіВитратиНаКурсиТаВідрядження[],,1),0),MATCH(РізницяВитратНаКурсиТаВідрядження[[#Headers],[Лис]],ЗапланованіВитратиНаКурсиТаВідрядження[#Headers],0))-INDEX(ФактичніВитратиНаКурсиТаВідрядження[],MATCH(INDEX(РізницяВитратНаКурсиТаВідрядження[],ROW()-ROW(РізницяВитратНаКурсиТаВідрядження[[#Headers],[Лис]]),1),INDEX(ЗапланованіВитратиНаКурсиТаВідрядження[],,1),0),MATCH(РізницяВитратНаКурсиТаВідрядження[[#Headers],[Лис]],ФактичніВитратиНаКурсиТаВідрядження[#Headers],0)) -> 2,000.00₴ | N32: =INDEX(ЗапланованіВитратиНаКурсиТаВідрядження[],MATCH(INDEX(РізницяВитратНаКурсиТаВідрядження[],ROW()-ROW(РізницяВитратНаКурсиТаВідрядження[[#Headers],[Гру]]),1),INDEX(ЗапланованіВитратиНаКурсиТаВідрядження[],,1),0),MATCH(РізницяВитратНаКурсиТаВідрядження[[#Headers],[Гру]],ЗапланованіВитратиНаКурсиТаВідрядження[#Headers],0))-INDEX(ФактичніВитратиНаКурсиТаВідрядження[],MATCH(INDEX(РізницяВитратНаКурсиТаВідрядження[],ROW()-ROW(РізницяВитратНаКурсиТаВідрядження[[#Headers],[Гру]]),1),INDEX(ЗапланованіВитратиНаКурсиТаВідрядження[],,1),0),MATCH(РізницяВитратНаКурсиТаВідрядження[[#Headers],[Гру]],ФактичніВитратиНаКурсиТаВідрядження[#Headers],0)) -> 2,000.00₴ | O32: =SUM(РізницяВитратНаКурсиТаВідрядження[[#This Row],[Січ]:[Гру]]) -> 13,700.00₴
B33: Проміжний підсумок | C33: =SUBTOTAL(109,РізницяВитратНаКурсиТаВідрядження[Січ]) -> 1,200.00₴ | D33: =SUBTOTAL(109,РізницяВитратНаКурсиТаВідрядження[Лют]) -> -600.00₴ | E33: =SUBTOTAL(109,РізницяВитратНаКурсиТаВідрядження[Бер]) -> 1,200.00₴ | F33: =SUBTOTAL(109,РізницяВитратНаКурсиТаВідрядження[Кві]) -> 1,200.00₴ | G33: =SUBTOTAL(109,РізницяВитратНаКурсиТаВідрядження[Тра]) -> 2,000.00₴ | H33: =SUBTOTAL(109,РізницяВитратНаКурсиТаВідрядження[Чер]) -> -2,300.00₴ | I33: =SUBTOTAL(109,РізницяВитратНаКурсиТаВідрядження[Лип]) -> 4,000.00₴ | J33: =SUBTOTAL(109,РізницяВитратНаКурсиТаВідрядження[Cер]) -> 4,000.00₴ | K33: =SUBTOTAL(109,РізницяВитратНаКурсиТаВідрядження[Вер]) -> 4,000.00₴ | L33: =SUBTOTAL(109,РізницяВитратНаКурсиТаВідрядження[Жов]) -> 4,000.00₴ | M33: =SUBTOTAL(109,РізницяВитратНаКурсиТаВідрядження[Лис]) -> 4,000.00₴ | N33: =SUBTOTAL(109,РізницяВитратНаКурсиТаВідрядження[Гру]) -> 4,000.00₴ | O33: =SUBTOTAL(109,РізницяВитратНаКурсиТаВідрядження[РІК]) -> 26,700.00₴
A35: Різниця витрат автоматично обчислюється в таблиці, починаючи з клітинки праворуч. | B35: УСЬОГО | C35: Січ | D35: Лют | E35: Бер | F35: Кві | G35: Тра | H35: Чер | I35: Лип | J35: Cер | K35: Вер | L35: Жов | M35: Лис | N35: Гру | O35: Рік
B36: Щомісячні фактичні витрати | C36: =РізницяВитратНаКурсиТаВідрядження[[#Totals],[Січ]]+РізницяВитратНаМаркетинг[[#Totals],[Січ]]+РізницяВитратНаОфіс[[#Totals],[Січ]]+РізницяВитратНаПрацівників[[#Totals],[Січ]] -> 1,738.00₴ | D36: =РізницяВитратНаКурсиТаВідрядження[[#Totals],[Лют]]+РізницяВитратНаМаркетинг[[#Totals],[Лют]]+РізницяВитратНаОфіс[[#Totals],[Лют]]+РізницяВитратНаПрацівників[[#Totals],[Лют]] -> -984.00₴ | E36: =РізницяВитратНаКурсиТаВідрядження[[#Totals],[Бер]]+РізницяВитратНаМаркетинг[[#Totals],[Бер]]+РізницяВитратНаОфіс[[#Totals],[Бер]]+РізницяВитратНаПрацівників[[#Totals],[Бер]] -> 1,255.00₴ | F36: =РізницяВитратНаКурсиТаВідрядження[[#Totals],[Кві]]+РізницяВитратНаМаркетинг[[#Totals],[Кві]]+РізницяВитратНаОфіс[[#Totals],[Кві]]+РізницяВитратНаПрацівників[[#Totals],[Кві]] -> 301.00₴ | G36: =РізницяВитратНаКурсиТаВідрядження[[#Totals],[Тра]]+РізницяВитратНаМаркетинг[[#Totals],[Тра]]+РізницяВитратНаОфіс[[#Totals],[Тра]]+РізницяВитратНаПрацівників[[#Totals],[Тра]] -> 1,440.00₴ | H36: =РізницяВитратНаКурсиТаВідрядження[[#Totals],[Чер]]+РізницяВитратНаМаркетинг[[#Totals],[Чер]]+РізницяВитратНаОфіс[[#Totals],[Чер]]+РізницяВитратНаПрацівників[[#Totals],[Чер]] -> -3,744.00₴ | I36: =РізницяВитратНаКурсиТаВідрядження[[#Totals],[Лип]]+РізницяВитратНаМаркетинг[[#Totals],[Лип]]+РізницяВитратНаОфіс[[#Totals],[Лип]]+РізницяВитратНаПрацівників[[#Totals],[Лип]] -> 134,695.00₴ | J36: =РізницяВитратНаКурсиТаВідрядження[[#Totals],[Cер]]+РізницяВитратНаМаркетинг[[#Totals],[Cер]]+РізницяВитратНаОфіс[[#Totals],[Cер]]+РізницяВитратНаПрацівників[[#Totals],[Cер]] -> 138,918.00₴ | K36: =РізницяВитратНаКурсиТаВідрядження[[#Totals],[Вер]]+РізницяВитратНаМаркетинг[[#Totals],[Вер]]+РізницяВитратНаОфіс[[#Totals],[Вер]]+РізницяВитратНаПрацівників[[#Totals],[Вер]] -> 135,918.00₴ | L36: =РізницяВитратНаКурсиТаВідрядження[[#Totals],[Жов]]+РізницяВитратНаМаркетинг[[#Totals],[Жов]]+РізницяВитратНаОфіс[[#Totals],[Жов]]+РізницяВитратНаПрацівників[[#Totals],[Жов]] -> 140,918.00₴ | M36: =РізницяВитратНаКурсиТаВідрядження[[#Totals],[Лис]]+РізницяВитратНаМаркетинг[[#Totals],[Лис]]+РізницяВитратНаОфіс[[#Totals],[Лис]]+РізницяВитратНаПрацівників[[#Totals],[Лис]] -> 136,218.00₴ | N36: =РізницяВитратНаКурсиТаВідрядження[[#Totals],[Гру]]+РізницяВитратНаМаркетинг[[#Totals],[Гру]]+РізницяВитратНаОфіс[[#Totals],[Гру]]+РізницяВитратНаПрацівників[[#Totals],[Гру]] -> 140,018.00₴ | O36: =РізницяВитратНаКурсиТаВідрядження[[#Totals],[РІК]]+РізницяВитратНаМаркетинг[[#Totals],[РІК]]+РізницяВитратНаОфіс[[#Totals],[РІК]]+РізницяВитратНаПрацівників[[#Totals],[РІК]] -> 826,691.00₴
B37: Загальні фактичні витрати | C37: =SUM($C$36:C36) -> 1,738.00₴ | D37: =SUM($C$36:D36) -> 754.00₴ | E37: =SUM($C$36:E36) -> 2,009.00₴ | F37: =SUM($C$36:F36) -> 2,310.00₴ | G37: =SUM($C$36:G36) -> 3,750.00₴ | H37: =SUM($C$36:H36) -> 6.00₴ | I37: =SUM($C$36:I36) -> 134,701.00₴ | J37: =SUM($C$36:J36) -> 273,619.00₴ | K37: =SUM($C$36:K36) -> 409,537.00₴ | L37: =SUM($C$36:L36) -> 550,455.00₴ | M37: =SUM($C$36:M36) -> 686,673.00₴ | N37: =SUM($C$36:N36) -> 826,691.00₴

Sheet АНАЛІЗ ВИТРАТ
A1: Щорічні заплановані та фактичні витрати на кожну категорію, різниця та його відсоток автоматично оновлюється на цьому аркуші. Корисні вказівки щодо роботи з цим аркушем наведено в клітинках у цьому стовпці. Клацніть стрілку вниз, щоб почати.
A2: Назва компанії автоматично оновлюється в клітинці праворуч. Додайте емблему до клітинки F2. | B2: ='ЗАПЛАНОВАНІ ВИТРАТИ'!B2:D3 -> Назва компанії | F2: Заповнювач для емблеми наведено в цій клітинці.
A3: Заголовок цього аркуша наведено в клітинці E3. Подальші вказівки наведено в клітинці A5. | E3: =заголовок_аркуша -> Докладна оцінка витрат
A5: Заплановані й фактичні витрати, різниця та його відсоток автоматично обчислюються в таблиці аналізу, починаючи з клітинки праворуч. Подальші вказівки наведено в клітинці A12. | B5: Категорія витрат | C5: Заплановані витрати | D5: Фактичні витрати | E5: Різниця витрат | F5: Відсоток різниці
B6: Витрати на працівників | C6: =ЗапланованіВитратиНаПрацівників[[#Totals],[РІК]] -> 1,355,090.00₴ | D6: =ФактичніВитратиНаПрацівників[[#Totals],[РІК]] -> 659,130.00₴ | E6: =C6-D6 -> 695,960.00₴ | F6: =E6/C6 -> 51%
B7: ='ЗАПЛАНОВАНІ ВИТРАТИ'!B10 -> Витрати на офіс | C7: =ЗапланованіВитратиНаОфіс[[#Totals],[РІК]] -> 138,740.00₴ | D7: =ФактичніВитратиНаОфіс[[#Totals],[РІК]] -> 69,350.00₴ | E7: =C7-D7 -> 69,390.00₴ | F7: =E7/C7 -> 50%
B8: ='ЗАПЛАНОВАНІ ВИТРАТИ'!B21 -> Витрати на маркетинг | C8: =ЗапланованіВитратиНаМаркетинг[[#Totals],[РІК]] -> 67,800.00₴ | D8: =ФактичніВитратиНаМаркетинг[[#Totals],[РІК]] -> 33,159.00₴ | E8: =C8-D8 -> 34,641.00₴ | F8: =E8/C8 -> 51%
B9: ='ЗАПЛАНОВАНІ ВИТРАТИ'!B30 -> Курси та відрядження | C9: =ЗапланованіВитратиНаКурсиТаВідрядження[[#Totals],[РІК]] -> 48,000.00₴ | D9: =ФактичніВитратиНаКурсиТаВідрядження[[#Totals],[РІК]] -> 21,300.00₴ | E9: =C9-D9 -> 26,700.00₴ | F9: =E9/C9 -> 56%
B10: ='ЗАПЛАНОВАНІ ВИТРАТИ'!B35 -> УСЬОГО | C10: ='ЗАПЛАНОВАНІ ВИТРАТИ'!O36 -> 1,609,630.00₴ | D10: ='ФАКТИЧНІ ВИТРАТИ'!O36 -> 782,939.00₴ | E10: =C10-D10 -> 826,691.00₴ | F10: =E10/C10 -> 51%
A12: Секторну діаграму заплановані витрати наведено в клітинці праворуч, а фактичних – у клітинці D12. Подальші вказівки наведено в клітинці A14. | B12: Секторну діаграму запланованих витрат на різні категорії наведено в цій клітинці. | D12: Секторну діаграму фактичних витрат на різні категорії наведено в цій клітинці.
A14: Діаграму запланованих і фактичних витрат за місяць із різницею наведено в клітинці праворуч.
